Workbook

Sheet START
B1: OM DEN HÄR MALLEN
B2: Använd arbetsboken Utgiftsbudget för företag för att spåra beräknade utgifter, faktiska utgifter och avvikelser.
B3: Fyll i företagets namn och lägg till logotypen.
B4: Ange information i tabellerna i kalkylbladet Beräknade utgifter och Faktiska utgifter.
B5: Tabellerna uppdateras automatiskt i kalkylbladet Utgiftsavvikelser och diagrammen i kalkylbladet Utgiftsanalys
B6: Obs!
B7: Ytterligare anvisningar finns i kolumn A i varje kalkylblad. Den här texten har avsiktligt dolts. Om du vill ta bort texten markerar du kolumn A och väljer sedan TA BORT. Om du vill att texten ska visas markerar du kolumn A och ändrar sedan teckenfärg.
B8: Om du vill veta mer om tabeller trycker du på SKIFT och sedan på F10 i en tabell, väljer alternativet TABELL och sedan ALTERNATIVTEXT

Sheet BERÄKNADE UTGIFTER
B2: Företagsnamn | K2: Detaljerade utgiftsberäkningar
K3: Skuggade celler är beräkningar.
B4: BERÄKNADE UTGIFTER | C4: JAN | D4: FEB | E4: MAR | F4: APR | G4: MAJ | H4: JUN | I4: JUL | J4: AUG | K4: SEPT | L4: OKT | M4: NOV | N4: DEC | O4: ÅR
B5: Kostnader för anställda | C5: Jan | D5: Feb | E5: Mar | F5: Apr | G5: Maj | H5: Jun | I5: Jul | J5: Aug | K5: Sep | L5: Okt | M5: Nov | N5: Dec | O5: ÅR
B6: Lön | C6: 85,000.00 kr | D6: 85,000.00 kr | E6: 85,000.00 kr | F6: 87,500.00 kr | G6: 87,500.00 kr | H6: 87,500.00 kr | I6: 87,500.00 kr | J6: 92,400.00 kr | K6: 92,400.00 kr | L6: 92,400.00 kr | M6: 92,400.00 kr | N6: 92,400.00 kr | O6: =SUM(C6:N6) -> 1,067,000.00 kr
B7: Förmåner | C7: =C6*0.27 -> 22,950.00 kr | D7: 22,950.00 kr | E7: 22,950.00 kr | F7: 23,625.00 kr | G7: 23,625.00 kr | H7: 23,625.00 kr | I7: 23,625.00 kr | J7: 24,948.00 kr | K7: 24,948.00 kr | L7: 24,948.00 kr | M7: 24,948.00 kr | N7: 24,948.00 kr | O7: =SUM(C7:N7) -> 288,090.00 kr
B8: Delsumma | C8: =SUBTOTAL(109,PlaneradeAnställda[Jan]) -> 107,950.00 kr | D8: =SUBTOTAL(109,PlaneradeAnställda[Feb]) -> 107,950.00 kr | E8: =SUBTOTAL(109,PlaneradeAnställda[Mar]) -> 107,950.00 kr | F8: =SUBTOTAL(109,PlaneradeAnställda[Apr]) -> 111,125.00 kr | G8: =SUBTOTAL(109,PlaneradeAnställda[Maj]) -> 111,125.00 kr | H8: =SUBTOTAL(109,PlaneradeAnställda[Jun]) -> 111,125.00 kr | I8: =SUBTOTAL(109,PlaneradeAnställda[Jul]) -> 111,125.00 kr | J8: =SUBTOTAL(109,PlaneradeAnställda[Aug]) -> 117,348.00 kr | K8: =SUBTOTAL(109,PlaneradeAnställda[Sep]) -> 117,348.00 kr | L8: =SUBTOTAL(109,PlaneradeAnställda[Okt]) -> 117,348.00 kr | M8: =SUBTOTAL(109,PlaneradeAnställda[Nov]) -> 117,348.00 kr | N8: =SUBTOTAL(109,PlaneradeAnställda[Dec]) -> 117,348.00 kr | O8: =SUBTOTAL(109,PlaneradeAnställda[ÅR]) -> 1,355,090.00 kr
B10: Kontorskostnader | C10: Jan | D10: Feb | E10: Mar | F10: Apr | G10: Maj | H10: Jun | I10: Jul | J10: Aug | K10: Sep | L10: Okt | M10: Nov | N10: Dec | O10: ÅR
B11: Kontorshyra | C11: 9,800.00 kr | D11: 9,800.00 kr | E11: 9,800.00 kr | F11: 9,800.00 kr | G11: 9,800.00 kr | H11: 9,800.00 kr | I11: 9,800.00 kr | J11: 9,800.00 kr | K11: 9,800.00 kr | L11: 9,800.00 kr | M11: 9,800.00 kr | N11: 9,800.00 kr | O11: =SUM(C11:N11) -> 117,600.00 kr
B12: Gas | D12: 400.00 kr | E12: 400.00 kr | F12: 100.00 kr | G12: 100.00 kr | H12: 100.00 kr | I12: 100.00 kr | J12: 100.00 kr | K12: 100.00 kr | L12: 100.00 kr | M12: 400.00 kr | N12: 400.00 kr | O12: 2,300.00 kr
B13: El | C13: 300.00 kr | D13: 300.00 kr | E13: 300.00 kr | F13: 300.00 kr | G13: 300.00 kr | H13: 300.00 kr | I13: 300.00 kr | J13: 300.00 kr | K13: 300.00 kr | L13: 300.00 kr | M13: 300.00 kr | N13: 300.00 kr | O13: 3,600.00 kr
B14: Vatten | C14: 40.00 kr | D14: 40.00 kr | E14: 40.00 kr | F14: 40.00 kr | G14: 40.00 kr | H14: 40.00 kr | I14: 40.00 kr | J14: 40.00 kr | K14: 40.00 kr | L14: 40.00 kr | M14: 40.00 kr | N14: 40.00 kr | O14: 480.00 kr
B15: Telefon | C15: 250.00 kr | D15: 250.00 kr | E15: 250.00 kr | F15: 250.00 kr | G15: 250.00 kr | H15: 250.00 kr | I15: 250.00 kr | J15: 250.00 kr | K15: 250.00 kr | L15: 250.00 kr | M15: 250.00 kr | N15: 250.00 kr | O15: 3,000.00 kr
B16: Internetåtkomst | C16: 180.00 kr | D16: 180.00 kr | E16: 180.00 kr | F16: 180.00 kr | G16: 180.00 kr | H16: 180.00 kr | I16: 180.00 kr | J16: 180.00 kr | K16: 180.00 kr | L16: 180.00 kr | M16: 180.00 kr | N16: 180.00 kr | O16: 2,160.00 kr
B17: Kontorsmaterial | C17: 200.00 kr | D17: 200.00 kr | E17: 200.00 kr | F17: 200.00 kr | G17: 200.00 kr | H17: 200.00 kr | I17: 200.00 kr | J17: 200.00 kr | K17: 200.00 kr | L17: 200.00 kr | M17: 200.00 kr | N17: 200.00 kr | O17: 2,400.00 kr
B18: Säkerhet | C18: 600.00 kr | D18: 600.00 kr | E18: 600.00 kr | F18: 600.00 kr | G18: 600.00 kr | H18: 600.00 kr | I18: 600.00 kr | J18: 600.00 kr | K18: 600.00 kr | L18: 600.00 kr | M18: 600.00 kr | N18: 600.00 kr | O18: 7,200.00 kr
B19: Delsumma | C19: =SUBTOTAL(109,KontorsPlan[Jan]) -> 11,370.00 kr | D19: =SUBTOTAL(109,KontorsPlan[Feb]) -> 11,770.00 kr | E19: =SUBTOTAL(109,KontorsPlan[Mar]) -> 11,770.00 kr | F19: =SUBTOTAL(109,KontorsPlan[Apr]) -> 11,470.00 kr | G19: =SUBTOTAL(109,KontorsPlan[Maj]) -> 11,470.00 kr | H19: =SUBTOTAL(109,KontorsPlan[Jun]) -> 11,470.00 kr | I19: =SUBTOTAL(109,KontorsPlan[Jul]) -> 11,470.00 kr | J19: =SUBTOTAL(109,KontorsPlan[Aug]) -> 11,470.00 kr | K19: =SUBTOTAL(109,KontorsPlan[Sep]) -> 11,470.00 kr | L19: =SUBTOTAL(109,KontorsPlan[Okt]) -> 11,470.00 kr | M19: =SUBTOTAL(109,KontorsPlan[Nov]) -> 11,770.00 kr | N19: =SUBTOTAL(109,KontorsPlan[Dec]) -> 11,770.00 kr | O19: =SUBTOTAL(109,KontorsPlan[ÅR]) -> 138,740.00 kr
B21: Marknadsföringskostnader | C21: Jan | D21: Feb | E21: Mar | F21: Apr | G21: Maj | H21: Jun | I21: Jul | J21: Aug | K21: Sep | L21: Okt | M21: Nov | N21: Dec | O21: ÅR
B22: Webbplatsvärd | C22: 500.00 kr | D22: 500.00 kr | E22: 500.00 kr | F22: 500.00 kr | G22: 500.00 kr | H22: 500.00 kr | I22: 500.00 kr | J22: 500.00 kr | K22: 500.00 kr | L22: 500.00 kr | M22: 500.00 kr | N22: 500.00 kr | O22: =SUM(C22:N22) -> 6,000.00 kr
B23: Webbplatsuppdateringar | C23: 200.00 kr | D23: 200.00 kr | E23: 200.00 kr | F23: 200.00 kr | G23: 200.00 kr | H23: 1,000.00 kr | I23: 200.00 kr | J23: 200.00 kr | K23: 200.00 kr | L23: 200.00 kr | M23: 200.00 kr | N23: 1,000.00 kr | O23: 4,000.00 kr
B24: Kollateral förberedelse | C24: 5,000.00 kr | D24: 0.00 kr | E24: 0.00 kr | F24: 5,000.00 kr | G24: 0.00 kr | H24: 0.00 kr | I24: 5,000.00 kr | J24: 0.00 kr | K24: 0.00 kr | L24: 5,000.00 kr | M24: 0.00 kr | N24: 0.00 kr | O24: 20,000.00 kr
B25: Kollateral utskrift | C25: 200.00 kr | D25: 200.00 kr | E25: 200.00 kr | F25: 200.00 kr | G25: 200.00 kr | H25: 200.00 kr | I25: 200.00 kr | J25: 200.00 kr | K25: 200.00 kr | L25: 200.00 kr | M25: 200.00 kr | N25: 200.00 kr | O25: 2,400.00 kr
B26: Marknadsföringshändelser | C26: 2,000.00 kr | D26: 2,000.00 kr | E26: 2,000.00 kr | F26: 5,000.00 kr | G26: 2,000.00 kr | H26: 2,000.00 kr | I26: 2,000.00 kr | J26: 5,000.00 kr | K26: 2,000.00 kr | L26: 2,000.00 kr | M26: 2,000.00 kr | N26: 5,000.00 kr | O26: 33,000.00 kr
B27: Diverse utgifter | C27: 200.00 kr | D27: 200.00 kr | E27: 200.00 kr | F27: 200.00 kr | G27: 200.00 kr | H27: 200.00 kr | I27: 200.00 kr | J27: 200.00 kr | K27: 200.00 kr | L27: 200.00 kr | M27: 200.00 kr | N27: 200.00 kr | O27: 2,400.00 kr
B28: Delsumma | C28: =SUBTOTAL(109,PlaneradeMarknadsföring[Jan]) -> 8,100.00 kr | D28: =SUBTOTAL(109,PlaneradeMarknadsföring[Feb]) -> 3,100.00 kr | E28: =SUBTOTAL(109,PlaneradeMarknadsföring[Mar]) -> 3,100.00 kr | F28: =SUBTOTAL(109,PlaneradeMarknadsföring[Apr]) -> 11,100.00 kr | G28: =SUBTOTAL(109,PlaneradeMarknadsföring[Maj]) -> 3,100.00 kr | H28: =SUBTOTAL(109,PlaneradeMarknadsföring[Jun]) -> 3,900.00 kr | I28: =SUBTOTAL(109,PlaneradeMarknadsföring[Jul]) -> 8,100.00 kr | J28: =SUBTOTAL(109,PlaneradeMarknadsföring[Aug]) -> 6,100.00 kr | K28: =SUBTOTAL(109,PlaneradeMarknadsföring[Sep]) -> 3,100.00 kr | L28: =SUBTOTAL(109,PlaneradeMarknadsföring[Okt]) -> 8,100.00 kr | M28: =SUBTOTAL(109,PlaneradeMarknadsföring[Nov]) -> 3,100.00 kr | N28: =SUBTOTAL(109,PlaneradeMarknadsföring[Dec]) -> 6,900.00 kr | O28: =SUBTOTAL(109,PlaneradeMarknadsföring[ÅR]) -> 67,800.00 kr
B30: Utbildning/resor | C30: Jan | D30: Feb | E30: Mar | F30: Apr | G30: Maj | H30: Jun | I30: Jul | J30: Aug | K30: Sep | L30: Okt | M30: Nov | N30: Dec | O30: ÅR
B31: Utbildning, kurser | C31: 2,000.00 kr | D31: 2,000.00 kr | E31: 2,000.00 kr | F31: 2,000.00 kr | G31: 2,000.00 kr | H31: 2,000.00 kr | I31: 2,000.00 kr | J31: 2,000.00 kr | K31: 2,000.00 kr | L31: 2,000.00 kr | M31: 2,000.00 kr | N31: 2,000.00 kr | O31: =SUM(C31:N31) -> 24,000.00 kr
B32: Utbildningsrelaterade resekostnader | C32: 2,000.00 kr | D32: 2,000.00 kr | E32: 2,000.00 kr | F32: 2,000.00 kr | G32: 2,000.00 kr | H32: 2,000.00 kr | I32: 2,000.00 kr | J32: 2,000.00 kr | K32: 2,000.00 kr | L32: 2,000.00 kr | M32: 2,000.00 kr | N32: 2,000.00 kr | O32: =SUM(C32:N32) -> 24,000.00 kr
B33: Delsumma | C33: =SUBTOTAL(109,PlaneradeUtbildningOchResor[Jan]) -> 4,000.00 kr | D33: =SUBTOTAL(109,PlaneradeUtbildningOchResor[Feb]) -> 4,000.00 kr | E33: =SUBTOTAL(109,PlaneradeUtbildningOchResor[Mar]) -> 4,000.00 kr | F33: =SUBTOTAL(109,PlaneradeUtbildningOchResor[Apr]) -> 4,000.00 kr | G33: =SUBTOTAL(109,PlaneradeUtbildningOchResor[Maj]) -> 4,000.00 kr | H33: =SUBTOTAL(109,PlaneradeUtbildningOchResor[Jun]) -> 4,000.00 kr | I33: =SUBTOTAL(109,PlaneradeUtbildningOchResor[Jul]) -> 4,000.00 kr | J33: =SUBTOTAL(109,PlaneradeUtbildningOchResor[Aug]) -> 4,000.00 kr | K33: =SUBTOTAL(109,PlaneradeUtbildningOchResor[Sep]) -> 4,000.00 kr | L33: =SUBTOTAL(109,PlaneradeUtbildningOchResor[Okt]) -> 4,000.00 kr | M33: =SUBTOTAL(109,PlaneradeUtbildningOchResor[Nov]) -> 4,000.00 kr | N33: =SUBTOTAL(109,PlaneradeUtbildningOchResor[Dec]) -> 4,000.00 kr | O33: =SUBTOTAL(109,PlaneradeUtbildningOchResor[ÅR]) -> 48,000.00 kr
B35: TOTALSUMMOR | C35: Jan | D35: Feb | E35: Mar | F35: Apr | G35: Maj | H35: Jun | I35: Jul | J35: Aug | K35: Sep | L35: Okt | M35: Nov | N35: Dec | O35: År
B36: Beräknade månadsutgifter | C36: =PlaneradeUtbildningOchResor[[#Totals],[Jan]]+PlaneradeMarknadsföring[[#Totals],[Jan]]+KontorsPlan[[#Totals],[Jan]]+PlaneradeAnställda[[#Totals],[Jan]] -> 131,420.00 kr | D36: =PlaneradeUtbildningOchResor[[#Totals],[Feb]]+PlaneradeMarknadsföring[[#Totals],[Feb]]+KontorsPlan[[#Totals],[Feb]]+PlaneradeAnställda[[#Totals],[Feb]] -> 126,820.00 kr | E36: =PlaneradeUtbildningOchResor[[#Totals],[Mar]]+PlaneradeMarknadsföring[[#Totals],[Mar]]+KontorsPlan[[#Totals],[Mar]]+PlaneradeAnställda[[#Totals],[Mar]] -> 126,820.00 kr | F36: =PlaneradeUtbildningOchResor[[#Totals],[Apr]]+PlaneradeMarknadsföring[[#Totals],[Apr]]+KontorsPlan[[#Totals],[Apr]]+PlaneradeAnställda[[#Totals],[Apr]] -> 137,695.00 kr | G36: =PlaneradeUtbildningOchResor[[#Totals],[Maj]]+PlaneradeMarknadsföring[[#Totals],[Maj]]+KontorsPlan[[#Totals],[Maj]]+PlaneradeAnställda[[#Totals],[Maj]] -> 129,695.00 kr | H36: =PlaneradeUtbildningOchResor[[#Totals],[Jun]]+PlaneradeMarknadsföring[[#Totals],[Jun]]+KontorsPlan[[#Totals],[Jun]]+PlaneradeAnställda[[#Totals],[Jun]] -> 130,495.00 kr | I36: =PlaneradeUtbildningOchResor[[#Totals],[Jul]]+PlaneradeMarknadsföring[[#Totals],[Jul]]+KontorsPlan[[#Totals],[Jul]]+PlaneradeAnställda[[#Totals],[Jul]] -> 134,695.00 kr | J36: =PlaneradeUtbildningOchResor[[#Totals],[Aug]]+PlaneradeMarknadsföring[[#Totals],[Aug]]+KontorsPlan[[#Totals],[Aug]]+PlaneradeAnställda[[#Totals],[Aug]] -> 138,918.00 kr | K36: =PlaneradeUtbildningOchResor[[#Totals],[Sep]]+PlaneradeMarknadsföring[[#Totals],[Sep]]+KontorsPlan[[#Totals],[Sep]]+PlaneradeAnställda[[#Totals],[Sep]] -> 135,918.00 kr | L36: =PlaneradeUtbildningOchResor[[#Totals],[Okt]]+PlaneradeMarknadsföring[[#Totals],[Okt]]+KontorsPlan[[#Totals],[Okt]]+PlaneradeAnställda[[#Totals],[Okt]] -> 140,918.00 kr | M36: =PlaneradeUtbildningOchResor[[#Totals],[Nov]]+PlaneradeMarknadsföring[[#Totals],[Nov]]+KontorsPlan[[#Totals],[Nov]]+PlaneradeAnställda[[#Totals],[Nov]] -> 136,218.00 kr | N36: =PlaneradeUtbildningOchResor[[#Totals],[Dec]]+PlaneradeMarknadsföring[[#Totals],[Dec]]+KontorsPlan[[#Totals],[Dec]]+PlaneradeAnställda[[#Totals],[Dec]] -> 140,018.00 kr | O36: =PlaneradeUtbildningOchResor[[#Totals],[ÅR]]+PlaneradeMarknadsföring[[#Totals],[ÅR]]+KontorsPlan[[#Totals],[ÅR]]+PlaneradeAnställda[[#Totals],[ÅR]] -> 1,609,630.00 kr
B37: SUMMA beräknade utgifter | C37: =SUM($C$36:C36) -> 131,420.00 kr | D37: =SUM($C$36:D36) -> 258,240.00 kr | E37: =SUM($C$36:E36) -> 385,060.00 kr | F37: =SUM($C$36:F36) -> 522,755.00 kr | G37: =SUM($C$36:G36) -> 652,450.00 kr | H37: =SUM($C$36:H36) -> 782,945.00 kr | I37: =SUM($C$36:I36) -> 917,640.00 kr | J37: =SUM($C$36:J36) -> 1,056,558.00 kr | K37: =SUM($C$36:K36) -> 1,192,476.00 kr | L37: =SUM($C$36:L36) -> 1,333,394.00 kr | M37: =SUM($C$36:M36) -> 1,469,612.00 kr | N37: =SUM($C$36:N36) -> 1,609,630.00 kr

Sheet FAKTISKA UTGIFTER
B2: ='BERÄKNADE UTGIFTER'!B2:D3 -> Företagsnamn | K2: =worksheet_title -> Detaljerade utgiftsberäkningar
K3: Skuggade celler är beräkningar.
B4: FAKTISKA UTGIFTER | C4: JAN | D4: FEB | E4: MAR | F4: APR | G4: MAJ | H4: JUN | I4: JUL | J4: AUG | K4: SEPT | L4: OKT | M4: NOV | N4: DEC | O4: ÅR
B5: Kostnader för anställda | C5: Jan | D5: Feb | E5: Mar | F5: Apr | G5: Maj | H5: Jun | I5: Jul | J5: Aug | K5: Sep | L5: Okt | M5: Nov | N5: Dec | O5: ÅR
B6: Lön | C6: 85,000.00 kr | D6: 85,000.00 kr | E6: 85,000.00 kr | F6: 88,000.00 kr | G6: 88,000.00 kr | H6: 88,000.00 kr | O6: =SUM(C6:N6) -> 519,000.00 kr
B7: Förmåner | C7: =C6*0.27 -> 22,950.00 kr | D7: 22,950.00 kr | E7: 22,950.00 kr | F7: 23,760.00 kr | G7: 23,760.00 kr | H7: 23,760.00 kr | I7: 0.00 kr | J7: 0.00 kr | K7: 0.00 kr | L7: 0.00 kr | M7: 0.00 kr | N7: 0.00 kr | O7: =SUM(C7:N7) -> 140,130.00 kr
B8: Delsumma | C8: =SUBTOTAL(109,FaktiskaAnställda[Jan]) -> 107,950.00 kr | D8: =SUBTOTAL(109,FaktiskaAnställda[Feb]) -> 107,950.00 kr | E8: =SUBTOTAL(109,FaktiskaAnställda[Mar]) -> 107,950.00 kr | F8: =SUBTOTAL(109,FaktiskaAnställda[Apr]) -> 111,760.00 kr | G8: =SUBTOTAL(109,FaktiskaAnställda[Maj]) -> 111,760.00 kr | H8: =SUBTOTAL(109,FaktiskaAnställda[Jun]) -> 111,760.00 kr | I8: =SUBTOTAL(109,FaktiskaAnställda[Jul]) -> 0.00 kr | J8: =SUBTOTAL(109,FaktiskaAnställda[Aug]) -> 0.00 kr | K8: =SUBTOTAL(109,FaktiskaAnställda[Sep]) -> 0.00 kr | L8: =SUBTOTAL(109,FaktiskaAnställda[Okt]) -> 0.00 kr | M8: =SUBTOTAL(109,FaktiskaAnställda[Nov]) -> 0.00 kr | N8: =SUBTOTAL(109,FaktiskaAnställda[Dec]) -> 0.00 kr | O8: =SUBTOTAL(109,FaktiskaAnställda[ÅR]) -> 659,130.00 kr
B10: Kontorskostnader | C10: Jan | D10: Feb | E10: Mar | F10: Apr | G10: Maj | H10: Jun | I10: Jul | J10: Aug | K10: Sep | L10: Okt | M10: Nov | N10: Dec | O10: ÅR
B11: Kontorshyra | C11: 9,800.00 kr | D11: 9,800.00 kr | E11: 9,800.00 kr | F11: 9,800.00 kr | G11: 9,800.00 kr | H11: 9,800.00 kr | O11: =SUM(C11:N11) -> 58,800.00 kr
B12: Gas | C12: 4.00 kr | D12: 430.00 kr | E12: 385.00 kr | F12: 230.00 kr | G12: 87.00 kr | H12: 88.00 kr | O12: 1,224.00 kr
B13: El | C13: 288.00 kr | D13: 278.00 kr | E13: 268.00 kr | F13: 299.00 kr | G13: 306.00 kr | H13: 290.00 kr | O13: 1,729.00 kr
B14: Vatten | C14: 35.00 kr | D14: 33.00 kr | E14: 34.00 kr | F14: 36.00 kr | G14: 34.00 kr | H14: 36.00 kr | O14: 208.00 kr
B15: Telefon | C15: 224.00 kr | D15: 235.00 kr | E15: 265.00 kr | F15: 245.00 kr | G15: 245.00 kr | H15: 220.00 kr | O15: 1,434.00 kr
B16: Internetåtkomst | C16: 180.00 kr | D16: 180.00 kr | E16: 180.00 kr | F16: 180.00 kr | G16: 180.00 kr | H16: 180.00 kr | O16: 1,080.00 kr
B17: Kontorsmaterial | C17: 256.00 kr | D17: 142.00 kr | E17: 160.00 kr | F17: 221.00 kr | G17: 256.00 kr | H17: 240.00 kr | O17: 1,275.00 kr
B18: Säkerhet | C18: 600.00 kr | D18: 600.00 kr | E18: 600.00 kr | F18: 600.00 kr | G18: 600.00 kr | H18: 600.00 kr | O18: 3,600.00 kr
B19: Delsumma | C19: =SUBTOTAL(109,FaktiskaKontor[Jan]) -> 11,387.00 kr | D19: =SUBTOTAL(109,FaktiskaKontor[Feb]) -> 11,698.00 kr | E19: =SUBTOTAL(109,FaktiskaKontor[Mar]) -> 11,692.00 kr | F19: =SUBTOTAL(109,FaktiskaKontor[Apr]) -> 11,611.00 kr | G19: =SUBTOTAL(109,FaktiskaKontor[Maj]) -> 11,508.00 kr | H19: =SUBTOTAL(109,FaktiskaKontor[Jun]) -> 11,454.00 kr | I19: =SUBTOTAL(109,FaktiskaKontor[Jul]) -> 0.00 kr | J19: =SUBTOTAL(109,FaktiskaKontor[Aug]) -> 0.00 kr | K19: =SUBTOTAL(109,FaktiskaKontor[Sep]) -> 0.00 kr | L19: =SUBTOTAL(109,FaktiskaKontor[Okt]) -> 0.00 kr | M19: =SUBTOTAL(109,FaktiskaKontor[Nov]) -> 0.00 kr | N19: =SUBTOTAL(109,FaktiskaKontor[Dec]) -> 0.00 kr | O19: =SUBTOTAL(109,FaktiskaKontor[ÅR]) -> 69,350.00 kr
B21: Marknadsföringskostnader | C21: Jan | D21: Feb | E21: Mar | F21: Apr | G21: Maj | H21: Jun | I21: Jul | J21: Aug | K21: Sep | L21: Okt | M21: Nov | N21: Dec | O21: ÅR
B22: Webbplatsvärd | C22: 500.00 kr | D22: 500.00 kr | E22: 500.00 kr | F22: 500.00 kr | G22: 500.00 kr | H22: 500.00 kr | O22: =SUM(C22:N22) -> 3,000.00 kr
B23: Webbplatsuppdateringar | C23: 200.00 kr | D23: 200.00 kr | E23: 200.00 kr | F23: 200.00 kr | G23: 200.00 kr | H23: 1,500.00 kr | O23: 2,500.00 kr
B24: Kollateral förberedelse | C24: 4,800.00 kr | D24: 0.00 kr | E24: 0.00 kr | F24: 5,500.00 kr | G24: 0.00 kr | H24: 0.00 kr | O24: 10,300.00 kr
B25: Kollateral utskrift | C25: 100.00 kr | D25: 500.00 kr | E25: 100.00 kr | F25: 100.00 kr | G25: 600.00 kr | H25: 180.00 kr | O25: 1,580.00 kr
B26: Marknadsföringshändelser | C26: 1,800.00 kr | D26: 2,200.00 kr | E26: 2,200.00 kr | F26: 4,700.00 kr | G26: 1,500.00 kr | H26: 2,300.00 kr | O26: 14,700.00 kr
B27: Diverse utgifter | C27: 145.00 kr | D27: 156.00 kr | E27: 123.00 kr | F27: 223.00 kr | G27: 187.00 kr | H27: 245.00 kr | O27: 1,079.00 kr
B28: Delsumma | C28: =SUBTOTAL(109,FaktiskaMarknadsföring[Jan]) -> 7,545.00 kr | D28: =SUBTOTAL(109,FaktiskaMarknadsföring[Feb]) -> 3,556.00 kr | E28: =SUBTOTAL(109,FaktiskaMarknadsföring[Mar]) -> 3,123.00 kr | F28: =SUBTOTAL(109,FaktiskaMarknadsföring[Apr]) -> 11,223.00 kr | G28: =SUBTOTAL(109,FaktiskaMarknadsföring[Maj]) -> 2,987.00 kr | H28: =SUBTOTAL(109,FaktiskaMarknadsföring[Jun]) -> 4,725.00 kr | I28: =SUBTOTAL(109,FaktiskaMarknadsföring[Jul]) -> 0.00 kr | J28: =SUBTOTAL(109,FaktiskaMarknadsföring[Aug]) -> 0.00 kr | K28: =SUBTOTAL(109,FaktiskaMarknadsföring[Sep]) -> 0.00 kr | L28: =SUBTOTAL(109,FaktiskaMarknadsföring[Okt]) -> 0.00 kr | M28: =SUBTOTAL(109,FaktiskaMarknadsföring[Nov]) -> 0.00 kr | N28: =SUBTOTAL(109,FaktiskaMarknadsföring[Dec]) -> 0.00 kr | O28: =SUBTOTAL(109,FaktiskaMarknadsföring[ÅR]) -> 33,159.00 kr
B30: Utbildning/resor | C30: Jan | D30: Feb | E30: Mar | F30: Apr | G30: Maj | H30: Jun | I30: Jul | J30: Aug | K30: Sep | L30: Okt | M30: Nov | N30: Dec | O30: ÅR
B31: Utbildning, kurser | C31: 1,600.00 kr | D31: 2,400.00 kr | E31: 1,400.00 kr | F31: 1,600.00 kr | G31: 1,200.00 kr | H31: 2,800.00 kr | O31: =SUM(C31:N31) -> 11,000.00 kr
B32: Utbildningsrelaterade resekostnader | C32: 1,200.00 kr | D32: 2,200.00 kr | E32: 1,400.00 kr | F32: 1,200.00 kr | G32: 800.00 kr | H32: 3,500.00 kr | O32: =SUM(C32:N32) -> 10,300.00 kr
B33: Delsumma | C33: =SUBTOTAL(109,FaktiskaUtbildningOchResor[Jan]) -> 2,800.00 kr | D33: =SUBTOTAL(109,FaktiskaUtbildningOchResor[Feb]) -> 4,600.00 kr | E33: =SUBTOTAL(109,FaktiskaUtbildningOchResor[Mar]) -> 2,800.00 kr | F33: =SUBTOTAL(109,FaktiskaUtbildningOchResor[Apr]) -> 2,800.00 kr | G33: =SUBTOTAL(109,FaktiskaUtbildningOchResor[Maj]) -> 2,000.00 kr | H33: =SUBTOTAL(109,FaktiskaUtbildningOchResor[Jun]) -> 6,300.00 kr | I33: =SUBTOTAL(109,FaktiskaUtbildningOchResor[Jul]) -> 0.00 kr | J33: =SUBTOTAL(109,FaktiskaUtbildningOchResor[Aug]) -> 0.00 kr | K33: =SUBTOTAL(109,FaktiskaUtbildningOchResor[Sep]) -> 0.00 kr | L33: =SUBTOTAL(109,FaktiskaUtbildningOchResor[Okt]) -> 0.00 kr | M33: =SUBTOTAL(109,FaktiskaUtbildningOchResor[Nov]) -> 0.00 kr | N33: =SUBTOTAL(109,FaktiskaUtbildningOchResor[Dec]) -> 0.00 kr | O33: =SUBTOTAL(109,FaktiskaUtbildningOchResor[ÅR]) -> 21,300.00 kr
B35: SUMMA beräknade utgifter | C35: Jan | D35: Feb | E35: Mar | F35: Apr | G35: Maj | H35: Jun | I35: Jul | J35: Aug | K35: Sep | L35: Okt | M35: Nov | N35: Dec | O35: År
B36: Faktiska månadsutgifter | C36: =FaktiskaUtbildningOchResor[[#Totals],[Jan]]+FaktiskaMarknadsföring[[#Totals],[Jan]]+FaktiskaKontor[[#Totals],[Jan]]+FaktiskaAnställda[[#Totals],[Jan]] -> 129,682.00 kr | D36: =FaktiskaUtbildningOchResor[[#Totals],[Feb]]+FaktiskaMarknadsföring[[#Totals],[Feb]]+FaktiskaKontor[[#Totals],[Feb]]+FaktiskaAnställda[[#Totals],[Feb]] -> 127,804.00 kr | E36: =FaktiskaUtbildningOchResor[[#Totals],[Mar]]+FaktiskaMarknadsföring[[#Totals],[Mar]]+FaktiskaKontor[[#Totals],[Mar]]+FaktiskaAnställda[[#Totals],[Mar]] -> 125,565.00 kr | F36: =FaktiskaUtbildningOchResor[[#Totals],[Apr]]+FaktiskaMarknadsföring[[#Totals],[Apr]]+FaktiskaKontor[[#Totals],[Apr]]+FaktiskaAnställda[[#Totals],[Apr]] -> 137,394.00 kr | G36: =FaktiskaUtbildningOchResor[[#Totals],[Maj]]+FaktiskaMarknadsföring[[#Totals],[Maj]]+FaktiskaKontor[[#Totals],[Maj]]+FaktiskaAnställda[[#Totals],[Maj]] -> 128,255.00 kr | H36: =FaktiskaUtbildningOchResor[[#Totals],[Jun]]+FaktiskaMarknadsföring[[#Totals],[Jun]]+FaktiskaKontor[[#Totals],[Jun]]+FaktiskaAnställda[[#Totals],[Jun]] -> 134,239.00 kr | I36: =FaktiskaUtbildningOchResor[[#Totals],[Jul]]+FaktiskaMarknadsföring[[#Totals],[Jul]]+FaktiskaKontor[[#Totals],[Jul]]+FaktiskaAnställda[[#Totals],[Jul]] -> 0.00 kr | J36: =FaktiskaUtbildningOchResor[[#Totals],[Aug]]+FaktiskaMarknadsföring[[#Totals],[Aug]]+FaktiskaKontor[[#Totals],[Aug]]+FaktiskaAnställda[[#Totals],[Aug]] -> 0.00 kr | K36: =FaktiskaUtbildningOchResor[[#Totals],[Sep]]+FaktiskaMarknadsföring[[#Totals],[Sep]]+FaktiskaKontor[[#Totals],[Sep]]+FaktiskaAnställda[[#Totals],[Sep]] -> 0.00 kr | L36: =FaktiskaUtbildningOchResor[[#Totals],[Okt]]+FaktiskaMarknadsföring[[#Totals],[Okt]]+FaktiskaKontor[[#Totals],[Okt]]+FaktiskaAnställda[[#Totals],[Okt]] -> 0.00 kr | M36: =FaktiskaUtbildningOchResor[[#Totals],[Nov]]+FaktiskaMarknadsföring[[#Totals],[Nov]]+FaktiskaKontor[[#Totals],[Nov]]+FaktiskaAnställda[[#Totals],[Nov]] -> 0.00 kr | N36: =FaktiskaUtbildningOchResor[[#Totals],[Dec]]+FaktiskaMarknadsföring[[#Totals],[Dec]]+FaktiskaKontor[[#Totals],[Dec]]+FaktiskaAnställda[[#Totals],[Dec]] -> 0.00 kr | O36: =FaktiskaUtbildningOchResor[[#Totals],[ÅR]]+FaktiskaMarknadsföring[[#Totals],[ÅR]]+FaktiskaKontor[[#Totals],[ÅR]]+FaktiskaAnställda[[#Totals],[ÅR]] -> 782,939.00 kr
B37: Summa faktiska utgifter | C37: =SUM($C$36:C36) -> 129,682.00 kr | D37: =SUM($C$36:D36) -> 257,486.00 kr | E37: =SUM($C$36:E36) -> 383,051.00 kr | F37: =SUM($C$36:F36) -> 520,445.00 kr | G37: =SUM($C$36:G36) -> 648,700.00 kr | H37: =SUM($C$36:H36) -> 782,939.00 kr | I37: =SUM($C$36:I36) -> 782,939.00 kr | J37: =SUM($C$36:J36) -> 782,939.00 kr | K37: =SUM($C$36:K36) -> 782,939.00 kr | L37: =SUM($C$36:L36) -> 782,939.00 kr | M37: =SUM($C$36:M36) -> 782,939.00 kr | N37: =SUM($C$36:N36) -> 782,939.00 kr

Sheet UTGIFTSAVVIKELSER
B2: ='BERÄKNADE UTGIFTER'!B2:D3 -> Företagsnamn | K2: =worksheet_title -> Detaljerade utgiftsberäkningar
K3: Skuggade celler är beräkningar.
B4: UTGIFTSAVVIKELSER | C4: JAN | D4: FEB | E4: MAR | F4: APR | G4: MAJ | H4: JUN | I4: JUL | J4: AUG | K4: SEPT | L4: OKT | M4: NOV | N4: DEC | O4: ÅR
B5: Kostnader för anställda | C5: Jan | D5: Feb | E5: Mar | F5: Apr | G5: Maj | H5: Jun | I5: Jul | J5: Aug | K5: Sep | L5: Okt | M5: Nov | N5: Dec | O5: ÅR
B6: Lön | C6: =INDEX(PlaneradeAnställda[],MATCH(INDEX(AvvikelserAnställda[],ROW()-ROW(AvvikelserAnställda[[#Headers],[Jan]]),1),INDEX(PlaneradeAnställda[],,1),0),MATCH(AvvikelserAnställda[[#Headers],[Jan]],PlaneradeAnställda[#Headers],0))-INDEX(FaktiskaAnställda[],MATCH(INDEX(AvvikelserAnställda[],ROW()-ROW(AvvikelserAnställda[[#Headers],[Jan]]),1),INDEX(PlaneradeAnställda[],,1),0),MATCH(AvvikelserAnställda[[#Headers],[Jan]],FaktiskaAnställda[#Headers],0)) -> 0.00 kr | D6: =INDEX(PlaneradeAnställda[],MATCH(INDEX(AvvikelserAnställda[],ROW()-ROW(AvvikelserAnställda[[#Headers],[Feb]]),1),INDEX(PlaneradeAnställda[],,1),0),MATCH(AvvikelserAnställda[[#Headers],[Feb]],PlaneradeAnställda[#Headers],0))-INDEX(FaktiskaAnställda[],MATCH(INDEX(AvvikelserAnställda[],ROW()-ROW(AvvikelserAnställda[[#Headers],[Feb]]),1),INDEX(PlaneradeAnställda[],,1),0),MATCH(AvvikelserAnställda[[#Headers],[Feb]],FaktiskaAnställda[#Headers],0)) -> 0.00 kr | E6: =INDEX(PlaneradeAnställda[],MATCH(INDEX(AvvikelserAnställda[],ROW()-ROW(AvvikelserAnställda[[#Headers],[Mar]]),1),INDEX(PlaneradeAnställda[],,1),0),MATCH(AvvikelserAnställda[[#Headers],[Mar]],PlaneradeAnställda[#Headers],0))-INDEX(FaktiskaAnställda[],MATCH(INDEX(AvvikelserAnställda[],ROW()-ROW(AvvikelserAnställda[[#Headers],[Mar]]),1),INDEX(PlaneradeAnställda[],,1),0),MATCH(AvvikelserAnställda[[#Headers],[Mar]],FaktiskaAnställda[#Headers],0)) -> 0.00 kr | F6: =INDEX(PlaneradeAnställda[],MATCH(INDEX(AvvikelserAnställda[],ROW()-ROW(AvvikelserAnställda[[#Headers],[Apr]]),1),INDEX(PlaneradeAnställda[],,1),0),MATCH(AvvikelserAnställda[[#Headers],[Apr]],PlaneradeAnställda[#Headers],0))-INDEX(FaktiskaAnställda[],MATCH(INDEX(AvvikelserAnställda[],ROW()-ROW(AvvikelserAnställda[[#Headers],[Apr]]),1),INDEX(PlaneradeAnställda[],,1),0),MATCH(AvvikelserAnställda[[#Headers],[Apr]],FaktiskaAnställda[#Headers],0)) -> -500.00 kr | G6: =INDEX(PlaneradeAnställda[],MATCH(INDEX(AvvikelserAnställda[],ROW()-ROW(AvvikelserAnställda[[#Headers],[Maj]]),1),INDEX(PlaneradeAnställda[],,1),0),MATCH(AvvikelserAnställda[[#Headers],[Maj]],PlaneradeAnställda[#Headers],0))-INDEX(FaktiskaAnställda[],MATCH(INDEX(AvvikelserAnställda[],ROW()-ROW(AvvikelserAnställda[[#Headers],[Maj]]),1),INDEX(PlaneradeAnställda[],,1),0),MATCH(AvvikelserAnställda[[#Headers],[Maj]],FaktiskaAnställda[#Headers],0)) -> -500.00 kr | H6: =INDEX(PlaneradeAnställda[],MATCH(INDEX(AvvikelserAnställda[],ROW()-ROW(AvvikelserAnställda[[#Headers],[Jun]]),1),INDEX(PlaneradeAnställda[],,1),0),MATCH(AvvikelserAnställda[[#Headers],[Jun]],PlaneradeAnställda[#Headers],0))-INDEX(FaktiskaAnställda[],MATCH(INDEX(AvvikelserAnställda[],ROW()-ROW(AvvikelserAnställda[[#Headers],[Jun]]),1),INDEX(PlaneradeAnställda[],,1),0),MATCH(AvvikelserAnställda[[#Headers],[Jun]],FaktiskaAnställda[#Headers],0)) -> -500.00 kr | I6: =INDEX(PlaneradeAnställda[],MATCH(INDEX(AvvikelserAnställda[],ROW()-ROW(AvvikelserAnställda[[#Headers],[Jul]]),1),INDEX(PlaneradeAnställda[],,1),0),MATCH(AvvikelserAnställda[[#Headers],[Jul]],PlaneradeAnställda[#Headers],0))-INDEX(FaktiskaAnställda[],MATCH(INDEX(AvvikelserAnställda[],ROW()-ROW(AvvikelserAnställda[[#Headers],[Jul]]),1),INDEX(PlaneradeAnställda[],,1),0),MATCH(AvvikelserAnställda[[#Headers],[Jul]],FaktiskaAnställda[#Headers],0)) -> 87,500.00 kr | J6: =INDEX(PlaneradeAnställda[],MATCH(INDEX(AvvikelserAnställda[],ROW()-ROW(AvvikelserAnställda[[#Headers],[Aug]]),1),INDEX(PlaneradeAnställda[],,1),0),MATCH(AvvikelserAnställda[[#Headers],[Aug]],PlaneradeAnställda[#Headers],0))-INDEX(FaktiskaAnställda[],MATCH(INDEX(AvvikelserAnställda[],ROW()-ROW(AvvikelserAnställda[[#Headers],[Aug]]),1),INDEX(PlaneradeAnställda[],,1),0),MATCH(AvvikelserAnställda[[#Headers],[Aug]],FaktiskaAnställda[#Headers],0)) -> 92,400.00 kr | K6: =INDEX(PlaneradeAnställda[],MATCH(INDEX(AvvikelserAnställda[],ROW()-ROW(AvvikelserAnställda[[#Headers],[Sep]]),1),INDEX(PlaneradeAnställda[],,1),0),MATCH(AvvikelserAnställda[[#Headers],[Sep]],PlaneradeAnställda[#Headers],0))-INDEX(FaktiskaAnställda[],MATCH(INDEX(AvvikelserAnställda[],ROW()-ROW(AvvikelserAnställda[[#Headers],[Sep]]),1),INDEX(PlaneradeAnställda[],,1),0),MATCH(AvvikelserAnställda[[#Headers],[Sep]],FaktiskaAnställda[#Headers],0)) -> 92,400.00 kr | L6: =INDEX(PlaneradeAnställda[],MATCH(INDEX(AvvikelserAnställda[],ROW()-ROW(AvvikelserAnställda[[#Headers],[Okt]]),1),INDEX(PlaneradeAnställda[],,1),0),MATCH(AvvikelserAnställda[[#Headers],[Okt]],PlaneradeAnställda[#Headers],0))-INDEX(FaktiskaAnställda[],MATCH(INDEX(AvvikelserAnställda[],ROW()-ROW(AvvikelserAnställda[[#Headers],[Okt]]),1),INDEX(PlaneradeAnställda[],,1),0),MATCH(AvvikelserAnställda[[#Headers],[Okt]],FaktiskaAnställda[#Headers],0)) -> 92,400.00 kr | M6: =INDEX(PlaneradeAnställda[],MATCH(INDEX(AvvikelserAnställda[],ROW()-ROW(AvvikelserAnställda[[#Headers],[Nov]]),1),INDEX(PlaneradeAnställda[],,1),0),MATCH(AvvikelserAnställda[[#Headers],[Nov]],PlaneradeAnställda[#Headers],0))-INDEX(FaktiskaAnställda[],MATCH(INDEX(AvvikelserAnställda[],ROW()-ROW(AvvikelserAnställda[[#Headers],[Nov]]),1),INDEX(PlaneradeAnställda[],,1),0),MATCH(AvvikelserAnställda[[#Headers],[Nov]],FaktiskaAnställda[#Headers],0)) -> 92,400.00 kr | N6: =INDEX(PlaneradeAnställda[],MATCH(INDEX(AvvikelserAnställda[],ROW()-ROW(AvvikelserAnställda[[#Headers],[Dec]]),1),INDEX(PlaneradeAnställda[],,1),0),MATCH(AvvikelserAnställda[[#Headers],[Dec]],PlaneradeAnställda[#Headers],0))-INDEX(FaktiskaAnställda[],MATCH(INDEX(AvvikelserAnställda[],ROW()-ROW(AvvikelserAnställda[[#Headers],[Dec]]),1),INDEX(PlaneradeAnställda[],,1),0),MATCH(AvvikelserAnställda[[#Headers],[Dec]],FaktiskaAnställda[#Headers],0)) -> 92,400.00 kr | O6: =SUM(AvvikelserAnställda[[#This Row],[Jan]:[Dec]]) -> 548,000.00 kr
B7: Förmåner | C7: =INDEX(PlaneradeAnställda[],MATCH(INDEX(AvvikelserAnställda[],ROW()-ROW(AvvikelserAnställda[[#Headers],[Jan]]),1),INDEX(PlaneradeAnställda[],,1),0),MATCH(AvvikelserAnställda[[#Headers],[Jan]],PlaneradeAnställda[#Headers],0))-INDEX(FaktiskaAnställda[],MATCH(INDEX(AvvikelserAnställda[],ROW()-ROW(AvvikelserAnställda[[#Headers],[Jan]]),1),INDEX(PlaneradeAnställda[],,1),0),MATCH(AvvikelserAnställda[[#Headers],[Jan]],FaktiskaAnställda[#Headers],0)) -> 0.00 kr | D7: =INDEX(PlaneradeAnställda[],MATCH(INDEX(AvvikelserAnställda[],ROW()-ROW(AvvikelserAnställda[[#Headers],[Feb]]),1),INDEX(PlaneradeAnställda[],,1),0),MATCH(AvvikelserAnställda[[#Headers],[Feb]],PlaneradeAnställda[#Headers],0))-INDEX(FaktiskaAnställda[],MATCH(INDEX(AvvikelserAnställda[],ROW()-ROW(AvvikelserAnställda[[#Headers],[Feb]]),1),INDEX(PlaneradeAnställda[],,1),0),MATCH(AvvikelserAnställda[[#Headers],[Feb]],FaktiskaAnställda[#Headers],0)) -> 0.00 kr | E7: =INDEX(PlaneradeAnställda[],MATCH(INDEX(AvvikelserAnställda[],ROW()-ROW(AvvikelserAnställda[[#Headers],[Mar]]),1),INDEX(PlaneradeAnställda[],,1),0),MATCH(AvvikelserAnställda[[#Headers],[Mar]],PlaneradeAnställda[#Headers],0))-INDEX(FaktiskaAnställda[],MATCH(INDEX(AvvikelserAnställda[],ROW()-ROW(AvvikelserAnställda[[#Headers],[Mar]]),1),INDEX(PlaneradeAnställda[],,1),0),MATCH(AvvikelserAnställda[[#Headers],[Mar]],FaktiskaAnställda[#Headers],0)) -> 0.00 kr | F7: =INDEX(PlaneradeAnställda[],MATCH(INDEX(AvvikelserAnställda[],ROW()-ROW(AvvikelserAnställda[[#Headers],[Apr]]),1),INDEX(PlaneradeAnställda[],,1),0),MATCH(AvvikelserAnställda[[#Headers],[Apr]],PlaneradeAnställda[#Headers],0))-INDEX(FaktiskaAnställda[],MATCH(INDEX(AvvikelserAnställda[],ROW()-ROW(AvvikelserAnställda[[#Headers],[Apr]]),1),INDEX(PlaneradeAnställda[],,1),0),MATCH(AvvikelserAnställda[[#Headers],[Apr]],FaktiskaAnställda[#Headers],0)) -> -135.00 kr | G7: =INDEX(PlaneradeAnställda[],MATCH(INDEX(AvvikelserAnställda[],ROW()-ROW(AvvikelserAnställda[[#Headers],[Maj]]),1),INDEX(PlaneradeAnställda[],,1),0),MATCH(AvvikelserAnställda[[#Headers],[Maj]],PlaneradeAnställda[#Headers],0))-INDEX(FaktiskaAnställda[],MATCH(INDEX(AvvikelserAnställda[],ROW()-ROW(AvvikelserAnställda[[#Headers],[Maj]]),1),INDEX(PlaneradeAnställda[],,1),0),MATCH(AvvikelserAnställda[[#Headers],[Maj]],FaktiskaAnställda[#Headers],0)) -> -135.00 kr | H7: =INDEX(PlaneradeAnställda[],MATCH(INDEX(AvvikelserAnställda[],ROW()-ROW(AvvikelserAnställda[[#Headers],[Jun]]),1),INDEX(PlaneradeAnställda[],,1),0),MATCH(AvvikelserAnställda[[#Headers],[Jun]],PlaneradeAnställda[#Headers],0))-INDEX(FaktiskaAnställda[],MATCH(INDEX(AvvikelserAnställda[],ROW()-ROW(AvvikelserAnställda[[#Headers],[Jun]]),1),INDEX(PlaneradeAnställda[],,1),0),MATCH(AvvikelserAnställda[[#Headers],[Jun]],FaktiskaAnställda[#Headers],0)) -> -135.00 kr | I7: =INDEX(PlaneradeAnställda[],MATCH(INDEX(AvvikelserAnställda[],ROW()-ROW(AvvikelserAnställda[[#Headers],[Jul]]),1),INDEX(PlaneradeAnställda[],,1),0),MATCH(AvvikelserAnställda[[#Headers],[Jul]],PlaneradeAnställda[#Headers],0))-INDEX(FaktiskaAnställda[],MATCH(INDEX(AvvikelserAnställda[],ROW()-ROW(AvvikelserAnställda[[#Headers],[Jul]]),1),INDEX(PlaneradeAnställda[],,1),0),MATCH(AvvikelserAnställda[[#Headers],[Jul]],FaktiskaAnställda[#Headers],0)) -> 23,625.00 kr | J7: =INDEX(PlaneradeAnställda[],MATCH(INDEX(AvvikelserAnställda[],ROW()-ROW(AvvikelserAnställda[[#Headers],[Aug]]),1),INDEX(PlaneradeAnställda[],,1),0),MATCH(AvvikelserAnställda[[#Headers],[Aug]],PlaneradeAnställda[#Headers],0))-INDEX(FaktiskaAnställda[],MATCH(INDEX(AvvikelserAnställda[],ROW()-ROW(AvvikelserAnställda[[#Headers],[Aug]]),1),INDEX(PlaneradeAnställda[],,1),0),MATCH(AvvikelserAnställda[[#Headers],[Aug]],FaktiskaAnställda[#Headers],0)) -> 24,948.00 kr | K7: =INDEX(PlaneradeAnställda[],MATCH(INDEX(AvvikelserAnställda[],ROW()-ROW(AvvikelserAnställda[[#Headers],[Sep]]),1),INDEX(PlaneradeAnställda[],,1),0),MATCH(AvvikelserAnställda[[#Headers],[Sep]],PlaneradeAnställda[#Headers],0))-INDEX(FaktiskaAnställda[],MATCH(INDEX(AvvikelserAnställda[],ROW()-ROW(AvvikelserAnställda[[#Headers],[Sep]]),1),INDEX(PlaneradeAnställda[],,1),0),MATCH(AvvikelserAnställda[[#Headers],[Sep]],FaktiskaAnställda[#Headers],0)) -> 24,948.00 kr | L7: =INDEX(PlaneradeAnställda[],MATCH(INDEX(AvvikelserAnställda[],ROW()-ROW(AvvikelserAnställda[[#Headers],[Okt]]),1),INDEX(PlaneradeAnställda[],,1),0),MATCH(AvvikelserAnställda[[#Headers],[Okt]],PlaneradeAnställda[#Headers],0))-INDEX(FaktiskaAnställda[],MATCH(INDEX(AvvikelserAnställda[],ROW()-ROW(AvvikelserAnställda[[#Headers],[Okt]]),1),INDEX(PlaneradeAnställda[],,1),0),MATCH(AvvikelserAnställda[[#Headers],[Okt]],FaktiskaAnställda[#Headers],0)) -> 24,948.00 kr | M7: =INDEX(PlaneradeAnställda[],MATCH(INDEX(AvvikelserAnställda[],ROW()-ROW(AvvikelserAnställda[[#Headers],[Nov]]),1),INDEX(PlaneradeAnställda[],,1),0),MATCH(AvvikelserAnställda[[#Headers],[Nov]],PlaneradeAnställda[#Headers],0))-INDEX(FaktiskaAnställda[],MATCH(INDEX(AvvikelserAnställda[],ROW()-ROW(AvvikelserAnställda[[#Headers],[Nov]]),1),INDEX(PlaneradeAnställda[],,1),0),MATCH(AvvikelserAnställda[[#Headers],[Nov]],FaktiskaAnställda[#Headers],0)) -> 24,948.00 kr | N7: =INDEX(PlaneradeAnställda[],MATCH(INDEX(AvvikelserAnställda[],ROW()-ROW(AvvikelserAnställda[[#Headers],[Dec]]),1),INDEX(PlaneradeAnställda[],,1),0),MATCH(AvvikelserAnställda[[#Headers],[Dec]],PlaneradeAnställda[#Headers],0))-INDEX(FaktiskaAnställda[],MATCH(INDEX(AvvikelserAnställda[],ROW()-ROW(AvvikelserAnställda[[#Headers],[Dec]]),1),INDEX(PlaneradeAnställda[],,1),0),MATCH(AvvikelserAnställda[[#Headers],[Dec]],FaktiskaAnställda[#Headers],0)) -> 24,948.00 kr | O7: =SUM(AvvikelserAnställda[[#This Row],[Jan]:[Dec]]) -> 147,960.00 kr
B8: Delsumma | C8: =SUBTOTAL(109,AvvikelserAnställda[Jan]) -> 0.00 kr | D8: =SUBTOTAL(109,AvvikelserAnställda[Feb]) -> 0.00 kr | E8: =SUBTOTAL(109,AvvikelserAnställda[Mar]) -> 0.00 kr | F8: =SUBTOTAL(109,AvvikelserAnställda[Apr]) -> -635.00 kr | G8: =SUBTOTAL(109,AvvikelserAnställda[Maj]) -> -635.00 kr | H8: =SUBTOTAL(109,AvvikelserAnställda[Jun]) -> -635.00 kr | I8: =SUBTOTAL(109,AvvikelserAnställda[Jul]) -> 111,125.00 kr | J8: =SUBTOTAL(109,AvvikelserAnställda[Aug]) -> 117,348.00 kr | K8: =SUBTOTAL(109,AvvikelserAnställda[Sep]) -> 117,348.00 kr | L8: =SUBTOTAL(109,AvvikelserAnställda[Okt]) -> 117,348.00 kr | M8: =SUBTOTAL(109,AvvikelserAnställda[Nov]) -> 117,348.00 kr | N8: =SUBTOTAL(109,AvvikelserAnställda[Dec]) -> 117,348.00 kr | O8: =SUBTOTAL(109,AvvikelserAnställda[ÅR]) -> 695,960.00 kr
B10: Kontorskostnader | C10: Jan | D10: Feb | E10: Mar | F10: Apr | G10: Maj | H10: Jun | I10: Jul | J10: Aug | K10: Sep | L10: Okt | M10: Nov | N10: Dec | O10: ÅR
B11: Kontorshyra | C11: =INDEX(KontorsPlan[],MATCH(INDEX(AvvikelserKontor[],ROW()-ROW(AvvikelserKontor[[#Headers],[Jan]]),1),INDEX(KontorsPlan[],,1),0),MATCH(AvvikelserKontor[[#Headers],[Jan]],KontorsPlan[#Headers],0))-INDEX(FaktiskaKontor[],MATCH(INDEX(AvvikelserKontor[],ROW()-ROW(AvvikelserKontor[[#Headers],[Jan]]),1),INDEX(KontorsPlan[],,1),0),MATCH(AvvikelserKontor[[#Headers],[Jan]],FaktiskaKontor[#Headers],0)) -> 0.00 kr | D11: =INDEX(KontorsPlan[],MATCH(INDEX(AvvikelserKontor[],ROW()-ROW(AvvikelserKontor[[#Headers],[Feb]]),1),INDEX(KontorsPlan[],,1),0),MATCH(AvvikelserKontor[[#Headers],[Feb]],KontorsPlan[#Headers],0))-INDEX(FaktiskaKontor[],MATCH(INDEX(AvvikelserKontor[],ROW()-ROW(AvvikelserKontor[[#Headers],[Feb]]),1),INDEX(KontorsPlan[],,1),0),MATCH(AvvikelserKontor[[#Headers],[Feb]],FaktiskaKontor[#Headers],0)) -> 0.00 kr | E11: =INDEX(KontorsPlan[],MATCH(INDEX(AvvikelserKontor[],ROW()-ROW(AvvikelserKontor[[#Headers],[Mar]]),1),INDEX(KontorsPlan[],,1),0),MATCH(AvvikelserKontor[[#Headers],[Mar]],KontorsPlan[#Headers],0))-INDEX(FaktiskaKontor[],MATCH(INDEX(AvvikelserKontor[],ROW()-ROW(AvvikelserKontor[[#Headers],[Mar]]),1),INDEX(KontorsPlan[],,1),0),MATCH(AvvikelserKontor[[#Headers],[Mar]],FaktiskaKontor[#Headers],0)) -> 0.00 kr | F11: =INDEX(KontorsPlan[],MATCH(INDEX(AvvikelserKontor[],ROW()-ROW(AvvikelserKontor[[#Headers],[Apr]]),1),INDEX(KontorsPlan[],,1),0),MATCH(AvvikelserKontor[[#Headers],[Apr]],KontorsPlan[#Headers],0))-INDEX(FaktiskaKontor[],MATCH(INDEX(AvvikelserKontor[],ROW()-ROW(AvvikelserKontor[[#Headers],[Apr]]),1),INDEX(KontorsPlan[],,1),0),MATCH(AvvikelserKontor[[#Headers],[Apr]],FaktiskaKontor[#Headers],0)) -> 0.00 kr | G11: =INDEX(KontorsPlan[],MATCH(INDEX(AvvikelserKontor[],ROW()-ROW(AvvikelserKontor[[#Headers],[Maj]]),1),INDEX(KontorsPlan[],,1),0),MATCH(AvvikelserKontor[[#Headers],[Maj]],KontorsPlan[#Headers],0))-INDEX(FaktiskaKontor[],MATCH(INDEX(AvvikelserKontor[],ROW()-ROW(AvvikelserKontor[[#Headers],[Maj]]),1),INDEX(KontorsPlan[],,1),0),MATCH(AvvikelserKontor[[#Headers],[Maj]],FaktiskaKontor[#Headers],0)) -> 0.00 kr | H11: =INDEX(KontorsPlan[],MATCH(INDEX(AvvikelserKontor[],ROW()-ROW(AvvikelserKontor[[#Headers],[Jun]]),1),INDEX(KontorsPlan[],,1),0),MATCH(AvvikelserKontor[[#Headers],[Jun]],KontorsPlan[#Headers],0))-INDEX(FaktiskaKontor[],MATCH(INDEX(AvvikelserKontor[],ROW()-ROW(AvvikelserKontor[[#Headers],[Jun]]),1),INDEX(KontorsPlan[],,1),0),MATCH(AvvikelserKontor[[#Headers],[Jun]],FaktiskaKontor[#Headers],0)) -> 0.00 kr | I11: =INDEX(KontorsPlan[],MATCH(INDEX(AvvikelserKontor[],ROW()-ROW(AvvikelserKontor[[#Headers],[Jul]]),1),INDEX(KontorsPlan[],,1),0),MATCH(AvvikelserKontor[[#Headers],[Jul]],KontorsPlan[#Headers],0))-INDEX(FaktiskaKontor[],MATCH(INDEX(AvvikelserKontor[],ROW()-ROW(AvvikelserKontor[[#Headers],[Jul]]),1),INDEX(KontorsPlan[],,1),0),MATCH(AvvikelserKontor[[#Headers],[Jul]],FaktiskaKontor[#Headers],0)) -> 9,800.00 kr | J11: =INDEX(KontorsPlan[],MATCH(INDEX(AvvikelserKontor[],ROW()-ROW(AvvikelserKontor[[#Headers],[Aug]]),1),INDEX(KontorsPlan[],,1),0),MATCH(AvvikelserKontor[[#Headers],[Aug]],KontorsPlan[#Headers],0))-INDEX(FaktiskaKontor[],MATCH(INDEX(AvvikelserKontor[],ROW()-ROW(AvvikelserKontor[[#Headers],[Aug]]),1),INDEX(KontorsPlan[],,1),0),MATCH(AvvikelserKontor[[#Headers],[Aug]],FaktiskaKontor[#Headers],0)) -> 9,800.00 kr | K11: =INDEX(KontorsPlan[],MATCH(INDEX(AvvikelserKontor[],ROW()-ROW(AvvikelserKontor[[#Headers],[Sep]]),1),INDEX(KontorsPlan[],,1),0),MATCH(AvvikelserKontor[[#Headers],[Sep]],KontorsPlan[#Headers],0))-INDEX(FaktiskaKontor[],MATCH(INDEX(AvvikelserKontor[],ROW()-ROW(AvvikelserKontor[[#Headers],[Sep]]),1),INDEX(KontorsPlan[],,1),0),MATCH(AvvikelserKontor[[#Headers],[Sep]],FaktiskaKontor[#Headers],0)) -> 9,800.00 kr | L11: =INDEX(KontorsPlan[],MATCH(INDEX(AvvikelserKontor[],ROW()-ROW(AvvikelserKontor[[#Headers],[Okt]]),1),INDEX(KontorsPlan[],,1),0),MATCH(AvvikelserKontor[[#Headers],[Okt]],KontorsPlan[#Headers],0))-INDEX(FaktiskaKontor[],MATCH(INDEX(AvvikelserKontor[],ROW()-ROW(AvvikelserKontor[[#Headers],[Okt]]),1),INDEX(KontorsPlan[],,1),0),MATCH(AvvikelserKontor[[#Headers],[Okt]],FaktiskaKontor[#Headers],0)) -> 9,800.00 kr | M11: =INDEX(KontorsPlan[],MATCH(INDEX(AvvikelserKontor[],ROW()-ROW(AvvikelserKontor[[#Headers],[Nov]]),1),INDEX(KontorsPlan[],,1),0),MATCH(AvvikelserKontor[[#Headers],[Nov]],KontorsPlan[#Headers],0))-INDEX(FaktiskaKontor[],MATCH(INDEX(AvvikelserKontor[],ROW()-ROW(AvvikelserKontor[[#Headers],[Nov]]),1),INDEX(KontorsPlan[],,1),0),MATCH(AvvikelserKontor[[#Headers],[Nov]],FaktiskaKontor[#Headers],0)) -> 9,800.00 kr | N11: =INDEX(KontorsPlan[],MATCH(INDEX(AvvikelserKontor[],ROW()-ROW(AvvikelserKontor[[#Headers],[Dec]]),1),INDEX(KontorsPlan[],,1),0),MATCH(AvvikelserKontor[[#Headers],[Dec]],KontorsPlan[#Headers],0))-INDEX(FaktiskaKontor[],MATCH(INDEX(AvvikelserKontor[],ROW()-ROW(AvvikelserKontor[[#Headers],[Dec]]),1),INDEX(KontorsPlan[],,1),0),MATCH(AvvikelserKontor[[#Headers],[Dec]],FaktiskaKontor[#Headers],0)) -> 9,800.00 kr | O11: =SUM(AvvikelserKontor[[#This Row],[Jan]:[Dec]]) -> 58,800.00 kr
B12: Gas | C12: =INDEX(KontorsPlan[],MATCH(INDEX(AvvikelserKontor[],ROW()-ROW(AvvikelserKontor[[#Headers],[Jan]]),1),INDEX(KontorsPlan[],,1),0),MATCH(AvvikelserKontor[[#Headers],[Jan]],KontorsPlan[#Headers],0))-INDEX(FaktiskaKontor[],MATCH(INDEX(AvvikelserKontor[],ROW()-ROW(AvvikelserKontor[[#Headers],[Jan]]),1),INDEX(KontorsPlan[],,1),0),MATCH(AvvikelserKontor[[#Headers],[Jan]],FaktiskaKontor[#Headers],0)) -> -4.00 kr | D12: =INDEX(KontorsPlan[],MATCH(INDEX(AvvikelserKontor[],ROW()-ROW(AvvikelserKontor[[#Headers],[Feb]]),1),INDEX(KontorsPlan[],,1),0),MATCH(AvvikelserKontor[[#Headers],[Feb]],KontorsPlan[#Headers],0))-INDEX(FaktiskaKontor[],MATCH(INDEX(AvvikelserKontor[],ROW()-ROW(AvvikelserKontor[[#Headers],[Feb]]),1),INDEX(KontorsPlan[],,1),0),MATCH(AvvikelserKontor[[#Headers],[Feb]],FaktiskaKontor[#Headers],0)) -> -30.00 kr | E12: =INDEX(KontorsPlan[],MATCH(INDEX(AvvikelserKontor[],ROW()-ROW(AvvikelserKontor[[#Headers],[Mar]]),1),INDEX(KontorsPlan[],,1),0),MATCH(AvvikelserKontor[[#Headers],[Mar]],KontorsPlan[#Headers],0))-INDEX(FaktiskaKontor[],MATCH(INDEX(AvvikelserKontor[],ROW()-ROW(AvvikelserKontor[[#Headers],[Mar]]),1),INDEX(KontorsPlan[],,1),0),MATCH(AvvikelserKontor[[#Headers],[Mar]],FaktiskaKontor[#Headers],0)) -> 15.00 kr | F12: =INDEX(KontorsPlan[],MATCH(INDEX(AvvikelserKontor[],ROW()-ROW(AvvikelserKontor[[#Headers],[Apr]]),1),INDEX(KontorsPlan[],,1),0),MATCH(AvvikelserKontor[[#Headers],[Apr]],KontorsPlan[#Headers],0))-INDEX(FaktiskaKontor[],MATCH(INDEX(AvvikelserKontor[],ROW()-ROW(AvvikelserKontor[[#Headers],[Apr]]),1),INDEX(KontorsPlan[],,1),0),MATCH(AvvikelserKontor[[#Headers],[Apr]],FaktiskaKontor[#Headers],0)) -> -130.00 kr | G12: =INDEX(KontorsPlan[],MATCH(INDEX(AvvikelserKontor[],ROW()-ROW(AvvikelserKontor[[#Headers],[Maj]]),1),INDEX(KontorsPlan[],,1),0),MATCH(AvvikelserKontor[[#Headers],[Maj]],KontorsPlan[#Headers],0))-INDEX(FaktiskaKontor[],MATCH(INDEX(AvvikelserKontor[],ROW()-ROW(AvvikelserKontor[[#Headers],[Maj]]),1),INDEX(KontorsPlan[],,1),0),MATCH(AvvikelserKontor[[#Headers],[Maj]],FaktiskaKontor[#Headers],0)) -> 13.00 kr | H12: =INDEX(KontorsPlan[],MATCH(INDEX(AvvikelserKontor[],ROW()-ROW(AvvikelserKontor[[#Headers],[Jun]]),1),INDEX(KontorsPlan[],,1),0),MATCH(AvvikelserKontor[[#Headers],[Jun]],KontorsPlan[#Headers],0))-INDEX(FaktiskaKontor[],MATCH(INDEX(AvvikelserKontor[],ROW()-ROW(AvvikelserKontor[[#Headers],[Jun]]),1),INDEX(KontorsPlan[],,1),0),MATCH(AvvikelserKontor[[#Headers],[Jun]],FaktiskaKontor[#Headers],0)) -> 12.00 kr | I12: =INDEX(KontorsPlan[],MATCH(INDEX(AvvikelserKontor[],ROW()-ROW(AvvikelserKontor[[#Headers],[Jul]]),1),INDEX(KontorsPlan[],,1),0),MATCH(AvvikelserKontor[[#Headers],[Jul]],KontorsPlan[#Headers],0))-INDEX(FaktiskaKontor[],MATCH(INDEX(AvvikelserKontor[],ROW()-ROW(AvvikelserKontor[[#Headers],[Jul]]),1),INDEX(KontorsPlan[],,1),0),MATCH(AvvikelserKontor[[#Headers],[Jul]],FaktiskaKontor[#Headers],0)) -> 100.00 kr | J12: =INDEX(KontorsPlan[],MATCH(INDEX(AvvikelserKontor[],ROW()-ROW(AvvikelserKontor[[#Headers],[Aug]]),1),INDEX(KontorsPlan[],,1),0),MATCH(AvvikelserKontor[[#Headers],[Aug]],KontorsPlan[#Headers],0))-INDEX(FaktiskaKontor[],MATCH(INDEX(AvvikelserKontor[],ROW()-ROW(AvvikelserKontor[[#Headers],[Aug]]),1),INDEX(KontorsPlan[],,1),0),MATCH(AvvikelserKontor[[#Headers],[Aug]],FaktiskaKontor[#Headers],0)) -> 100.00 kr | K12: =INDEX(KontorsPlan[],MATCH(INDEX(AvvikelserKontor[],ROW()-ROW(AvvikelserKontor[[#Headers],[Sep]]),1),INDEX(KontorsPlan[],,1),0),MATCH(AvvikelserKontor[[#Headers],[Sep]],KontorsPlan[#Headers],0))-INDEX(FaktiskaKontor[],MATCH(INDEX(AvvikelserKontor[],ROW()-ROW(AvvikelserKontor[[#Headers],[Sep]]),1),INDEX(KontorsPlan[],,1),0),MATCH(AvvikelserKontor[[#Headers],[Sep]],FaktiskaKontor[#Headers],0)) -> 100.00 kr | L12: =INDEX(KontorsPlan[],MATCH(INDEX(AvvikelserKontor[],ROW()-ROW(AvvikelserKontor[[#Headers],[Okt]]),1),INDEX(KontorsPlan[],,1),0),MATCH(AvvikelserKontor[[#Headers],[Okt]],KontorsPlan[#Headers],0))-INDEX(FaktiskaKontor[],MATCH(INDEX(AvvikelserKontor[],ROW()-ROW(AvvikelserKontor[[#Headers],[Okt]]),1),INDEX(KontorsPlan[],,1),0),MATCH(AvvikelserKontor[[#Headers],[Okt]],FaktiskaKontor[#Headers],0)) -> 100.00 kr | M12: =INDEX(KontorsPlan[],MATCH(INDEX(AvvikelserKontor[],ROW()-ROW(AvvikelserKontor[[#Headers],[Nov]]),1),INDEX(KontorsPlan[],,1),0),MATCH(AvvikelserKontor[[#Headers],[Nov]],KontorsPlan[#Headers],0))-INDEX(FaktiskaKontor[],MATCH(INDEX(AvvikelserKontor[],ROW()-ROW(AvvikelserKontor[[#Headers],[Nov]]),1),INDEX(KontorsPlan[],,1),0),MATCH(AvvikelserKontor[[#Headers],[Nov]],FaktiskaKontor[#Headers],0)) -> 400.00 kr | N12: =INDEX(KontorsPlan[],MATCH(INDEX(AvvikelserKontor[],ROW()-ROW(AvvikelserKontor[[#Headers],[Dec]]),1),INDEX(KontorsPlan[],,1),0),MATCH(AvvikelserKontor[[#Headers],[Dec]],KontorsPlan[#Headers],0))-INDEX(FaktiskaKontor[],MATCH(INDEX(AvvikelserKontor[],ROW()-ROW(AvvikelserKontor[[#Headers],[Dec]]),1),INDEX(KontorsPlan[],,1),0),MATCH(AvvikelserKontor[[#Headers],[Dec]],FaktiskaKontor[#Headers],0)) -> 400.00 kr | O12: =SUM(AvvikelserKontor[[#This Row],[Jan]:[Dec]]) -> 1,076.00 kr
B13: El | C13: =INDEX(KontorsPlan[],MATCH(INDEX(AvvikelserKontor[],ROW()-ROW(AvvikelserKontor[[#Headers],[Jan]]),1),INDEX(KontorsPlan[],,1),0),MATCH(AvvikelserKontor[[#Headers],[Jan]],KontorsPlan[#Headers],0))-INDEX(FaktiskaKontor[],MATCH(INDEX(AvvikelserKontor[],ROW()-ROW(AvvikelserKontor[[#Headers],[Jan]]),1),INDEX(KontorsPlan[],,1),0),MATCH(AvvikelserKontor[[#Headers],[Jan]],FaktiskaKontor[#Headers],0)) -> 12.00 kr | D13: =INDEX(KontorsPlan[],MATCH(INDEX(AvvikelserKontor[],ROW()-ROW(AvvikelserKontor[[#Headers],[Feb]]),1),INDEX(KontorsPlan[],,1),0),MATCH(AvvikelserKontor[[#Headers],[Feb]],KontorsPlan[#Headers],0))-INDEX(FaktiskaKontor[],MATCH(INDEX(AvvikelserKontor[],ROW()-ROW(AvvikelserKontor[[#Headers],[Feb]]),1),INDEX(KontorsPlan[],,1),0),MATCH(AvvikelserKontor[[#Headers],[Feb]],FaktiskaKontor[#Headers],0)) -> 22.00 kr | E13: =INDEX(KontorsPlan[],MATCH(INDEX(AvvikelserKontor[],ROW()-ROW(AvvikelserKontor[[#Headers],[Mar]]),1),INDEX(KontorsPlan[],,1),0),MATCH(AvvikelserKontor[[#Headers],[Mar]],KontorsPlan[#Headers],0))-INDEX(FaktiskaKontor[],MATCH(INDEX(AvvikelserKontor[],ROW()-ROW(AvvikelserKontor[[#Headers],[Mar]]),1),INDEX(KontorsPlan[],,1),0),MATCH(AvvikelserKontor[[#Headers],[Mar]],FaktiskaKontor[#Headers],0)) -> 32.00 kr | F13: =INDEX(KontorsPlan[],MATCH(INDEX(AvvikelserKontor[],ROW()-ROW(AvvikelserKontor[[#Headers],[Apr]]),1),INDEX(KontorsPlan[],,1),0),MATCH(AvvikelserKontor[[#Headers],[Apr]],KontorsPlan[#Headers],0))-INDEX(FaktiskaKontor[],MATCH(INDEX(AvvikelserKontor[],ROW()-ROW(AvvikelserKontor[[#Headers],[Apr]]),1),INDEX(KontorsPlan[],,1),0),MATCH(AvvikelserKontor[[#Headers],[Apr]],FaktiskaKontor[#Headers],0)) -> 1.00 kr | G13: =INDEX(KontorsPlan[],MATCH(INDEX(AvvikelserKontor[],ROW()-ROW(AvvikelserKontor[[#Headers],[Maj]]),1),INDEX(KontorsPlan[],,1),0),MATCH(AvvikelserKontor[[#Headers],[Maj]],KontorsPlan[#Headers],0))-INDEX(FaktiskaKontor[],MATCH(INDEX(AvvikelserKontor[],ROW()-ROW(AvvikelserKontor[[#Headers],[Maj]]),1),INDEX(KontorsPlan[],,1),0),MATCH(AvvikelserKontor[[#Headers],[Maj]],FaktiskaKontor[#Headers],0)) -> -6.00 kr | H13: =INDEX(KontorsPlan[],MATCH(INDEX(AvvikelserKontor[],ROW()-ROW(AvvikelserKontor[[#Headers],[Jun]]),1),INDEX(KontorsPlan[],,1),0),MATCH(AvvikelserKontor[[#Headers],[Jun]],KontorsPlan[#Headers],0))-INDEX(FaktiskaKontor[],MATCH(INDEX(AvvikelserKontor[],ROW()-ROW(AvvikelserKontor[[#Headers],[Jun]]),1),INDEX(KontorsPlan[],,1),0),MATCH(AvvikelserKontor[[#Headers],[Jun]],FaktiskaKontor[#Headers],0)) -> 10.00 kr | I13: =INDEX(KontorsPlan[],MATCH(INDEX(AvvikelserKontor[],ROW()-ROW(AvvikelserKontor[[#Headers],[Jul]]),1),INDEX(KontorsPlan[],,1),0),MATCH(AvvikelserKontor[[#Headers],[Jul]],KontorsPlan[#Headers],0))-INDEX(FaktiskaKontor[],MATCH(INDEX(AvvikelserKontor[],ROW()-ROW(AvvikelserKontor[[#Headers],[Jul]]),1),INDEX(KontorsPlan[],,1),0),MATCH(AvvikelserKontor[[#Headers],[Jul]],FaktiskaKontor[#Headers],0)) -> 300.00 kr | J13: =INDEX(KontorsPlan[],MATCH(INDEX(AvvikelserKontor[],ROW()-ROW(AvvikelserKontor[[#Headers],[Aug]]),1),INDEX(KontorsPlan[],,1),0),MATCH(AvvikelserKontor[[#Headers],[Aug]],KontorsPlan[#Headers],0))-INDEX(FaktiskaKontor[],MATCH(INDEX(AvvikelserKontor[],ROW()-ROW(AvvikelserKontor[[#Headers],[Aug]]),1),INDEX(KontorsPlan[],,1),0),MATCH(AvvikelserKontor[[#Headers],[Aug]],FaktiskaKontor[#Headers],0)) -> 300.00 kr | K13: =INDEX(KontorsPlan[],MATCH(INDEX(AvvikelserKontor[],ROW()-ROW(AvvikelserKontor[[#Headers],[Sep]]),1),INDEX(KontorsPlan[],,1),0),MATCH(AvvikelserKontor[[#Headers],[Sep]],KontorsPlan[#Headers],0))-INDEX(FaktiskaKontor[],MATCH(INDEX(AvvikelserKontor[],ROW()-ROW(AvvikelserKontor[[#Headers],[Sep]]),1),INDEX(KontorsPlan[],,1),0),MATCH(AvvikelserKontor[[#Headers],[Sep]],FaktiskaKontor[#Headers],0)) -> 300.00 kr | L13: =INDEX(KontorsPlan[],MATCH(INDEX(AvvikelserKontor[],ROW()-ROW(AvvikelserKontor[[#Headers],[Okt]]),1),INDEX(KontorsPlan[],,1),0),MATCH(AvvikelserKontor[[#Headers],[Okt]],KontorsPlan[#Headers],0))-INDEX(FaktiskaKontor[],MATCH(INDEX(AvvikelserKontor[],ROW()-ROW(AvvikelserKontor[[#Headers],[Okt]]),1),INDEX(KontorsPlan[],,1),0),MATCH(AvvikelserKontor[[#Headers],[Okt]],FaktiskaKontor[#Headers],0)) -> 300.00 kr | M13: =INDEX(KontorsPlan[],MATCH(INDEX(AvvikelserKontor[],ROW()-ROW(AvvikelserKontor[[#Headers],[Nov]]),1),INDEX(KontorsPlan[],,1),0),MATCH(AvvikelserKontor[[#Headers],[Nov]],KontorsPlan[#Headers],0))-INDEX(FaktiskaKontor[],MATCH(INDEX(AvvikelserKontor[],ROW()-ROW(AvvikelserKontor[[#Headers],[Nov]]),1),INDEX(KontorsPlan[],,1),0),MATCH(AvvikelserKontor[[#Headers],[Nov]],FaktiskaKontor[#Headers],0)) -> 300.00 kr | N13: =INDEX(KontorsPlan[],MATCH(INDEX(AvvikelserKontor[],ROW()-ROW(AvvikelserKontor[[#Headers],[Dec]]),1),INDEX(KontorsPlan[],,1),0),MATCH(AvvikelserKontor[[#Headers],[Dec]],KontorsPlan[#Headers],0))-INDEX(FaktiskaKontor[],MATCH(INDEX(AvvikelserKontor[],ROW()-ROW(AvvikelserKontor[[#Headers],[Dec]]),1),INDEX(KontorsPlan[],,1),0),MATCH(AvvikelserKontor[[#Headers],[Dec]],FaktiskaKontor[#Headers],0)) -> 300.00 kr | O13: =SUM(AvvikelserKontor[[#This Row],[Jan]:[Dec]]) -> 1,871.00 kr
B14: Vatten | C14: =INDEX(KontorsPlan[],MATCH(INDEX(AvvikelserKontor[],ROW()-ROW(AvvikelserKontor[[#Headers],[Jan]]),1),INDEX(KontorsPlan[],,1),0),MATCH(AvvikelserKontor[[#Headers],[Jan]],KontorsPlan[#Headers],0))-INDEX(FaktiskaKontor[],MATCH(INDEX(AvvikelserKontor[],ROW()-ROW(AvvikelserKontor[[#Headers],[Jan]]),1),INDEX(KontorsPlan[],,1),0),MATCH(AvvikelserKontor[[#Headers],[Jan]],FaktiskaKontor[#Headers],0)) -> 5.00 kr | D14: =INDEX(KontorsPlan[],MATCH(INDEX(AvvikelserKontor[],ROW()-ROW(AvvikelserKontor[[#Headers],[Feb]]),1),INDEX(KontorsPlan[],,1),0),MATCH(AvvikelserKontor[[#Headers],[Feb]],KontorsPlan[#Headers],0))-INDEX(FaktiskaKontor[],MATCH(INDEX(AvvikelserKontor[],ROW()-ROW(AvvikelserKontor[[#Headers],[Feb]]),1),INDEX(KontorsPlan[],,1),0),MATCH(AvvikelserKontor[[#Headers],[Feb]],FaktiskaKontor[#Headers],0)) -> 7.00 kr | E14: =INDEX(KontorsPlan[],MATCH(INDEX(AvvikelserKontor[],ROW()-ROW(AvvikelserKontor[[#Headers],[Mar]]),1),INDEX(KontorsPlan[],,1),0),MATCH(AvvikelserKontor[[#Headers],[Mar]],KontorsPlan[#Headers],0))-INDEX(FaktiskaKontor[],MATCH(INDEX(AvvikelserKontor[],ROW()-ROW(AvvikelserKontor[[#Headers],[Mar]]),1),INDEX(KontorsPlan[],,1),0),MATCH(AvvikelserKontor[[#Headers],[Mar]],FaktiskaKontor[#Headers],0)) -> 6.00 kr | F14: =INDEX(KontorsPlan[],MATCH(INDEX(AvvikelserKontor[],ROW()-ROW(AvvikelserKontor[[#Headers],[Apr]]),1),INDEX(KontorsPlan[],,1),0),MATCH(AvvikelserKontor[[#Headers],[Apr]],KontorsPlan[#Headers],0))-INDEX(FaktiskaKontor[],MATCH(INDEX(AvvikelserKontor[],ROW()-ROW(AvvikelserKontor[[#Headers],[Apr]]),1),INDEX(KontorsPlan[],,1),0),MATCH(AvvikelserKontor[[#Headers],[Apr]],FaktiskaKontor[#Headers],0)) -> 4.00 kr | G14: =INDEX(KontorsPlan[],MATCH(INDEX(AvvikelserKontor[],ROW()-ROW(AvvikelserKontor[[#Headers],[Maj]]),1),INDEX(KontorsPlan[],,1),0),MATCH(AvvikelserKontor[[#Headers],[Maj]],KontorsPlan[#Headers],0))-INDEX(FaktiskaKontor[],MATCH(INDEX(AvvikelserKontor[],ROW()-ROW(AvvikelserKontor[[#Headers],[Maj]]),1),INDEX(KontorsPlan[],,1),0),MATCH(AvvikelserKontor[[#Headers],[Maj]],FaktiskaKontor[#Headers],0)) -> 6.00 kr | H14: =INDEX(KontorsPlan[],MATCH(INDEX(AvvikelserKontor[],ROW()-ROW(AvvikelserKontor[[#Headers],[Jun]]),1),INDEX(KontorsPlan[],,1),0),MATCH(AvvikelserKontor[[#Headers],[Jun]],KontorsPlan[#Headers],0))-INDEX(FaktiskaKontor[],MATCH(INDEX(AvvikelserKontor[],ROW()-ROW(AvvikelserKontor[[#Headers],[Jun]]),1),INDEX(KontorsPlan[],,1),0),MATCH(AvvikelserKontor[[#Headers],[Jun]],FaktiskaKontor[#Headers],0)) -> 4.00 kr | I14: =INDEX(KontorsPlan[],MATCH(INDEX(AvvikelserKontor[],ROW()-ROW(AvvikelserKontor[[#Headers],[Jul]]),1),INDEX(KontorsPlan[],,1),0),MATCH(AvvikelserKontor[[#Headers],[Jul]],KontorsPlan[#Headers],0))-INDEX(FaktiskaKontor[],MATCH(INDEX(AvvikelserKontor[],ROW()-ROW(AvvikelserKontor[[#Headers],[Jul]]),1),INDEX(KontorsPlan[],,1),0),MATCH(AvvikelserKontor[[#Headers],[Jul]],FaktiskaKontor[#Headers],0)) -> 40.00 kr | J14: =INDEX(KontorsPlan[],MATCH(INDEX(AvvikelserKontor[],ROW()-ROW(AvvikelserKontor[[#Headers],[Aug]]),1),INDEX(KontorsPlan[],,1),0),MATCH(AvvikelserKontor[[#Headers],[Aug]],KontorsPlan[#Headers],0))-INDEX(FaktiskaKontor[],MATCH(INDEX(AvvikelserKontor[],ROW()-ROW(AvvikelserKontor[[#Headers],[Aug]]),1),INDEX(KontorsPlan[],,1),0),MATCH(AvvikelserKontor[[#Headers],[Aug]],FaktiskaKontor[#Headers],0)) -> 40.00 kr | K14: =INDEX(KontorsPlan[],MATCH(INDEX(AvvikelserKontor[],ROW()-ROW(AvvikelserKontor[[#Headers],[Sep]]),1),INDEX(KontorsPlan[],,1),0),MATCH(AvvikelserKontor[[#Headers],[Sep]],KontorsPlan[#Headers],0))-INDEX(FaktiskaKontor[],MATCH(INDEX(AvvikelserKontor[],ROW()-ROW(AvvikelserKontor[[#Headers],[Sep]]),1),INDEX(KontorsPlan[],,1),0),MATCH(AvvikelserKontor[[#Headers],[Sep]],FaktiskaKontor[#Headers],0)) -> 40.00 kr | L14: =INDEX(KontorsPlan[],MATCH(INDEX(AvvikelserKontor[],ROW()-ROW(AvvikelserKontor[[#Headers],[Okt]]),1),INDEX(KontorsPlan[],,1),0),MATCH(AvvikelserKontor[[#Headers],[Okt]],KontorsPlan[#Headers],0))-INDEX(FaktiskaKontor[],MATCH(INDEX(AvvikelserKontor[],ROW()-ROW(AvvikelserKontor[[#Headers],[Okt]]),1),INDEX(KontorsPlan[],,1),0),MATCH(AvvikelserKontor[[#Headers],[Okt]],FaktiskaKontor[#Headers],0)) -> 40.00 kr | M14: =INDEX(KontorsPlan[],MATCH(INDEX(AvvikelserKontor[],ROW()-ROW(AvvikelserKontor[[#Headers],[Nov]]),1),INDEX(KontorsPlan[],,1),0),MATCH(AvvikelserKontor[[#Headers],[Nov]],KontorsPlan[#Headers],0))-INDEX(FaktiskaKontor[],MATCH(INDEX(AvvikelserKontor[],ROW()-ROW(AvvikelserKontor[[#Headers],[Nov]]),1),INDEX(KontorsPlan[],,1),0),MATCH(AvvikelserKontor[[#Headers],[Nov]],FaktiskaKontor[#Headers],0)) -> 40.00 kr | N14: =INDEX(KontorsPlan[],MATCH(INDEX(AvvikelserKontor[],ROW()-ROW(AvvikelserKontor[[#Headers],[Dec]]),1),INDEX(KontorsPlan[],,1),0),MATCH(AvvikelserKontor[[#Headers],[Dec]],KontorsPlan[#Headers],0))-INDEX(FaktiskaKontor[],MATCH(INDEX(AvvikelserKontor[],ROW()-ROW(AvvikelserKontor[[#Headers],[Dec]]),1),INDEX(KontorsPlan[],,1),0),MATCH(AvvikelserKontor[[#Headers],[Dec]],FaktiskaKontor[#Headers],0)) -> 40.00 kr | O14: =SUM(AvvikelserKontor[[#This Row],[Jan]:[Dec]]) -> 272.00 kr
B15: Telefon | C15: =INDEX(KontorsPlan[],MATCH(INDEX(AvvikelserKontor[],ROW()-ROW(AvvikelserKontor[[#Headers],[Jan]]),1),INDEX(KontorsPlan[],,1),0),MATCH(AvvikelserKontor[[#Headers],[Jan]],KontorsPlan[#Headers],0))-INDEX(FaktiskaKontor[],MATCH(INDEX(AvvikelserKontor[],ROW()-ROW(AvvikelserKontor[[#Headers],[Jan]]),1),INDEX(KontorsPlan[],,1),0),MATCH(AvvikelserKontor[[#Headers],[Jan]],FaktiskaKontor[#Headers],0)) -> 26.00 kr | D15: =INDEX(KontorsPlan[],MATCH(INDEX(AvvikelserKontor[],ROW()-ROW(AvvikelserKontor[[#Headers],[Feb]]),1),INDEX(KontorsPlan[],,1),0),MATCH(AvvikelserKontor[[#Headers],[Feb]],KontorsPlan[#Headers],0))-INDEX(FaktiskaKontor[],MATCH(INDEX(AvvikelserKontor[],ROW()-ROW(AvvikelserKontor[[#Headers],[Feb]]),1),INDEX(KontorsPlan[],,1),0),MATCH(AvvikelserKontor[[#Headers],[Feb]],FaktiskaKontor[#Headers],0)) -> 15.00 kr | E15: =INDEX(KontorsPlan[],MATCH(INDEX(AvvikelserKontor[],ROW()-ROW(AvvikelserKontor[[#Headers],[Mar]]),1),INDEX(KontorsPlan[],,1),0),MATCH(AvvikelserKontor[[#Headers],[Mar]],KontorsPlan[#Headers],0))-INDEX(FaktiskaKontor[],MATCH(INDEX(AvvikelserKontor[],ROW()-ROW(AvvikelserKontor[[#Headers],[Mar]]),1),INDEX(KontorsPlan[],,1),0),MATCH(AvvikelserKontor[[#Headers],[Mar]],FaktiskaKontor[#Headers],0)) -> -15.00 kr | F15: =INDEX(KontorsPlan[],MATCH(INDEX(AvvikelserKontor[],ROW()-ROW(AvvikelserKontor[[#Headers],[Apr]]),1),INDEX(KontorsPlan[],,1),0),MATCH(AvvikelserKontor[[#Headers],[Apr]],KontorsPlan[#Headers],0))-INDEX(FaktiskaKontor[],MATCH(INDEX(AvvikelserKontor[],ROW()-ROW(AvvikelserKontor[[#Headers],[Apr]]),1),INDEX(KontorsPlan[],,1),0),MATCH(AvvikelserKontor[[#Headers],[Apr]],FaktiskaKontor[#Headers],0)) -> 5.00 kr | G15: =INDEX(KontorsPlan[],MATCH(INDEX(AvvikelserKontor[],ROW()-ROW(AvvikelserKontor[[#Headers],[Maj]]),1),INDEX(KontorsPlan[],,1),0),MATCH(AvvikelserKontor[[#Headers],[Maj]],KontorsPlan[#Headers],0))-INDEX(FaktiskaKontor[],MATCH(INDEX(AvvikelserKontor[],ROW()-ROW(AvvikelserKontor[[#Headers],[Maj]]),1),INDEX(KontorsPlan[],,1),0),MATCH(AvvikelserKontor[[#Headers],[Maj]],FaktiskaKontor[#Headers],0)) -> 5.00 kr | H15: =INDEX(KontorsPlan[],MATCH(INDEX(AvvikelserKontor[],ROW()-ROW(AvvikelserKontor[[#Headers],[Jun]]),1),INDEX(KontorsPlan[],,1),0),MATCH(AvvikelserKontor[[#Headers],[Jun]],KontorsPlan[#Headers],0))-INDEX(FaktiskaKontor[],MATCH(INDEX(AvvikelserKontor[],ROW()-ROW(AvvikelserKontor[[#Headers],[Jun]]),1),INDEX(KontorsPlan[],,1),0),MATCH(AvvikelserKontor[[#Headers],[Jun]],FaktiskaKontor[#Headers],0)) -> 30.00 kr | I15: =INDEX(KontorsPlan[],MATCH(INDEX(AvvikelserKontor[],ROW()-ROW(AvvikelserKontor[[#Headers],[Jul]]),1),INDEX(KontorsPlan[],,1),0),MATCH(AvvikelserKontor[[#Headers],[Jul]],KontorsPlan[#Headers],0))-INDEX(FaktiskaKontor[],MATCH(INDEX(AvvikelserKontor[],ROW()-ROW(AvvikelserKontor[[#Headers],[Jul]]),1),INDEX(KontorsPlan[],,1),0),MATCH(AvvikelserKontor[[#Headers],[Jul]],FaktiskaKontor[#Headers],0)) -> 250.00 kr | J15: =INDEX(KontorsPlan[],MATCH(INDEX(AvvikelserKontor[],ROW()-ROW(AvvikelserKontor[[#Headers],[Aug]]),1),INDEX(KontorsPlan[],,1),0),MATCH(AvvikelserKontor[[#Headers],[Aug]],KontorsPlan[#Headers],0))-INDEX(FaktiskaKontor[],MATCH(INDEX(AvvikelserKontor[],ROW()-ROW(AvvikelserKontor[[#Headers],[Aug]]),1),INDEX(KontorsPlan[],,1),0),MATCH(AvvikelserKontor[[#Headers],[Aug]],FaktiskaKontor[#Headers],0)) -> 250.00 kr | K15: =INDEX(KontorsPlan[],MATCH(INDEX(AvvikelserKontor[],ROW()-ROW(AvvikelserKontor[[#Headers],[Sep]]),1),INDEX(KontorsPlan[],,1),0),MATCH(AvvikelserKontor[[#Headers],[Sep]],KontorsPlan[#Headers],0))-INDEX(FaktiskaKontor[],MATCH(INDEX(AvvikelserKontor[],ROW()-ROW(AvvikelserKontor[[#Headers],[Sep]]),1),INDEX(KontorsPlan[],,1),0),MATCH(AvvikelserKontor[[#Headers],[Sep]],FaktiskaKontor[#Headers],0)) -> 250.00 kr | L15: =INDEX(KontorsPlan[],MATCH(INDEX(AvvikelserKontor[],ROW()-ROW(AvvikelserKontor[[#Headers],[Okt]]),1),INDEX(KontorsPlan[],,1),0),MATCH(AvvikelserKontor[[#Headers],[Okt]],KontorsPlan[#Headers],0))-INDEX(FaktiskaKontor[],MATCH(INDEX(AvvikelserKontor[],ROW()-ROW(AvvikelserKontor[[#Headers],[Okt]]),1),INDEX(KontorsPlan[],,1),0),MATCH(AvvikelserKontor[[#Headers],[Okt]],FaktiskaKontor[#Headers],0)) -> 250.00 kr | M15: =INDEX(KontorsPlan[],MATCH(INDEX(AvvikelserKontor[],ROW()-ROW(AvvikelserKontor[[#Headers],[Nov]]),1),INDEX(KontorsPlan[],,1),0),MATCH(AvvikelserKontor[[#Headers],[Nov]],KontorsPlan[#Headers],0))-INDEX(FaktiskaKontor[],MATCH(INDEX(AvvikelserKontor[],ROW()-ROW(AvvikelserKontor[[#Headers],[Nov]]),1),INDEX(KontorsPlan[],,1),0),MATCH(AvvikelserKontor[[#Headers],[Nov]],FaktiskaKontor[#Headers],0)) -> 250.00 kr | N15: =INDEX(KontorsPlan[],MATCH(INDEX(AvvikelserKontor[],ROW()-ROW(AvvikelserKontor[[#Headers],[Dec]]),1),INDEX(KontorsPlan[],,1),0),MATCH(AvvikelserKontor[[#Headers],[Dec]],KontorsPlan[#Headers],0))-INDEX(FaktiskaKontor[],MATCH(INDEX(AvvikelserKontor[],ROW()-ROW(AvvikelserKontor[[#Headers],[Dec]]),1),INDEX(KontorsPlan[],,1),0),MATCH(AvvikelserKontor[[#Headers],[Dec]],FaktiskaKontor[#Headers],0)) -> 250.00 kr | O15: =SUM(AvvikelserKontor[[#This Row],[Jan]:[Dec]]) -> 1,566.00 kr
B16: Internetåtkomst | C16: =INDEX(KontorsPlan[],MATCH(INDEX(AvvikelserKontor[],ROW()-ROW(AvvikelserKontor[[#Headers],[Jan]]),1),INDEX(KontorsPlan[],,1),0),MATCH(AvvikelserKontor[[#Headers],[Jan]],KontorsPlan[#Headers],0))-INDEX(FaktiskaKontor[],MATCH(INDEX(AvvikelserKontor[],ROW()-ROW(AvvikelserKontor[[#Headers],[Jan]]),1),INDEX(KontorsPlan[],,1),0),MATCH(AvvikelserKontor[[#Headers],[Jan]],FaktiskaKontor[#Headers],0)) -> 0.00 kr | D16: =INDEX(KontorsPlan[],MATCH(INDEX(AvvikelserKontor[],ROW()-ROW(AvvikelserKontor[[#Headers],[Feb]]),1),INDEX(KontorsPlan[],,1),0),MATCH(AvvikelserKontor[[#Headers],[Feb]],KontorsPlan[#Headers],0))-INDEX(FaktiskaKontor[],MATCH(INDEX(AvvikelserKontor[],ROW()-ROW(AvvikelserKontor[[#Headers],[Feb]]),1),INDEX(KontorsPlan[],,1),0),MATCH(AvvikelserKontor[[#Headers],[Feb]],FaktiskaKontor[#Headers],0)) -> 0.00 kr | E16: =INDEX(KontorsPlan[],MATCH(INDEX(AvvikelserKontor[],ROW()-ROW(AvvikelserKontor[[#Headers],[Mar]]),1),INDEX(KontorsPlan[],,1),0),MATCH(AvvikelserKontor[[#Headers],[Mar]],KontorsPlan[#Headers],0))-INDEX(FaktiskaKontor[],MATCH(INDEX(AvvikelserKontor[],ROW()-ROW(AvvikelserKontor[[#Headers],[Mar]]),1),INDEX(KontorsPlan[],,1),0),MATCH(AvvikelserKontor[[#Headers],[Mar]],FaktiskaKontor[#Headers],0)) -> 0.00 kr | F16: =INDEX(KontorsPlan[],MATCH(INDEX(AvvikelserKontor[],ROW()-ROW(AvvikelserKontor[[#Headers],[Apr]]),1),INDEX(KontorsPlan[],,1),0),MATCH(AvvikelserKontor[[#Headers],[Apr]],KontorsPlan[#Headers],0))-INDEX(FaktiskaKontor[],MATCH(INDEX(AvvikelserKontor[],ROW()-ROW(AvvikelserKontor[[#Headers],[Apr]]),1),INDEX(KontorsPlan[],,1),0),MATCH(AvvikelserKontor[[#Headers],[Apr]],FaktiskaKontor[#Headers],0)) -> 0.00 kr | G16: =INDEX(KontorsPlan[],MATCH(INDEX(AvvikelserKontor[],ROW()-ROW(AvvikelserKontor[[#Headers],[Maj]]),1),INDEX(KontorsPlan[],,1),0),MATCH(AvvikelserKontor[[#Headers],[Maj]],KontorsPlan[#Headers],0))-INDEX(FaktiskaKontor[],MATCH(INDEX(AvvikelserKontor[],ROW()-ROW(AvvikelserKontor[[#Headers],[Maj]]),1),INDEX(KontorsPlan[],,1),0),MATCH(AvvikelserKontor[[#Headers],[Maj]],FaktiskaKontor[#Headers],0)) -> 0.00 kr | H16: =INDEX(KontorsPlan[],MATCH(INDEX(AvvikelserKontor[],ROW()-ROW(AvvikelserKontor[[#Headers],[Jun]]),1),INDEX(KontorsPlan[],,1),0),MATCH(AvvikelserKontor[[#Headers],[Jun]],KontorsPlan[#Headers],0))-INDEX(FaktiskaKontor[],MATCH(INDEX(AvvikelserKontor[],ROW()-ROW(AvvikelserKontor[[#Headers],[Jun]]),1),INDEX(KontorsPlan[],,1),0),MATCH(AvvikelserKontor[[#Headers],[Jun]],FaktiskaKontor[#Headers],0)) -> 0.00 kr | I16: =INDEX(KontorsPlan[],MATCH(INDEX(AvvikelserKontor[],ROW()-ROW(AvvikelserKontor[[#Headers],[Jul]]),1),INDEX(KontorsPlan[],,1),0),MATCH(AvvikelserKontor[[#Headers],[Jul]],KontorsPlan[#Headers],0))-INDEX(FaktiskaKontor[],MATCH(INDEX(AvvikelserKontor[],ROW()-ROW(AvvikelserKontor[[#Headers],[Jul]]),1),INDEX(KontorsPlan[],,1),0),MATCH(AvvikelserKontor[[#Headers],[Jul]],FaktiskaKontor[#Headers],0)) -> 180.00 kr | J16: =INDEX(KontorsPlan[],MATCH(INDEX(AvvikelserKontor[],ROW()-ROW(AvvikelserKontor[[#Headers],[Aug]]),1),INDEX(KontorsPlan[],,1),0),MATCH(AvvikelserKontor[[#Headers],[Aug]],KontorsPlan[#Headers],0))-INDEX(FaktiskaKontor[],MATCH(INDEX(AvvikelserKontor[],ROW()-ROW(AvvikelserKontor[[#Headers],[Aug]]),1),INDEX(KontorsPlan[],,1),0),MATCH(AvvikelserKontor[[#Headers],[Aug]],FaktiskaKontor[#Headers],0)) -> 180.00 kr | K16: =INDEX(KontorsPlan[],MATCH(INDEX(AvvikelserKontor[],ROW()-ROW(AvvikelserKontor[[#Headers],[Sep]]),1),INDEX(KontorsPlan[],,1),0),MATCH(AvvikelserKontor[[#Headers],[Sep]],KontorsPlan[#Headers],0))-INDEX(FaktiskaKontor[],MATCH(INDEX(AvvikelserKontor[],ROW()-ROW(AvvikelserKontor[[#Headers],[Sep]]),1),INDEX(KontorsPlan[],,1),0),MATCH(AvvikelserKontor[[#Headers],[Sep]],FaktiskaKontor[#Headers],0)) -> 180.00 kr | L16: =INDEX(KontorsPlan[],MATCH(INDEX(AvvikelserKontor[],ROW()-ROW(AvvikelserKontor[[#Headers],[Okt]]),1),INDEX(KontorsPlan[],,1),0),MATCH(AvvikelserKontor[[#Headers],[Okt]],KontorsPlan[#Headers],0))-INDEX(FaktiskaKontor[],MATCH(INDEX(AvvikelserKontor[],ROW()-ROW(AvvikelserKontor[[#Headers],[Okt]]),1),INDEX(KontorsPlan[],,1),0),MATCH(AvvikelserKontor[[#Headers],[Okt]],FaktiskaKontor[#Headers],0)) -> 180.00 kr | M16: =INDEX(KontorsPlan[],MATCH(INDEX(AvvikelserKontor[],ROW()-ROW(AvvikelserKontor[[#Headers],[Nov]]),1),INDEX(KontorsPlan[],,1),0),MATCH(AvvikelserKontor[[#Headers],[Nov]],KontorsPlan[#Headers],0))-INDEX(FaktiskaKontor[],MATCH(INDEX(AvvikelserKontor[],ROW()-ROW(AvvikelserKontor[[#Headers],[Nov]]),1),INDEX(KontorsPlan[],,1),0),MATCH(AvvikelserKontor[[#Headers],[Nov]],FaktiskaKontor[#Headers],0)) -> 180.00 kr | N16: =INDEX(KontorsPlan[],MATCH(INDEX(AvvikelserKontor[],ROW()-ROW(AvvikelserKontor[[#Headers],[Dec]]),1),INDEX(KontorsPlan[],,1),0),MATCH(AvvikelserKontor[[#Headers],[Dec]],KontorsPlan[#Headers],0))-INDEX(FaktiskaKontor[],MATCH(INDEX(AvvikelserKontor[],ROW()-ROW(AvvikelserKontor[[#Headers],[Dec]]),1),INDEX(KontorsPlan[],,1),0),MATCH(AvvikelserKontor[[#Headers],[Dec]],FaktiskaKontor[#Headers],0)) -> 180.00 kr | O16: =SUM(AvvikelserKontor[[#This Row],[Jan]:[Dec]]) -> 1,080.00 kr
B17: Kontorsmaterial | C17: =INDEX(KontorsPlan[],MATCH(INDEX(AvvikelserKontor[],ROW()-ROW(AvvikelserKontor[[#Headers],[Jan]]),1),INDEX(KontorsPlan[],,1),0),MATCH(AvvikelserKontor[[#Headers],[Jan]],KontorsPlan[#Headers],0))-INDEX(FaktiskaKontor[],MATCH(INDEX(AvvikelserKontor[],ROW()-ROW(AvvikelserKontor[[#Headers],[Jan]]),1),INDEX(KontorsPlan[],,1),0),MATCH(AvvikelserKontor[[#Headers],[Jan]],FaktiskaKontor[#Headers],0)) -> -56.00 kr | D17: =INDEX(KontorsPlan[],MATCH(INDEX(AvvikelserKontor[],ROW()-ROW(AvvikelserKontor[[#Headers],[Feb]]),1),INDEX(KontorsPlan[],,1),0),MATCH(AvvikelserKontor[[#Headers],[Feb]],KontorsPlan[#Headers],0))-INDEX(FaktiskaKontor[],MATCH(INDEX(AvvikelserKontor[],ROW()-ROW(AvvikelserKontor[[#Headers],[Feb]]),1),INDEX(KontorsPlan[],,1),0),MATCH(AvvikelserKontor[[#Headers],[Feb]],FaktiskaKontor[#Headers],0)) -> 58.00 kr | E17: =INDEX(KontorsPlan[],MATCH(INDEX(AvvikelserKontor[],ROW()-ROW(AvvikelserKontor[[#Headers],[Mar]]),1),INDEX(KontorsPlan[],,1),0),MATCH(AvvikelserKontor[[#Headers],[Mar]],KontorsPlan[#Headers],0))-INDEX(FaktiskaKontor[],MATCH(INDEX(AvvikelserKontor[],ROW()-ROW(AvvikelserKontor[[#Headers],[Mar]]),1),INDEX(KontorsPlan[],,1),0),MATCH(AvvikelserKontor[[#Headers],[Mar]],FaktiskaKontor[#Headers],0)) -> 40.00 kr | F17: =INDEX(KontorsPlan[],MATCH(INDEX(AvvikelserKontor[],ROW()-ROW(AvvikelserKontor[[#Headers],[Apr]]),1),INDEX(KontorsPlan[],,1),0),MATCH(AvvikelserKontor[[#Headers],[Apr]],KontorsPlan[#Headers],0))-INDEX(FaktiskaKontor[],MATCH(INDEX(AvvikelserKontor[],ROW()-ROW(AvvikelserKontor[[#Headers],[Apr]]),1),INDEX(KontorsPlan[],,1),0),MATCH(AvvikelserKontor[[#Headers],[Apr]],FaktiskaKontor[#Headers],0)) -> -21.00 kr | G17: =INDEX(KontorsPlan[],MATCH(INDEX(AvvikelserKontor[],ROW()-ROW(AvvikelserKontor[[#Headers],[Maj]]),1),INDEX(KontorsPlan[],,1),0),MATCH(AvvikelserKontor[[#Headers],[Maj]],KontorsPlan[#Headers],0))-INDEX(FaktiskaKontor[],MATCH(INDEX(AvvikelserKontor[],ROW()-ROW(AvvikelserKontor[[#Headers],[Maj]]),1),INDEX(KontorsPlan[],,1),0),MATCH(AvvikelserKontor[[#Headers],[Maj]],FaktiskaKontor[#Headers],0)) -> -56.00 kr | H17: =INDEX(KontorsPlan[],MATCH(INDEX(AvvikelserKontor[],ROW()-ROW(AvvikelserKontor[[#Headers],[Jun]]),1),INDEX(KontorsPlan[],,1),0),MATCH(AvvikelserKontor[[#Headers],[Jun]],KontorsPlan[#Headers],0))-INDEX(FaktiskaKontor[],MATCH(INDEX(AvvikelserKontor[],ROW()-ROW(AvvikelserKontor[[#Headers],[Jun]]),1),INDEX(KontorsPlan[],,1),0),MATCH(AvvikelserKontor[[#Headers],[Jun]],FaktiskaKontor[#Headers],0)) -> -40.00 kr | I17: =INDEX(KontorsPlan[],MATCH(INDEX(AvvikelserKontor[],ROW()-ROW(AvvikelserKontor[[#Headers],[Jul]]),1),INDEX(KontorsPlan[],,1),0),MATCH(AvvikelserKontor[[#Headers],[Jul]],KontorsPlan[#Headers],0))-INDEX(FaktiskaKontor[],MATCH(INDEX(AvvikelserKontor[],ROW()-ROW(AvvikelserKontor[[#Headers],[Jul]]),1),INDEX(KontorsPlan[],,1),0),MATCH(AvvikelserKontor[[#Headers],[Jul]],FaktiskaKontor[#Headers],0)) -> 200.00 kr | J17: =INDEX(KontorsPlan[],MATCH(INDEX(AvvikelserKontor[],ROW()-ROW(AvvikelserKontor[[#Headers],[Aug]]),1),INDEX(KontorsPlan[],,1),0),MATCH(AvvikelserKontor[[#Headers],[Aug]],KontorsPlan[#Headers],0))-INDEX(FaktiskaKontor[],MATCH(INDEX(AvvikelserKontor[],ROW()-ROW(AvvikelserKontor[[#Headers],[Aug]]),1),INDEX(KontorsPlan[],,1),0),MATCH(AvvikelserKontor[[#Headers],[Aug]],FaktiskaKontor[#Headers],0)) -> 200.00 kr | K17: =INDEX(KontorsPlan[],MATCH(INDEX(AvvikelserKontor[],ROW()-ROW(AvvikelserKontor[[#Headers],[Sep]]),1),INDEX(KontorsPlan[],,1),0),MATCH(AvvikelserKontor[[#Headers],[Sep]],KontorsPlan[#Headers],0))-INDEX(FaktiskaKontor[],MATCH(INDEX(AvvikelserKontor[],ROW()-ROW(AvvikelserKontor[[#Headers],[Sep]]),1),INDEX(KontorsPlan[],,1),0),MATCH(AvvikelserKontor[[#Headers],[Sep]],FaktiskaKontor[#Headers],0)) -> 200.00 kr | L17: =INDEX(KontorsPlan[],MATCH(INDEX(AvvikelserKontor[],ROW()-ROW(AvvikelserKontor[[#Headers],[Okt]]),1),INDEX(KontorsPlan[],,1),0),MATCH(AvvikelserKontor[[#Headers],[Okt]],KontorsPlan[#Headers],0))-INDEX(FaktiskaKontor[],MATCH(INDEX(AvvikelserKontor[],ROW()-ROW(AvvikelserKontor[[#Headers],[Okt]]),1),INDEX(KontorsPlan[],,1),0),MATCH(AvvikelserKontor[[#Headers],[Okt]],FaktiskaKontor[#Headers],0)) -> 200.00 kr | M17: =INDEX(KontorsPlan[],MATCH(INDEX(AvvikelserKontor[],ROW()-ROW(AvvikelserKontor[[#Headers],[Nov]]),1),INDEX(KontorsPlan[],,1),0),MATCH(AvvikelserKontor[[#Headers],[Nov]],KontorsPlan[#Headers],0))-INDEX(FaktiskaKontor[],MATCH(INDEX(AvvikelserKontor[],ROW()-ROW(AvvikelserKontor[[#Headers],[Nov]]),1),INDEX(KontorsPlan[],,1),0),MATCH(AvvikelserKontor[[#Headers],[Nov]],FaktiskaKontor[#Headers],0)) -> 200.00 kr | N17: =INDEX(KontorsPlan[],MATCH(INDEX(AvvikelserKontor[],ROW()-ROW(AvvikelserKontor[[#Headers],[Dec]]),1),INDEX(KontorsPlan[],,1),0),MATCH(AvvikelserKontor[[#Headers],[Dec]],KontorsPlan[#Headers],0))-INDEX(FaktiskaKontor[],MATCH(INDEX(AvvikelserKontor[],ROW()-ROW(AvvikelserKontor[[#Headers],[Dec]]),1),INDEX(KontorsPlan[],,1),0),MATCH(AvvikelserKontor[[#Headers],[Dec]],FaktiskaKontor[#Headers],0)) -> 200.00 kr | O17: =SUM(AvvikelserKontor[[#This Row],[Jan]:[Dec]]) -> 1,125.00 kr
B18: Säkerhet | C18: =INDEX(KontorsPlan[],MATCH(INDEX(AvvikelserKontor[],ROW()-ROW(AvvikelserKontor[[#Headers],[Jan]]),1),INDEX(KontorsPlan[],,1),0),MATCH(AvvikelserKontor[[#Headers],[Jan]],KontorsPlan[#Headers],0))-INDEX(FaktiskaKontor[],MATCH(INDEX(AvvikelserKontor[],ROW()-ROW(AvvikelserKontor[[#Headers],[Jan]]),1),INDEX(KontorsPlan[],,1),0),MATCH(AvvikelserKontor[[#Headers],[Jan]],FaktiskaKontor[#Headers],0)) -> 0.00 kr | D18: =INDEX(KontorsPlan[],MATCH(INDEX(AvvikelserKontor[],ROW()-ROW(AvvikelserKontor[[#Headers],[Feb]]),1),INDEX(KontorsPlan[],,1),0),MATCH(AvvikelserKontor[[#Headers],[Feb]],KontorsPlan[#Headers],0))-INDEX(FaktiskaKontor[],MATCH(INDEX(AvvikelserKontor[],ROW()-ROW(AvvikelserKontor[[#Headers],[Feb]]),1),INDEX(KontorsPlan[],,1),0),MATCH(AvvikelserKontor[[#Headers],[Feb]],FaktiskaKontor[#Headers],0)) -> 0.00 kr | E18: =INDEX(KontorsPlan[],MATCH(INDEX(AvvikelserKontor[],ROW()-ROW(AvvikelserKontor[[#Headers],[Mar]]),1),INDEX(KontorsPlan[],,1),0),MATCH(AvvikelserKontor[[#Headers],[Mar]],KontorsPlan[#Headers],0))-INDEX(FaktiskaKontor[],MATCH(INDEX(AvvikelserKontor[],ROW()-ROW(AvvikelserKontor[[#Headers],[Mar]]),1),INDEX(KontorsPlan[],,1),0),MATCH(AvvikelserKontor[[#Headers],[Mar]],FaktiskaKontor[#Headers],0)) -> 0.00 kr | F18: =INDEX(KontorsPlan[],MATCH(INDEX(AvvikelserKontor[],ROW()-ROW(AvvikelserKontor[[#Headers],[Apr]]),1),INDEX(KontorsPlan[],,1),0),MATCH(AvvikelserKontor[[#Headers],[Apr]],KontorsPlan[#Headers],0))-INDEX(FaktiskaKontor[],MATCH(INDEX(AvvikelserKontor[],ROW()-ROW(AvvikelserKontor[[#Headers],[Apr]]),1),INDEX(KontorsPlan[],,1),0),MATCH(AvvikelserKontor[[#Headers],[Apr]],FaktiskaKontor[#Headers],0)) -> 0.00 kr | G18: =INDEX(KontorsPlan[],MATCH(INDEX(AvvikelserKontor[],ROW()-ROW(AvvikelserKontor[[#Headers],[Maj]]),1),INDEX(KontorsPlan[],,1),0),MATCH(AvvikelserKontor[[#Headers],[Maj]],KontorsPlan[#Headers],0))-INDEX(FaktiskaKontor[],MATCH(INDEX(AvvikelserKontor[],ROW()-ROW(AvvikelserKontor[[#Headers],[Maj]]),1),INDEX(KontorsPlan[],,1),0),MATCH(AvvikelserKontor[[#Headers],[Maj]],FaktiskaKontor[#Headers],0)) -> 0.00 kr | H18: =INDEX(KontorsPlan[],MATCH(INDEX(AvvikelserKontor[],ROW()-ROW(AvvikelserKontor[[#Headers],[Jun]]),1),INDEX(KontorsPlan[],,1),0),MATCH(AvvikelserKontor[[#Headers],[Jun]],KontorsPlan[#Headers],0))-INDEX(FaktiskaKontor[],MATCH(INDEX(AvvikelserKontor[],ROW()-ROW(AvvikelserKontor[[#Headers],[Jun]]),1),INDEX(KontorsPlan[],,1),0),MATCH(AvvikelserKontor[[#Headers],[Jun]],FaktiskaKontor[#Headers],0)) -> 0.00 kr | I18: =INDEX(KontorsPlan[],MATCH(INDEX(AvvikelserKontor[],ROW()-ROW(AvvikelserKontor[[#Headers],[Jul]]),1),INDEX(KontorsPlan[],,1),0),MATCH(AvvikelserKontor[[#Headers],[Jul]],KontorsPlan[#Headers],0))-INDEX(FaktiskaKontor[],MATCH(INDEX(AvvikelserKontor[],ROW()-ROW(AvvikelserKontor[[#Headers],[Jul]]),1),INDEX(KontorsPlan[],,1),0),MATCH(AvvikelserKontor[[#Headers],[Jul]],FaktiskaKontor[#Headers],0)) -> 600.00 kr | J18: =INDEX(KontorsPlan[],MATCH(INDEX(AvvikelserKontor[],ROW()-ROW(AvvikelserKontor[[#Headers],[Aug]]),1),INDEX(KontorsPlan[],,1),0),MATCH(AvvikelserKontor[[#Headers],[Aug]],KontorsPlan[#Headers],0))-INDEX(FaktiskaKontor[],MATCH(INDEX(AvvikelserKontor[],ROW()-ROW(AvvikelserKontor[[#Headers],[Aug]]),1),INDEX(KontorsPlan[],,1),0),MATCH(AvvikelserKontor[[#Headers],[Aug]],FaktiskaKontor[#Headers],0)) -> 600.00 kr | K18: =INDEX(KontorsPlan[],MATCH(INDEX(AvvikelserKontor[],ROW()-ROW(AvvikelserKontor[[#Headers],[Sep]]),1),INDEX(KontorsPlan[],,1),0),MATCH(AvvikelserKontor[[#Headers],[Sep]],KontorsPlan[#Headers],0))-INDEX(FaktiskaKontor[],MATCH(INDEX(AvvikelserKontor[],ROW()-ROW(AvvikelserKontor[[#Headers],[Sep]]),1),INDEX(KontorsPlan[],,1),0),MATCH(AvvikelserKontor[[#Headers],[Sep]],FaktiskaKontor[#Headers],0)) -> 600.00 kr | L18: =INDEX(KontorsPlan[],MATCH(INDEX(AvvikelserKontor[],ROW()-ROW(AvvikelserKontor[[#Headers],[Okt]]),1),INDEX(KontorsPlan[],,1),0),MATCH(AvvikelserKontor[[#Headers],[Okt]],KontorsPlan[#Headers],0))-INDEX(FaktiskaKontor[],MATCH(INDEX(AvvikelserKontor[],ROW()-ROW(AvvikelserKontor[[#Headers],[Okt]]),1),INDEX(KontorsPlan[],,1),0),MATCH(AvvikelserKontor[[#Headers],[Okt]],FaktiskaKontor[#Headers],0)) -> 600.00 kr | M18: =INDEX(KontorsPlan[],MATCH(INDEX(AvvikelserKontor[],ROW()-ROW(AvvikelserKontor[[#Headers],[Nov]]),1),INDEX(KontorsPlan[],,1),0),MATCH(AvvikelserKontor[[#Headers],[Nov]],KontorsPlan[#Headers],0))-INDEX(FaktiskaKontor[],MATCH(INDEX(AvvikelserKontor[],ROW()-ROW(AvvikelserKontor[[#Headers],[Nov]]),1),INDEX(KontorsPlan[],,1),0),MATCH(AvvikelserKontor[[#Headers],[Nov]],FaktiskaKontor[#Headers],0)) -> 600.00 kr | N18: =INDEX(KontorsPlan[],MATCH(INDEX(AvvikelserKontor[],ROW()-ROW(AvvikelserKontor[[#Headers],[Dec]]),1),INDEX(KontorsPlan[],,1),0),MATCH(AvvikelserKontor[[#Headers],[Dec]],KontorsPlan[#Headers],0))-INDEX(FaktiskaKontor[],MATCH(INDEX(AvvikelserKontor[],ROW()-ROW(AvvikelserKontor[[#Headers],[Dec]]),1),INDEX(KontorsPlan[],,1),0),MATCH(AvvikelserKontor[[#Headers],[Dec]],FaktiskaKontor[#Headers],0)) -> 600.00 kr | O18: =SUM(AvvikelserKontor[[#This Row],[Jan]:[Dec]]) -> 3,600.00 kr
B19: Delsumma | C19: =SUBTOTAL(109,AvvikelserKontor[Jan]) -> -17.00 kr | D19: =SUBTOTAL(109,AvvikelserKontor[Feb]) -> 72.00 kr | E19: =SUBTOTAL(109,AvvikelserKontor[Mar]) -> 78.00 kr | F19: =SUBTOTAL(109,AvvikelserKontor[Apr]) -> -141.00 kr | G19: =SUBTOTAL(109,AvvikelserKontor[Maj]) -> -38.00 kr | H19: =SUBTOTAL(109,AvvikelserKontor[Jun]) -> 16.00 kr | I19: =SUBTOTAL(109,AvvikelserKontor[Jul]) -> 11,470.00 kr | J19: =SUBTOTAL(109,AvvikelserKontor[Aug]) -> 11,470.00 kr | K19: =SUBTOTAL(109,AvvikelserKontor[Sep]) -> 11,470.00 kr | L19: =SUBTOTAL(109,AvvikelserKontor[Okt]) -> 11,470.00 kr | M19: =SUBTOTAL(109,AvvikelserKontor[Nov]) -> 11,770.00 kr | N19: =SUBTOTAL(109,AvvikelserKontor[Dec]) -> 11,770.00 kr | O19: =SUBTOTAL(109,AvvikelserKontor[ÅR]) -> 69,390.00 kr
B21: Marknadsföringskostnader | C21: Jan | D21: Feb | E21: Mar | F21: Apr | G21: Maj | H21: Jun | I21: Jul | J21: Aug | K21: Sep | L21: Okt | M21: Nov | N21: Dec | O21: ÅR
B22: Webbplatsvärd | C22: =INDEX(PlaneradeMarknadsföring[],MATCH(INDEX(AvvikelserMarknadsföring[],ROW()-ROW(AvvikelserMarknadsföring[[#Headers],[Jan]]),1),INDEX(PlaneradeMarknadsföring[],,1),0),MATCH(AvvikelserMarknadsföring[[#Headers],[Jan]],PlaneradeMarknadsföring[#Headers],0))-INDEX(FaktiskaMarknadsföring[],MATCH(INDEX(AvvikelserMarknadsföring[],ROW()-ROW(AvvikelserMarknadsföring[[#Headers],[Jan]]),1),INDEX(PlaneradeMarknadsföring[],,1),0),MATCH(AvvikelserMarknadsföring[[#Headers],[Jan]],FaktiskaMarknadsföring[#Headers],0)) -> 0.00 kr | D22: =INDEX(PlaneradeMarknadsföring[],MATCH(INDEX(AvvikelserMarknadsföring[],ROW()-ROW(AvvikelserMarknadsföring[[#Headers],[Feb]]),1),INDEX(PlaneradeMarknadsföring[],,1),0),MATCH(AvvikelserMarknadsföring[[#Headers],[Feb]],PlaneradeMarknadsföring[#Headers],0))-INDEX(FaktiskaMarknadsföring[],MATCH(INDEX(AvvikelserMarknadsföring[],ROW()-ROW(AvvikelserMarknadsföring[[#Headers],[Feb]]),1),INDEX(PlaneradeMarknadsföring[],,1),0),MATCH(AvvikelserMarknadsföring[[#Headers],[Feb]],FaktiskaMarknadsföring[#Headers],0)) -> 0.00 kr | E22: =INDEX(PlaneradeMarknadsföring[],MATCH(INDEX(AvvikelserMarknadsföring[],ROW()-ROW(AvvikelserMarknadsföring[[#Headers],[Mar]]),1),INDEX(PlaneradeMarknadsföring[],,1),0),MATCH(AvvikelserMarknadsföring[[#Headers],[Mar]],PlaneradeMarknadsföring[#Headers],0))-INDEX(FaktiskaMarknadsföring[],MATCH(INDEX(AvvikelserMarknadsföring[],ROW()-ROW(AvvikelserMarknadsföring[[#Headers],[Mar]]),1),INDEX(PlaneradeMarknadsföring[],,1),0),MATCH(AvvikelserMarknadsföring[[#Headers],[Mar]],FaktiskaMarknadsföring[#Headers],0)) -> 0.00 kr | F22: =INDEX(PlaneradeMarknadsföring[],MATCH(INDEX(AvvikelserMarknadsföring[],ROW()-ROW(AvvikelserMarknadsföring[[#Headers],[Apr]]),1),INDEX(PlaneradeMarknadsföring[],,1),0),MATCH(AvvikelserMarknadsföring[[#Headers],[Apr]],PlaneradeMarknadsföring[#Headers],0))-INDEX(FaktiskaMarknadsföring[],MATCH(INDEX(AvvikelserMarknadsföring[],ROW()-ROW(AvvikelserMarknadsföring[[#Headers],[Apr]]),1),INDEX(PlaneradeMarknadsföring[],,1),0),MATCH(AvvikelserMarknadsföring[[#Headers],[Apr]],FaktiskaMarknadsföring[#Headers],0)) -> 0.00 kr | G22: =INDEX(PlaneradeMarknadsföring[],MATCH(INDEX(AvvikelserMarknadsföring[],ROW()-ROW(AvvikelserMarknadsföring[[#Headers],[Maj]]),1),INDEX(PlaneradeMarknadsföring[],,1),0),MATCH(AvvikelserMarknadsföring[[#Headers],[Maj]],PlaneradeMarknadsföring[#Headers],0))-INDEX(FaktiskaMarknadsföring[],MATCH(INDEX(AvvikelserMarknadsföring[],ROW()-ROW(AvvikelserMarknadsföring[[#Headers],[Maj]]),1),INDEX(PlaneradeMarknadsföring[],,1),0),MATCH(AvvikelserMarknadsföring[[#Headers],[Maj]],FaktiskaMarknadsföring[#Headers],0)) -> 0.00 kr | H22: =INDEX(PlaneradeMarknadsföring[],MATCH(INDEX(AvvikelserMarknadsföring[],ROW()-ROW(AvvikelserMarknadsföring[[#Headers],[Jun]]),1),INDEX(PlaneradeMarknadsföring[],,1),0),MATCH(AvvikelserMarknadsföring[[#Headers],[Jun]],PlaneradeMarknadsföring[#Headers],0))-INDEX(FaktiskaMarknadsföring[],MATCH(INDEX(AvvikelserMarknadsföring[],ROW()-ROW(AvvikelserMarknadsföring[[#Headers],[Jun]]),1),INDEX(PlaneradeMarknadsföring[],,1),0),MATCH(AvvikelserMarknadsföring[[#Headers],[Jun]],FaktiskaMarknadsföring[#Headers],0)) -> 0.00 kr | I22: =INDEX(PlaneradeMarknadsföring[],MATCH(INDEX(AvvikelserMarknadsföring[],ROW()-ROW(AvvikelserMarknadsföring[[#Headers],[Jul]]),1),INDEX(PlaneradeMarknadsföring[],,1),0),MATCH(AvvikelserMarknadsföring[[#Headers],[Jul]],PlaneradeMarknadsföring[#Headers],0))-INDEX(FaktiskaMarknadsföring[],MATCH(INDEX(AvvikelserMarknadsföring[],ROW()-ROW(AvvikelserMarknadsföring[[#Headers],[Jul]]),1),INDEX(PlaneradeMarknadsföring[],,1),0),MATCH(AvvikelserMarknadsföring[[#Headers],[Jul]],FaktiskaMarknadsföring[#Headers],0)) -> 500.00 kr | J22: =INDEX(PlaneradeMarknadsföring[],MATCH(INDEX(AvvikelserMarknadsföring[],ROW()-ROW(AvvikelserMarknadsföring[[#Headers],[Aug]]),1),INDEX(PlaneradeMarknadsföring[],,1),0),MATCH(AvvikelserMarknadsföring[[#Headers],[Aug]],PlaneradeMarknadsföring[#Headers],0))-INDEX(FaktiskaMarknadsföring[],MATCH(INDEX(AvvikelserMarknadsföring[],ROW()-ROW(AvvikelserMarknadsföring[[#Headers],[Aug]]),1),INDEX(PlaneradeMarknadsföring[],,1),0),MATCH(AvvikelserMarknadsföring[[#Headers],[Aug]],FaktiskaMarknadsföring[#Headers],0)) -> 500.00 kr | K22: =INDEX(PlaneradeMarknadsföring[],MATCH(INDEX(AvvikelserMarknadsföring[],ROW()-ROW(AvvikelserMarknadsföring[[#Headers],[Sep]]),1),INDEX(PlaneradeMarknadsföring[],,1),0),MATCH(AvvikelserMarknadsföring[[#Headers],[Sep]],PlaneradeMarknadsföring[#Headers],0))-INDEX(FaktiskaMarknadsföring[],MATCH(INDEX(AvvikelserMarknadsföring[],ROW()-ROW(AvvikelserMarknadsföring[[#Headers],[Sep]]),1),INDEX(PlaneradeMarknadsföring[],,1),0),MATCH(AvvikelserMarknadsföring[[#Headers],[Sep]],FaktiskaMarknadsföring[#Headers],0)) -> 500.00 kr | L22: =INDEX(PlaneradeMarknadsföring[],MATCH(INDEX(AvvikelserMarknadsföring[],ROW()-ROW(AvvikelserMarknadsföring[[#Headers],[Okt]]),1),INDEX(PlaneradeMarknadsföring[],,1),0),MATCH(AvvikelserMarknadsföring[[#Headers],[Okt]],PlaneradeMarknadsföring[#Headers],0))-INDEX(FaktiskaMarknadsföring[],MATCH(INDEX(AvvikelserMarknadsföring[],ROW()-ROW(AvvikelserMarknadsföring[[#Headers],[Okt]]),1),INDEX(PlaneradeMarknadsföring[],,1),0),MATCH(AvvikelserMarknadsföring[[#Headers],[Okt]],FaktiskaMarknadsföring[#Headers],0)) -> 500.00 kr | M22: =INDEX(PlaneradeMarknadsföring[],MATCH(INDEX(AvvikelserMarknadsföring[],ROW()-ROW(AvvikelserMarknadsföring[[#Headers],[Nov]]),1),INDEX(PlaneradeMarknadsföring[],,1),0),MATCH(AvvikelserMarknadsföring[[#Headers],[Nov]],PlaneradeMarknadsföring[#Headers],0))-INDEX(FaktiskaMarknadsföring[],MATCH(INDEX(AvvikelserMarknadsföring[],ROW()-ROW(AvvikelserMarknadsföring[[#Headers],[Nov]]),1),INDEX(PlaneradeMarknadsföring[],,1),0),MATCH(AvvikelserMarknadsföring[[#Headers],[Nov]],FaktiskaMarknadsföring[#Headers],0)) -> 500.00 kr | N22: =INDEX(PlaneradeMarknadsföring[],MATCH(INDEX(AvvikelserMarknadsföring[],ROW()-ROW(AvvikelserMarknadsföring[[#Headers],[Dec]]),1),INDEX(PlaneradeMarknadsföring[],,1),0),MATCH(AvvikelserMarknadsföring[[#Headers],[Dec]],PlaneradeMarknadsföring[#Headers],0))-INDEX(FaktiskaMarknadsföring[],MATCH(INDEX(AvvikelserMarknadsföring[],ROW()-ROW(AvvikelserMarknadsföring[[#Headers],[Dec]]),1),INDEX(PlaneradeMarknadsföring[],,1),0),MATCH(AvvikelserMarknadsföring[[#Headers],[Dec]],FaktiskaMarknadsföring[#Headers],0)) -> 500.00 kr | O22: =SUM(AvvikelserMarknadsföring[[#This Row],[Jan]:[Dec]]) -> 3,000.00 kr
B23: Webbplatsuppdateringar | C23: =INDEX(PlaneradeMarknadsföring[],MATCH(INDEX(AvvikelserMarknadsföring[],ROW()-ROW(AvvikelserMarknadsföring[[#Headers],[Jan]]),1),INDEX(PlaneradeMarknadsföring[],,1),0),MATCH(AvvikelserMarknadsföring[[#Headers],[Jan]],PlaneradeMarknadsföring[#Headers],0))-INDEX(FaktiskaMarknadsföring[],MATCH(INDEX(AvvikelserMarknadsföring[],ROW()-ROW(AvvikelserMarknadsföring[[#Headers],[Jan]]),1),INDEX(PlaneradeMarknadsföring[],,1),0),MATCH(AvvikelserMarknadsföring[[#Headers],[Jan]],FaktiskaMarknadsföring[#Headers],0)) -> 0.00 kr | D23: =INDEX(PlaneradeMarknadsföring[],MATCH(INDEX(AvvikelserMarknadsföring[],ROW()-ROW(AvvikelserMarknadsföring[[#Headers],[Feb]]),1),INDEX(PlaneradeMarknadsföring[],,1),0),MATCH(AvvikelserMarknadsföring[[#Headers],[Feb]],PlaneradeMarknadsföring[#Headers],0))-INDEX(FaktiskaMarknadsföring[],MATCH(INDEX(AvvikelserMarknadsföring[],ROW()-ROW(AvvikelserMarknadsföring[[#Headers],[Feb]]),1),INDEX(PlaneradeMarknadsföring[],,1),0),MATCH(AvvikelserMarknadsföring[[#Headers],[Feb]],FaktiskaMarknadsföring[#Headers],0)) -> 0.00 kr | E23: =INDEX(PlaneradeMarknadsföring[],MATCH(INDEX(AvvikelserMarknadsföring[],ROW()-ROW(AvvikelserMarknadsföring[[#Headers],[Mar]]),1),INDEX(PlaneradeMarknadsföring[],,1),0),MATCH(AvvikelserMarknadsföring[[#Headers],[Mar]],PlaneradeMarknadsföring[#Headers],0))-INDEX(FaktiskaMarknadsföring[],MATCH(INDEX(AvvikelserMarknadsföring[],ROW()-ROW(AvvikelserMarknadsföring[[#Headers],[Mar]]),1),INDEX(PlaneradeMarknadsföring[],,1),0),MATCH(AvvikelserMarknadsföring[[#Headers],[Mar]],FaktiskaMarknadsföring[#Headers],0)) -> 0.00 kr | F23: =INDEX(PlaneradeMarknadsföring[],MATCH(INDEX(AvvikelserMarknadsföring[],ROW()-ROW(AvvikelserMarknadsföring[[#Headers],[Apr]]),1),INDEX(PlaneradeMarknadsföring[],,1),0),MATCH(AvvikelserMarknadsföring[[#Headers],[Apr]],PlaneradeMarknadsföring[#Headers],0))-INDEX(FaktiskaMarknadsföring[],MATCH(INDEX(AvvikelserMarknadsföring[],ROW()-ROW(AvvikelserMarknadsföring[[#Headers],[Apr]]),1),INDEX(PlaneradeMarknadsföring[],,1),0),MATCH(AvvikelserMarknadsföring[[#Headers],[Apr]],FaktiskaMarknadsföring[#Headers],0)) -> 0.00 kr | G23: =INDEX(PlaneradeMarknadsföring[],MATCH(INDEX(AvvikelserMarknadsföring[],ROW()-ROW(AvvikelserMarknadsföring[[#Headers],[Maj]]),1),INDEX(PlaneradeMarknadsföring[],,1),0),MATCH(AvvikelserMarknadsföring[[#Headers],[Maj]],PlaneradeMarknadsföring[#Headers],0))-INDEX(FaktiskaMarknadsföring[],MATCH(INDEX(AvvikelserMarknadsföring[],ROW()-ROW(AvvikelserMarknadsföring[[#Headers],[Maj]]),1),INDEX(PlaneradeMarknadsföring[],,1),0),MATCH(AvvikelserMarknadsföring[[#Headers],[Maj]],FaktiskaMarknadsföring[#Headers],0)) -> 0.00 kr | H23: =INDEX(PlaneradeMarknadsföring[],MATCH(INDEX(AvvikelserMarknadsföring[],ROW()-ROW(AvvikelserMarknadsföring[[#Headers],[Jun]]),1),INDEX(PlaneradeMarknadsföring[],,1),0),MATCH(AvvikelserMarknadsföring[[#Headers],[Jun]],PlaneradeMarknadsföring[#Headers],0))-INDEX(FaktiskaMarknadsföring[],MATCH(INDEX(AvvikelserMarknadsföring[],ROW()-ROW(AvvikelserMarknadsföring[[#Headers],[Jun]]),1),INDEX(PlaneradeMarknadsföring[],,1),0),MATCH(AvvikelserMarknadsföring[[#Headers],[Jun]],FaktiskaMarknadsföring[#Headers],0)) -> -500.00 kr | I23: =INDEX(PlaneradeMarknadsföring[],MATCH(INDEX(AvvikelserMarknadsföring[],ROW()-ROW(AvvikelserMarknadsföring[[#Headers],[Jul]]),1),INDEX(PlaneradeMarknadsföring[],,1),0),MATCH(AvvikelserMarknadsföring[[#Headers],[Jul]],PlaneradeMarknadsföring[#Headers],0))-INDEX(FaktiskaMarknadsföring[],MATCH(INDEX(AvvikelserMarknadsföring[],ROW()-ROW(AvvikelserMarknadsföring[[#Headers],[Jul]]),1),INDEX(PlaneradeMarknadsföring[],,1),0),MATCH(AvvikelserMarknadsföring[[#Headers],[Jul]],FaktiskaMarknadsföring[#Headers],0)) -> 200.00 kr | J23: =INDEX(PlaneradeMarknadsföring[],MATCH(INDEX(AvvikelserMarknadsföring[],ROW()-ROW(AvvikelserMarknadsföring[[#Headers],[Aug]]),1),INDEX(PlaneradeMarknadsföring[],,1),0),MATCH(AvvikelserMarknadsföring[[#Headers],[Aug]],PlaneradeMarknadsföring[#Headers],0))-INDEX(FaktiskaMarknadsföring[],MATCH(INDEX(AvvikelserMarknadsföring[],ROW()-ROW(AvvikelserMarknadsföring[[#Headers],[Aug]]),1),INDEX(PlaneradeMarknadsföring[],,1),0),MATCH(AvvikelserMarknadsföring[[#Headers],[Aug]],FaktiskaMarknadsföring[#Headers],0)) -> 200.00 kr | K23: =INDEX(PlaneradeMarknadsföring[],MATCH(INDEX(AvvikelserMarknadsföring[],ROW()-ROW(AvvikelserMarknadsföring[[#Headers],[Sep]]),1),INDEX(PlaneradeMarknadsföring[],,1),0),MATCH(AvvikelserMarknadsföring[[#Headers],[Sep]],PlaneradeMarknadsföring[#Headers],0))-INDEX(FaktiskaMarknadsföring[],MATCH(INDEX(AvvikelserMarknadsföring[],ROW()-ROW(AvvikelserMarknadsföring[[#Headers],[Sep]]),1),INDEX(PlaneradeMarknadsföring[],,1),0),MATCH(AvvikelserMarknadsföring[[#Headers],[Sep]],FaktiskaMarknadsföring[#Headers],0)) -> 200.00 kr | L23: =INDEX(PlaneradeMarknadsföring[],MATCH(INDEX(AvvikelserMarknadsföring[],ROW()-ROW(AvvikelserMarknadsföring[[#Headers],[Okt]]),1),INDEX(PlaneradeMarknadsföring[],,1),0),MATCH(AvvikelserMarknadsföring[[#Headers],[Okt]],PlaneradeMarknadsföring[#Headers],0))-INDEX(FaktiskaMarknadsföring[],MATCH(INDEX(AvvikelserMarknadsföring[],ROW()-ROW(AvvikelserMarknadsföring[[#Headers],[Okt]]),1),INDEX(PlaneradeMarknadsföring[],,1),0),MATCH(AvvikelserMarknadsföring[[#Headers],[Okt]],FaktiskaMarknadsföring[#Headers],0)) -> 200.00 kr | M23: =INDEX(PlaneradeMarknadsföring[],MATCH(INDEX(AvvikelserMarknadsföring[],ROW()-ROW(AvvikelserMarknadsföring[[#Headers],[Nov]]),1),INDEX(PlaneradeMarknadsföring[],,1),0),MATCH(AvvikelserMarknadsföring[[#Headers],[Nov]],PlaneradeMarknadsföring[#Headers],0))-INDEX(FaktiskaMarknadsföring[],MATCH(INDEX(AvvikelserMarknadsföring[],ROW()-ROW(AvvikelserMarknadsföring[[#Headers],[Nov]]),1),INDEX(PlaneradeMarknadsföring[],,1),0),MATCH(AvvikelserMarknadsföring[[#Headers],[Nov]],FaktiskaMarknadsföring[#Headers],0)) -> 200.00 kr | N23: =INDEX(PlaneradeMarknadsföring[],MATCH(INDEX(AvvikelserMarknadsföring[],ROW()-ROW(AvvikelserMarknadsföring[[#Headers],[Dec]]),1),INDEX(PlaneradeMarknadsföring[],,1),0),MATCH(AvvikelserMarknadsföring[[#Headers],[Dec]],PlaneradeMarknadsföring[#Headers],0))-INDEX(FaktiskaMarknadsföring[],MATCH(INDEX(AvvikelserMarknadsföring[],ROW()-ROW(AvvikelserMarknadsföring[[#Headers],[Dec]]),1),INDEX(PlaneradeMarknadsföring[],,1),0),MATCH(AvvikelserMarknadsföring[[#Headers],[Dec]],FaktiskaMarknadsföring[#Headers],0)) -> 1,000.00 kr | O23: =SUM(AvvikelserMarknadsföring[[#This Row],[Jan]:[Dec]]) -> 1,500.00 kr
B24: Kollateral förberedelse | C24: =INDEX(PlaneradeMarknadsföring[],MATCH(INDEX(AvvikelserMarknadsföring[],ROW()-ROW(AvvikelserMarknadsföring[[#Headers],[Jan]]),1),INDEX(PlaneradeMarknadsföring[],,1),0),MATCH(AvvikelserMarknadsföring[[#Headers],[Jan]],PlaneradeMarknadsföring[#Headers],0))-INDEX(FaktiskaMarknadsföring[],MATCH(INDEX(AvvikelserMarknadsföring[],ROW()-ROW(AvvikelserMarknadsföring[[#Headers],[Jan]]),1),INDEX(PlaneradeMarknadsföring[],,1),0),MATCH(AvvikelserMarknadsföring[[#Headers],[Jan]],FaktiskaMarknadsföring[#Headers],0)) -> 200.00 kr | D24: =INDEX(PlaneradeMarknadsföring[],MATCH(INDEX(AvvikelserMarknadsföring[],ROW()-ROW(AvvikelserMarknadsföring[[#Headers],[Feb]]),1),INDEX(PlaneradeMarknadsföring[],,1),0),MATCH(AvvikelserMarknadsföring[[#Headers],[Feb]],PlaneradeMarknadsföring[#Headers],0))-INDEX(FaktiskaMarknadsföring[],MATCH(INDEX(AvvikelserMarknadsföring[],ROW()-ROW(AvvikelserMarknadsföring[[#Headers],[Feb]]),1),INDEX(PlaneradeMarknadsföring[],,1),0),MATCH(AvvikelserMarknadsföring[[#Headers],[Feb]],FaktiskaMarknadsföring[#Headers],0)) -> 0.00 kr | E24: =INDEX(PlaneradeMarknadsföring[],MATCH(INDEX(AvvikelserMarknadsföring[],ROW()-ROW(AvvikelserMarknadsföring[[#Headers],[Mar]]),1),INDEX(PlaneradeMarknadsföring[],,1),0),MATCH(AvvikelserMarknadsföring[[#Headers],[Mar]],PlaneradeMarknadsföring[#Headers],0))-INDEX(FaktiskaMarknadsföring[],MATCH(INDEX(AvvikelserMarknadsföring[],ROW()-ROW(AvvikelserMarknadsföring[[#Headers],[Mar]]),1),INDEX(PlaneradeMarknadsföring[],,1),0),MATCH(AvvikelserMarknadsföring[[#Headers],[Mar]],FaktiskaMarknadsföring[#Headers],0)) -> 0.00 kr | F24: =INDEX(PlaneradeMarknadsföring[],MATCH(INDEX(AvvikelserMarknadsföring[],ROW()-ROW(AvvikelserMarknadsföring[[#Headers],[Apr]]),1),INDEX(PlaneradeMarknadsföring[],,1),0),MATCH(AvvikelserMarknadsföring[[#Headers],[Apr]],PlaneradeMarknadsföring[#Headers],0))-INDEX(FaktiskaMarknadsföring[],MATCH(INDEX(AvvikelserMarknadsföring[],ROW()-ROW(AvvikelserMarknadsföring[[#Headers],[Apr]]),1),INDEX(PlaneradeMarknadsföring[],,1),0),MATCH(AvvikelserMarknadsföring[[#Headers],[Apr]],FaktiskaMarknadsföring[#Headers],0)) -> -500.00 kr | G24: =INDEX(PlaneradeMarknadsföring[],MATCH(INDEX(AvvikelserMarknadsföring[],ROW()-ROW(AvvikelserMarknadsföring[[#Headers],[Maj]]),1),INDEX(PlaneradeMarknadsföring[],,1),0),MATCH(AvvikelserMarknadsföring[[#Headers],[Maj]],PlaneradeMarknadsföring[#Headers],0))-INDEX(FaktiskaMarknadsföring[],MATCH(INDEX(AvvikelserMarknadsföring[],ROW()-ROW(AvvikelserMarknadsföring[[#Headers],[Maj]]),1),INDEX(PlaneradeMarknadsföring[],,1),0),MATCH(AvvikelserMarknadsföring[[#Headers],[Maj]],FaktiskaMarknadsföring[#Headers],0)) -> 0.00 kr | H24: =INDEX(PlaneradeMarknadsföring[],MATCH(INDEX(AvvikelserMarknadsföring[],ROW()-ROW(AvvikelserMarknadsföring[[#Headers],[Jun]]),1),INDEX(PlaneradeMarknadsföring[],,1),0),MATCH(AvvikelserMarknadsföring[[#Headers],[Jun]],PlaneradeMarknadsföring[#Headers],0))-INDEX(FaktiskaMarknadsföring[],MATCH(INDEX(AvvikelserMarknadsföring[],ROW()-ROW(AvvikelserMarknadsföring[[#Headers],[Jun]]),1),INDEX(PlaneradeMarknadsföring[],,1),0),MATCH(AvvikelserMarknadsföring[[#Headers],[Jun]],FaktiskaMarknadsföring[#Headers],0)) -> 0.00 kr | I24: =INDEX(PlaneradeMarknadsföring[],MATCH(INDEX(AvvikelserMarknadsföring[],ROW()-ROW(AvvikelserMarknadsföring[[#Headers],[Jul]]),1),INDEX(PlaneradeMarknadsföring[],,1),0),MATCH(AvvikelserMarknadsföring[[#Headers],[Jul]],PlaneradeMarknadsföring[#Headers],0))-INDEX(FaktiskaMarknadsföring[],MATCH(INDEX(AvvikelserMarknadsföring[],ROW()-ROW(AvvikelserMarknadsföring[[#Headers],[Jul]]),1),INDEX(PlaneradeMarknadsföring[],,1),0),MATCH(AvvikelserMarknadsföring[[#Headers],[Jul]],FaktiskaMarknadsföring[#Headers],0)) -> 5,000.00 kr | J24: =INDEX(PlaneradeMarknadsföring[],MATCH(INDEX(AvvikelserMarknadsföring[],ROW()-ROW(AvvikelserMarknadsföring[[#Headers],[Aug]]),1),INDEX(PlaneradeMarknadsföring[],,1),0),MATCH(AvvikelserMarknadsföring[[#Headers],[Aug]],PlaneradeMarknadsföring[#Headers],0))-INDEX(FaktiskaMarknadsföring[],MATCH(INDEX(AvvikelserMarknadsföring[],ROW()-ROW(AvvikelserMarknadsföring[[#Headers],[Aug]]),1),INDEX(PlaneradeMarknadsföring[],,1),0),MATCH(AvvikelserMarknadsföring[[#Headers],[Aug]],FaktiskaMarknadsföring[#Headers],0)) -> 0.00 kr | K24: =INDEX(PlaneradeMarknadsföring[],MATCH(INDEX(AvvikelserMarknadsföring[],ROW()-ROW(AvvikelserMarknadsföring[[#Headers],[Sep]]),1),INDEX(PlaneradeMarknadsföring[],,1),0),MATCH(AvvikelserMarknadsföring[[#Headers],[Sep]],PlaneradeMarknadsföring[#Headers],0))-INDEX(FaktiskaMarknadsföring[],MATCH(INDEX(AvvikelserMarknadsföring[],ROW()-ROW(AvvikelserMarknadsföring[[#Headers],[Sep]]),1),INDEX(PlaneradeMarknadsföring[],,1),0),MATCH(AvvikelserMarknadsföring[[#Headers],[Sep]],FaktiskaMarknadsföring[#Headers],0)) -> 0.00 kr | L24: =INDEX(PlaneradeMarknadsföring[],MATCH(INDEX(AvvikelserMarknadsföring[],ROW()-ROW(AvvikelserMarknadsföring[[#Headers],[Okt]]),1),INDEX(PlaneradeMarknadsföring[],,1),0),MATCH(AvvikelserMarknadsföring[[#Headers],[Okt]],PlaneradeMarknadsföring[#Headers],0))-INDEX(FaktiskaMarknadsföring[],MATCH(INDEX(AvvikelserMarknadsföring[],ROW()-ROW(AvvikelserMarknadsföring[[#Headers],[Okt]]),1),INDEX(PlaneradeMarknadsföring[],,1),0),MATCH(AvvikelserMarknadsföring[[#Headers],[Okt]],FaktiskaMarknadsföring[#Headers],0)) -> 5,000.00 kr | M24: =INDEX(PlaneradeMarknadsföring[],MATCH(INDEX(AvvikelserMarknadsföring[],ROW()-ROW(AvvikelserMarknadsföring[[#Headers],[Nov]]),1),INDEX(PlaneradeMarknadsföring[],,1),0),MATCH(AvvikelserMarknadsföring[[#Headers],[Nov]],PlaneradeMarknadsföring[#Headers],0))-INDEX(FaktiskaMarknadsföring[],MATCH(INDEX(AvvikelserMarknadsföring[],ROW()-ROW(AvvikelserMarknadsföring[[#Headers],[Nov]]),1),INDEX(PlaneradeMarknadsföring[],,1),0),MATCH(AvvikelserMarknadsföring[[#Headers],[Nov]],FaktiskaMarknadsföring[#Headers],0)) -> 0.00 kr | N24: =INDEX(PlaneradeMarknadsföring[],MATCH(INDEX(AvvikelserMarknadsföring[],ROW()-ROW(AvvikelserMarknadsföring[[#Headers],[Dec]]),1),INDEX(PlaneradeMarknadsföring[],,1),0),MATCH(AvvikelserMarknadsföring[[#Headers],[Dec]],PlaneradeMarknadsföring[#Headers],0))-INDEX(FaktiskaMarknadsföring[],MATCH(INDEX(AvvikelserMarknadsföring[],ROW()-ROW(AvvikelserMarknadsföring[[#Headers],[Dec]]),1),INDEX(PlaneradeMarknadsföring[],,1),0),MATCH(AvvikelserMarknadsföring[[#Headers],[Dec]],FaktiskaMarknadsföring[#Headers],0)) -> 0.00 kr | O24: =SUM(AvvikelserMarknadsföring[[#This Row],[Jan]:[Dec]]) -> 9,700.00 kr
B25: Kollateral utskrift | C25: =INDEX(PlaneradeMarknadsföring[],MATCH(INDEX(AvvikelserMarknadsföring[],ROW()-ROW(AvvikelserMarknadsföring[[#Headers],[Jan]]),1),INDEX(PlaneradeMarknadsföring[],,1),0),MATCH(AvvikelserMarknadsföring[[#Headers],[Jan]],PlaneradeMarknadsföring[#Headers],0))-INDEX(FaktiskaMarknadsföring[],MATCH(INDEX(AvvikelserMarknadsföring[],ROW()-ROW(AvvikelserMarknadsföring[[#Headers],[Jan]]),1),INDEX(PlaneradeMarknadsföring[],,1),0),MATCH(AvvikelserMarknadsföring[[#Headers],[Jan]],FaktiskaMarknadsföring[#Headers],0)) -> 100.00 kr | D25: =INDEX(PlaneradeMarknadsföring[],MATCH(INDEX(AvvikelserMarknadsföring[],ROW()-ROW(AvvikelserMarknadsföring[[#Headers],[Feb]]),1),INDEX(PlaneradeMarknadsföring[],,1),0),MATCH(AvvikelserMarknadsföring[[#Headers],[Feb]],PlaneradeMarknadsföring[#Headers],0))-INDEX(FaktiskaMarknadsföring[],MATCH(INDEX(AvvikelserMarknadsföring[],ROW()-ROW(AvvikelserMarknadsföring[[#Headers],[Feb]]),1),INDEX(PlaneradeMarknadsföring[],,1),0),MATCH(AvvikelserMarknadsföring[[#Headers],[Feb]],FaktiskaMarknadsföring[#Headers],0)) -> -300.00 kr | E25: =INDEX(PlaneradeMarknadsföring[],MATCH(INDEX(AvvikelserMarknadsföring[],ROW()-ROW(AvvikelserMarknadsföring[[#Headers],[Mar]]),1),INDEX(PlaneradeMarknadsföring[],,1),0),MATCH(AvvikelserMarknadsföring[[#Headers],[Mar]],PlaneradeMarknadsföring[#Headers],0))-INDEX(FaktiskaMarknadsföring[],MATCH(INDEX(AvvikelserMarknadsföring[],ROW()-ROW(AvvikelserMarknadsföring[[#Headers],[Mar]]),1),INDEX(PlaneradeMarknadsföring[],,1),0),MATCH(AvvikelserMarknadsföring[[#Headers],[Mar]],FaktiskaMarknadsföring[#Headers],0)) -> 100.00 kr | F25: =INDEX(PlaneradeMarknadsföring[],MATCH(INDEX(AvvikelserMarknadsföring[],ROW()-ROW(AvvikelserMarknadsföring[[#Headers],[Apr]]),1),INDEX(PlaneradeMarknadsföring[],,1),0),MATCH(AvvikelserMarknadsföring[[#Headers],[Apr]],PlaneradeMarknadsföring[#Headers],0))-INDEX(FaktiskaMarknadsföring[],MATCH(INDEX(AvvikelserMarknadsföring[],ROW()-ROW(AvvikelserMarknadsföring[[#Headers],[Apr]]),1),INDEX(PlaneradeMarknadsföring[],,1),0),MATCH(AvvikelserMarknadsföring[[#Headers],[Apr]],FaktiskaMarknadsföring[#Headers],0)) -> 100.00 kr | G25: =INDEX(PlaneradeMarknadsföring[],MATCH(INDEX(AvvikelserMarknadsföring[],ROW()-ROW(AvvikelserMarknadsföring[[#Headers],[Maj]]),1),INDEX(PlaneradeMarknadsföring[],,1),0),MATCH(AvvikelserMarknadsföring[[#Headers],[Maj]],PlaneradeMarknadsföring[#Headers],0))-INDEX(FaktiskaMarknadsföring[],MATCH(INDEX(AvvikelserMarknadsföring[],ROW()-ROW(AvvikelserMarknadsföring[[#Headers],[Maj]]),1),INDEX(PlaneradeMarknadsföring[],,1),0),MATCH(AvvikelserMarknadsföring[[#Headers],[Maj]],FaktiskaMarknadsföring[#Headers],0)) -> -400.00 kr | H25: =INDEX(PlaneradeMarknadsföring[],MATCH(INDEX(AvvikelserMarknadsföring[],ROW()-ROW(AvvikelserMarknadsföring[[#Headers],[Jun]]),1),INDEX(PlaneradeMarknadsföring[],,1),0),MATCH(AvvikelserMarknadsföring[[#Headers],[Jun]],PlaneradeMarknadsföring[#Headers],0))-INDEX(FaktiskaMarknadsföring[],MATCH(INDEX(AvvikelserMarknadsföring[],ROW()-ROW(AvvikelserMarknadsföring[[#Headers],[Jun]]),1),INDEX(PlaneradeMarknadsföring[],,1),0),MATCH(AvvikelserMarknadsföring[[#Headers],[Jun]],FaktiskaMarknadsföring[#Headers],0)) -> 20.00 kr | I25: =INDEX(PlaneradeMarknadsföring[],MATCH(INDEX(AvvikelserMarknadsföring[],ROW()-ROW(AvvikelserMarknadsföring[[#Headers],[Jul]]),1),INDEX(PlaneradeMarknadsföring[],,1),0),MATCH(AvvikelserMarknadsföring[[#Headers],[Jul]],PlaneradeMarknadsföring[#Headers],0))-INDEX(FaktiskaMarknadsföring[],MATCH(INDEX(AvvikelserMarknadsföring[],ROW()-ROW(AvvikelserMarknadsföring[[#Headers],[Jul]]),1),INDEX(PlaneradeMarknadsföring[],,1),0),MATCH(AvvikelserMarknadsföring[[#Headers],[Jul]],FaktiskaMarknadsföring[#Headers],0)) -> 200.00 kr | J25: =INDEX(PlaneradeMarknadsföring[],MATCH(INDEX(AvvikelserMarknadsföring[],ROW()-ROW(AvvikelserMarknadsföring[[#Headers],[Aug]]),1),INDEX(PlaneradeMarknadsföring[],,1),0),MATCH(AvvikelserMarknadsföring[[#Headers],[Aug]],PlaneradeMarknadsföring[#Headers],0))-INDEX(FaktiskaMarknadsföring[],MATCH(INDEX(AvvikelserMarknadsföring[],ROW()-ROW(AvvikelserMarknadsföring[[#Headers],[Aug]]),1),INDEX(PlaneradeMarknadsföring[],,1),0),MATCH(AvvikelserMarknadsföring[[#Headers],[Aug]],FaktiskaMarknadsföring[#Headers],0)) -> 200.00 kr | K25: =INDEX(PlaneradeMarknadsföring[],MATCH(INDEX(AvvikelserMarknadsföring[],ROW()-ROW(AvvikelserMarknadsföring[[#Headers],[Sep]]),1),INDEX(PlaneradeMarknadsföring[],,1),0),MATCH(AvvikelserMarknadsföring[[#Headers],[Sep]],PlaneradeMarknadsföring[#Headers],0))-INDEX(FaktiskaMarknadsföring[],MATCH(INDEX(AvvikelserMarknadsföring[],ROW()-ROW(AvvikelserMarknadsföring[[#Headers],[Sep]]),1),INDEX(PlaneradeMarknadsföring[],,1),0),MATCH(AvvikelserMarknadsföring[[#Headers],[Sep]],FaktiskaMarknadsföring[#Headers],0)) -> 200.00 kr | L25: =INDEX(PlaneradeMarknadsföring[],MATCH(INDEX(AvvikelserMarknadsföring[],ROW()-ROW(AvvikelserMarknadsföring[[#Headers],[Okt]]),1),INDEX(PlaneradeMarknadsföring[],,1),0),MATCH(AvvikelserMarknadsföring[[#Headers],[Okt]],PlaneradeMarknadsföring[#Headers],0))-INDEX(FaktiskaMarknadsföring[],MATCH(INDEX(AvvikelserMarknadsföring[],ROW()-ROW(AvvikelserMarknadsföring[[#Headers],[Okt]]),1),INDEX(PlaneradeMarknadsföring[],,1),0),MATCH(AvvikelserMarknadsföring[[#Headers],[Okt]],FaktiskaMarknadsföring[#Headers],0)) -> 200.00 kr | M25: =INDEX(PlaneradeMarknadsföring[],MATCH(INDEX(AvvikelserMarknadsföring[],ROW()-ROW(AvvikelserMarknadsföring[[#Headers],[Nov]]),1),INDEX(PlaneradeMarknadsföring[],,1),0),MATCH(AvvikelserMarknadsföring[[#Headers],[Nov]],PlaneradeMarknadsföring[#Headers],0))-INDEX(FaktiskaMarknadsföring[],MATCH(INDEX(AvvikelserMarknadsföring[],ROW()-ROW(AvvikelserMarknadsföring[[#Headers],[Nov]]),1),INDEX(PlaneradeMarknadsföring[],,1),0),MATCH(AvvikelserMarknadsföring[[#Headers],[Nov]],FaktiskaMarknadsföring[#Headers],0)) -> 200.00 kr | N25: =INDEX(PlaneradeMarknadsföring[],MATCH(INDEX(AvvikelserMarknadsföring[],ROW()-ROW(AvvikelserMarknadsföring[[#Headers],[Dec]]),1),INDEX(PlaneradeMarknadsföring[],,1),0),MATCH(AvvikelserMarknadsföring[[#Headers],[Dec]],PlaneradeMarknadsföring[#Headers],0))-INDEX(FaktiskaMarknadsföring[],MATCH(INDEX(AvvikelserMarknadsföring[],ROW()-ROW(AvvikelserMarknadsföring[[#Headers],[Dec]]),1),INDEX(PlaneradeMarknadsföring[],,1),0),MATCH(AvvikelserMarknadsföring[[#Headers],[Dec]],FaktiskaMarknadsföring[#Headers],0)) -> 200.00 kr | O25: =SUM(AvvikelserMarknadsföring[[#This Row],[Jan]:[Dec]]) -> 820.00 kr
B26: Marknadsföringshändelser | C26: =INDEX(PlaneradeMarknadsföring[],MATCH(INDEX(AvvikelserMarknadsföring[],ROW()-ROW(AvvikelserMarknadsföring[[#Headers],[Jan]]),1),INDEX(PlaneradeMarknadsföring[],,1),0),MATCH(AvvikelserMarknadsföring[[#Headers],[Jan]],PlaneradeMarknadsföring[#Headers],0))-INDEX(FaktiskaMarknadsföring[],MATCH(INDEX(AvvikelserMarknadsföring[],ROW()-ROW(AvvikelserMarknadsföring[[#Headers],[Jan]]),1),INDEX(PlaneradeMarknadsföring[],,1),0),MATCH(AvvikelserMarknadsföring[[#Headers],[Jan]],FaktiskaMarknadsföring[#Headers],0)) -> 200.00 kr | D26: =INDEX(PlaneradeMarknadsföring[],MATCH(INDEX(AvvikelserMarknadsföring[],ROW()-ROW(AvvikelserMarknadsföring[[#Headers],[Feb]]),1),INDEX(PlaneradeMarknadsföring[],,1),0),MATCH(AvvikelserMarknadsföring[[#Headers],[Feb]],PlaneradeMarknadsföring[#Headers],0))-INDEX(FaktiskaMarknadsföring[],MATCH(INDEX(AvvikelserMarknadsföring[],ROW()-ROW(AvvikelserMarknadsföring[[#Headers],[Feb]]),1),INDEX(PlaneradeMarknadsföring[],,1),0),MATCH(AvvikelserMarknadsföring[[#Headers],[Feb]],FaktiskaMarknadsföring[#Headers],0)) -> -200.00 kr | E26: =INDEX(PlaneradeMarknadsföring[],MATCH(INDEX(AvvikelserMarknadsföring[],ROW()-ROW(AvvikelserMarknadsföring[[#Headers],[Mar]]),1),INDEX(PlaneradeMarknadsföring[],,1),0),MATCH(AvvikelserMarknadsföring[[#Headers],[Mar]],PlaneradeMarknadsföring[#Headers],0))-INDEX(FaktiskaMarknadsföring[],MATCH(INDEX(AvvikelserMarknadsföring[],ROW()-ROW(AvvikelserMarknadsföring[[#Headers],[Mar]]),1),INDEX(PlaneradeMarknadsföring[],,1),0),MATCH(AvvikelserMarknadsföring[[#Headers],[Mar]],FaktiskaMarknadsföring[#Headers],0)) -> -200.00 kr | F26: =INDEX(PlaneradeMarknadsföring[],MATCH(INDEX(AvvikelserMarknadsföring[],ROW()-ROW(AvvikelserMarknadsföring[[#Headers],[Apr]]),1),INDEX(PlaneradeMarknadsföring[],,1),0),MATCH(AvvikelserMarknadsföring[[#Headers],[Apr]],PlaneradeMarknadsföring[#Headers],0))-INDEX(FaktiskaMarknadsföring[],MATCH(INDEX(AvvikelserMarknadsföring[],ROW()-ROW(AvvikelserMarknadsföring[[#Headers],[Apr]]),1),INDEX(PlaneradeMarknadsföring[],,1),0),MATCH(AvvikelserMarknadsföring[[#Headers],[Apr]],FaktiskaMarknadsföring[#Headers],0)) -> 300.00 kr | G26: =INDEX(PlaneradeMarknadsföring[],MATCH(INDEX(AvvikelserMarknadsföring[],ROW()-ROW(AvvikelserMarknadsföring[[#Headers],[Maj]]),1),INDEX(PlaneradeMarknadsföring[],,1),0),MATCH(AvvikelserMarknadsföring[[#Headers],[Maj]],PlaneradeMarknadsföring[#Headers],0))-INDEX(FaktiskaMarknadsföring[],MATCH(INDEX(AvvikelserMarknadsföring[],ROW()-ROW(AvvikelserMarknadsföring[[#Headers],[Maj]]),1),INDEX(PlaneradeMarknadsföring[],,1),0),MATCH(AvvikelserMarknadsföring[[#Headers],[Maj]],FaktiskaMarknadsföring[#Headers],0)) -> 500.00 kr | H26: =INDEX(PlaneradeMarknadsföring[],MATCH(INDEX(AvvikelserMarknadsföring[],ROW()-ROW(AvvikelserMarknadsföring[[#Headers],[Jun]]),1),INDEX(PlaneradeMarknadsföring[],,1),0),MATCH(AvvikelserMarknadsföring[[#Headers],[Jun]],PlaneradeMarknadsföring[#Headers],0))-INDEX(FaktiskaMarknadsföring[],MATCH(INDEX(AvvikelserMarknadsföring[],ROW()-ROW(AvvikelserMarknadsföring[[#Headers],[Jun]]),1),INDEX(PlaneradeMarknadsföring[],,1),0),MATCH(AvvikelserMarknadsföring[[#Headers],[Jun]],FaktiskaMarknadsföring[#Headers],0)) -> -300.00 kr | I26: =INDEX(PlaneradeMarknadsföring[],MATCH(INDEX(AvvikelserMarknadsföring[],ROW()-ROW(AvvikelserMarknadsföring[[#Headers],[Jul]]),1),INDEX(PlaneradeMarknadsföring[],,1),0),MATCH(AvvikelserMarknadsföring[[#Headers],[Jul]],PlaneradeMarknadsföring[#Headers],0))-INDEX(FaktiskaMarknadsföring[],MATCH(INDEX(AvvikelserMarknadsföring[],ROW()-ROW(AvvikelserMarknadsföring[[#Headers],[Jul]]),1),INDEX(PlaneradeMarknadsföring[],,1),0),MATCH(AvvikelserMarknadsföring[[#Headers],[Jul]],FaktiskaMarknadsföring[#Headers],0)) -> 2,000.00 kr | J26: =INDEX(PlaneradeMarknadsföring[],MATCH(INDEX(AvvikelserMarknadsföring[],ROW()-ROW(AvvikelserMarknadsföring[[#Headers],[Aug]]),1),INDEX(PlaneradeMarknadsföring[],,1),0),MATCH(AvvikelserMarknadsföring[[#Headers],[Aug]],PlaneradeMarknadsföring[#Headers],0))-INDEX(FaktiskaMarknadsföring[],MATCH(INDEX(AvvikelserMarknadsföring[],ROW()-ROW(AvvikelserMarknadsföring[[#Headers],[Aug]]),1),INDEX(PlaneradeMarknadsföring[],,1),0),MATCH(AvvikelserMarknadsföring[[#Headers],[Aug]],FaktiskaMarknadsföring[#Headers],0)) -> 5,000.00 kr | K26: =INDEX(PlaneradeMarknadsföring[],MATCH(INDEX(AvvikelserMarknadsföring[],ROW()-ROW(AvvikelserMarknadsföring[[#Headers],[Sep]]),1),INDEX(PlaneradeMarknadsföring[],,1),0),MATCH(AvvikelserMarknadsföring[[#Headers],[Sep]],PlaneradeMarknadsföring[#Headers],0))-INDEX(FaktiskaMarknadsföring[],MATCH(INDEX(AvvikelserMarknadsföring[],ROW()-ROW(AvvikelserMarknadsföring[[#Headers],[Sep]]),1),INDEX(PlaneradeMarknadsföring[],,1),0),MATCH(AvvikelserMarknadsföring[[#Headers],[Sep]],FaktiskaMarknadsföring[#Headers],0)) -> 2,000.00 kr | L26: =INDEX(PlaneradeMarknadsföring[],MATCH(INDEX(AvvikelserMarknadsföring[],ROW()-ROW(AvvikelserMarknadsföring[[#Headers],[Okt]]),1),INDEX(PlaneradeMarknadsföring[],,1),0),MATCH(AvvikelserMarknadsföring[[#Headers],[Okt]],PlaneradeMarknadsföring[#Headers],0))-INDEX(FaktiskaMarknadsföring[],MATCH(INDEX(AvvikelserMarknadsföring[],ROW()-ROW(AvvikelserMarknadsföring[[#Headers],[Okt]]),1),INDEX(PlaneradeMarknadsföring[],,1),0),MATCH(AvvikelserMarknadsföring[[#Headers],[Okt]],FaktiskaMarknadsföring[#Headers],0)) -> 2,000.00 kr | M26: =INDEX(PlaneradeMarknadsföring[],MATCH(INDEX(AvvikelserMarknadsföring[],ROW()-ROW(AvvikelserMarknadsföring[[#Headers],[Nov]]),1),INDEX(PlaneradeMarknadsföring[],,1),0),MATCH(AvvikelserMarknadsföring[[#Headers],[Nov]],PlaneradeMarknadsföring[#Headers],0))-INDEX(FaktiskaMarknadsföring[],MATCH(INDEX(AvvikelserMarknadsföring[],ROW()-ROW(AvvikelserMarknadsföring[[#Headers],[Nov]]),1),INDEX(PlaneradeMarknadsföring[],,1),0),MATCH(AvvikelserMarknadsföring[[#Headers],[Nov]],FaktiskaMarknadsföring[#Headers],0)) -> 2,000.00 kr | N26: =INDEX(PlaneradeMarknadsföring[],MATCH(INDEX(AvvikelserMarknadsföring[],ROW()-ROW(AvvikelserMarknadsföring[[#Headers],[Dec]]),1),INDEX(PlaneradeMarknadsföring[],,1),0),MATCH(AvvikelserMarknadsföring[[#Headers],[Dec]],PlaneradeMarknadsföring[#Headers],0))-INDEX(FaktiskaMarknadsföring[],MATCH(INDEX(AvvikelserMarknadsföring[],ROW()-ROW(AvvikelserMarknadsföring[[#Headers],[Dec]]),1),INDEX(PlaneradeMarknadsföring[],,1),0),MATCH(AvvikelserMarknadsföring[[#Headers],[Dec]],FaktiskaMarknadsföring[#Headers],0)) -> 5,000.00 kr | O26: =SUM(AvvikelserMarknadsföring[[#This Row],[Jan]:[Dec]]) -> 18,300.00 kr
B27: Diverse utgifter | C27: =INDEX(PlaneradeMarknadsföring[],MATCH(INDEX(AvvikelserMarknadsföring[],ROW()-ROW(AvvikelserMarknadsföring[[#Headers],[Jan]]),1),INDEX(PlaneradeMarknadsföring[],,1),0),MATCH(AvvikelserMarknadsföring[[#Headers],[Jan]],PlaneradeMarknadsföring[#Headers],0))-INDEX(FaktiskaMarknadsföring[],MATCH(INDEX(AvvikelserMarknadsföring[],ROW()-ROW(AvvikelserMarknadsföring[[#Headers],[Jan]]),1),INDEX(PlaneradeMarknadsföring[],,1),0),MATCH(AvvikelserMarknadsföring[[#Headers],[Jan]],FaktiskaMarknadsföring[#Headers],0)) -> 55.00 kr | D27: =INDEX(PlaneradeMarknadsföring[],MATCH(INDEX(AvvikelserMarknadsföring[],ROW()-ROW(AvvikelserMarknadsföring[[#Headers],[Feb]]),1),INDEX(PlaneradeMarknadsföring[],,1),0),MATCH(AvvikelserMarknadsföring[[#Headers],[Feb]],PlaneradeMarknadsföring[#Headers],0))-INDEX(FaktiskaMarknadsföring[],MATCH(INDEX(AvvikelserMarknadsföring[],ROW()-ROW(AvvikelserMarknadsföring[[#Headers],[Feb]]),1),INDEX(PlaneradeMarknadsföring[],,1),0),MATCH(AvvikelserMarknadsföring[[#Headers],[Feb]],FaktiskaMarknadsföring[#Headers],0)) -> 44.00 kr | E27: =INDEX(PlaneradeMarknadsföring[],MATCH(INDEX(AvvikelserMarknadsföring[],ROW()-ROW(AvvikelserMarknadsföring[[#Headers],[Mar]]),1),INDEX(PlaneradeMarknadsföring[],,1),0),MATCH(AvvikelserMarknadsföring[[#Headers],[Mar]],PlaneradeMarknadsföring[#Headers],0))-INDEX(FaktiskaMarknadsföring[],MATCH(INDEX(AvvikelserMarknadsföring[],ROW()-ROW(AvvikelserMarknadsföring[[#Headers],[Mar]]),1),INDEX(PlaneradeMarknadsföring[],,1),0),MATCH(AvvikelserMarknadsföring[[#Headers],[Mar]],FaktiskaMarknadsföring[#Headers],0)) -> 77.00 kr | F27: =INDEX(PlaneradeMarknadsföring[],MATCH(INDEX(AvvikelserMarknadsföring[],ROW()-ROW(AvvikelserMarknadsföring[[#Headers],[Apr]]),1),INDEX(PlaneradeMarknadsföring[],,1),0),MATCH(AvvikelserMarknadsföring[[#Headers],[Apr]],PlaneradeMarknadsföring[#Headers],0))-INDEX(FaktiskaMarknadsföring[],MATCH(INDEX(AvvikelserMarknadsföring[],ROW()-ROW(AvvikelserMarknadsföring[[#Headers],[Apr]]),1),INDEX(PlaneradeMarknadsföring[],,1),0),MATCH(AvvikelserMarknadsföring[[#Headers],[Apr]],FaktiskaMarknadsföring[#Headers],0)) -> -23.00 kr | G27: =INDEX(PlaneradeMarknadsföring[],MATCH(INDEX(AvvikelserMarknadsföring[],ROW()-ROW(AvvikelserMarknadsföring[[#Headers],[Maj]]),1),INDEX(PlaneradeMarknadsföring[],,1),0),MATCH(AvvikelserMarknadsföring[[#Headers],[Maj]],PlaneradeMarknadsföring[#Headers],0))-INDEX(FaktiskaMarknadsföring[],MATCH(INDEX(AvvikelserMarknadsföring[],ROW()-ROW(AvvikelserMarknadsföring[[#Headers],[Maj]]),1),INDEX(PlaneradeMarknadsföring[],,1),0),MATCH(AvvikelserMarknadsföring[[#Headers],[Maj]],FaktiskaMarknadsföring[#Headers],0)) -> 13.00 kr | H27: =INDEX(PlaneradeMarknadsföring[],MATCH(INDEX(AvvikelserMarknadsföring[],ROW()-ROW(AvvikelserMarknadsföring[[#Headers],[Jun]]),1),INDEX(PlaneradeMarknadsföring[],,1),0),MATCH(AvvikelserMarknadsföring[[#Headers],[Jun]],PlaneradeMarknadsföring[#Headers],0))-INDEX(FaktiskaMarknadsföring[],MATCH(INDEX(AvvikelserMarknadsföring[],ROW()-ROW(AvvikelserMarknadsföring[[#Headers],[Jun]]),1),INDEX(PlaneradeMarknadsföring[],,1),0),MATCH(AvvikelserMarknadsföring[[#Headers],[Jun]],FaktiskaMarknadsföring[#Headers],0)) -> -45.00 kr | I27: =INDEX(PlaneradeMarknadsföring[],MATCH(INDEX(AvvikelserMarknadsföring[],ROW()-ROW(AvvikelserMarknadsföring[[#Headers],[Jul]]),1),INDEX(PlaneradeMarknadsföring[],,1),0),MATCH(AvvikelserMarknadsföring[[#Headers],[Jul]],PlaneradeMarknadsföring[#Headers],0))-INDEX(FaktiskaMarknadsföring[],MATCH(INDEX(AvvikelserMarknadsföring[],ROW()-ROW(AvvikelserMarknadsföring[[#Headers],[Jul]]),1),INDEX(PlaneradeMarknadsföring[],,1),0),MATCH(AvvikelserMarknadsföring[[#Headers],[Jul]],FaktiskaMarknadsföring[#Headers],0)) -> 200.00 kr | J27: =INDEX(PlaneradeMarknadsföring[],MATCH(INDEX(AvvikelserMarknadsföring[],ROW()-ROW(AvvikelserMarknadsföring[[#Headers],[Aug]]),1),INDEX(PlaneradeMarknadsföring[],,1),0),MATCH(AvvikelserMarknadsföring[[#Headers],[Aug]],PlaneradeMarknadsföring[#Headers],0))-INDEX(FaktiskaMarknadsföring[],MATCH(INDEX(AvvikelserMarknadsföring[],ROW()-ROW(AvvikelserMarknadsföring[[#Headers],[Aug]]),1),INDEX(PlaneradeMarknadsföring[],,1),0),MATCH(AvvikelserMarknadsföring[[#Headers],[Aug]],FaktiskaMarknadsföring[#Headers],0)) -> 200.00 kr | K27: =INDEX(PlaneradeMarknadsföring[],MATCH(INDEX(AvvikelserMarknadsföring[],ROW()-ROW(AvvikelserMarknadsföring[[#Headers],[Sep]]),1),INDEX(PlaneradeMarknadsföring[],,1),0),MATCH(AvvikelserMarknadsföring[[#Headers],[Sep]],PlaneradeMarknadsföring[#Headers],0))-INDEX(FaktiskaMarknadsföring[],MATCH(INDEX(AvvikelserMarknadsföring[],ROW()-ROW(AvvikelserMarknadsföring[[#Headers],[Sep]]),1),INDEX(PlaneradeMarknadsföring[],,1),0),MATCH(AvvikelserMarknadsföring[[#Headers],[Sep]],FaktiskaMarknadsföring[#Headers],0)) -> 200.00 kr | L27: =INDEX(PlaneradeMarknadsföring[],MATCH(INDEX(AvvikelserMarknadsföring[],ROW()-ROW(AvvikelserMarknadsföring[[#Headers],[Okt]]),1),INDEX(PlaneradeMarknadsföring[],,1),0),MATCH(AvvikelserMarknadsföring[[#Headers],[Okt]],PlaneradeMarknadsföring[#Headers],0))-INDEX(FaktiskaMarknadsföring[],MATCH(INDEX(AvvikelserMarknadsföring[],ROW()-ROW(AvvikelserMarknadsföring[[#Headers],[Okt]]),1),INDEX(PlaneradeMarknadsföring[],,1),0),MATCH(AvvikelserMarknadsföring[[#Headers],[Okt]],FaktiskaMarknadsföring[#Headers],0)) -> 200.00 kr | M27: =INDEX(PlaneradeMarknadsföring[],MATCH(INDEX(AvvikelserMarknadsföring[],ROW()-ROW(AvvikelserMarknadsföring[[#Headers],[Nov]]),1),INDEX(PlaneradeMarknadsföring[],,1),0),MATCH(AvvikelserMarknadsföring[[#Headers],[Nov]],PlaneradeMarknadsföring[#Headers],0))-INDEX(FaktiskaMarknadsföring[],MATCH(INDEX(AvvikelserMarknadsföring[],ROW()-ROW(AvvikelserMarknadsföring[[#Headers],[Nov]]),1),INDEX(PlaneradeMarknadsföring[],,1),0),MATCH(AvvikelserMarknadsföring[[#Headers],[Nov]],FaktiskaMarknadsföring[#Headers],0)) -> 200.00 kr | N27: =INDEX(PlaneradeMarknadsföring[],MATCH(INDEX(AvvikelserMarknadsföring[],ROW()-ROW(AvvikelserMarknadsföring[[#Headers],[Dec]]),1),INDEX(PlaneradeMarknadsföring[],,1),0),MATCH(AvvikelserMarknadsföring[[#Headers],[Dec]],PlaneradeMarknadsföring[#Headers],0))-INDEX(FaktiskaMarknadsföring[],MATCH(INDEX(AvvikelserMarknadsföring[],ROW()-ROW(AvvikelserMarknadsföring[[#Headers],[Dec]]),1),INDEX(PlaneradeMarknadsföring[],,1),0),MATCH(AvvikelserMarknadsföring[[#Headers],[Dec]],FaktiskaMarknadsföring[#Headers],0)) -> 200.00 kr | O27: =SUM(AvvikelserMarknadsföring[[#This Row],[Jan]:[Dec]]) -> 1,321.00 kr
B28: Delsumma | C28: =SUBTOTAL(109,AvvikelserMarknadsföring[Jan]) -> 555.00 kr | D28: =SUBTOTAL(109,AvvikelserMarknadsföring[Feb]) -> -456.00 kr | E28: =SUBTOTAL(109,AvvikelserMarknadsföring[Mar]) -> -23.00 kr | F28: =SUBTOTAL(109,AvvikelserMarknadsföring[Apr]) -> -123.00 kr | G28: =SUBTOTAL(109,AvvikelserMarknadsföring[Maj]) -> 113.00 kr | H28: =SUBTOTAL(109,AvvikelserMarknadsföring[Jun]) -> -825.00 kr | I28: =SUBTOTAL(109,AvvikelserMarknadsföring[Jul]) -> 8,100.00 kr | J28: =SUBTOTAL(109,AvvikelserMarknadsföring[Aug]) -> 6,100.00 kr | K28: =SUBTOTAL(109,AvvikelserMarknadsföring[Sep]) -> 3,100.00 kr | L28: =SUBTOTAL(109,AvvikelserMarknadsföring[Okt]) -> 8,100.00 kr | M28: =SUBTOTAL(109,AvvikelserMarknadsföring[Nov]) -> 3,100.00 kr | N28: =SUBTOTAL(109,AvvikelserMarknadsföring[Dec]) -> 6,900.00 kr | O28: =SUBTOTAL(109,AvvikelserMarknadsföring[ÅR]) -> 34,641.00 kr
B30: Utbildning/resor | C30: Jan | D30: Feb | E30: Mar | F30: Apr | G30: Maj | H30: Jun | I30: Jul | J30: Aug | K30: Sep | L30: Okt | M30: Nov | N30: Dec | O30: ÅR
B31: Utbildning, kurser | C31: =INDEX(PlaneradeUtbildningOchResor[],MATCH(INDEX(AvvikelserUtbildningOchResor[],ROW()-ROW(AvvikelserUtbildningOchResor[[#Headers],[Jan]]),1),INDEX(PlaneradeUtbildningOchResor[],,1),0),MATCH(AvvikelserUtbildningOchResor[[#Headers],[Jan]],PlaneradeUtbildningOchResor[#Headers],0))-INDEX(FaktiskaUtbildningOchResor[],MATCH(INDEX(AvvikelserUtbildningOchResor[],ROW()-ROW(AvvikelserUtbildningOchResor[[#Headers],[Jan]]),1),INDEX(PlaneradeUtbildningOchResor[],,1),0),MATCH(AvvikelserUtbildningOchResor[[#Headers],[Jan]],FaktiskaUtbildningOchResor[#Headers],0)) -> 400.00 kr | D31: =INDEX(PlaneradeUtbildningOchResor[],MATCH(INDEX(AvvikelserUtbildningOchResor[],ROW()-ROW(AvvikelserUtbildningOchResor[[#Headers],[Feb]]),1),INDEX(PlaneradeUtbildningOchResor[],,1),0),MATCH(AvvikelserUtbildningOchResor[[#Headers],[Feb]],PlaneradeUtbildningOchResor[#Headers],0))-INDEX(FaktiskaUtbildningOchResor[],MATCH(INDEX(AvvikelserUtbildningOchResor[],ROW()-ROW(AvvikelserUtbildningOchResor[[#Headers],[Feb]]),1),INDEX(PlaneradeUtbildningOchResor[],,1),0),MATCH(AvvikelserUtbildningOchResor[[#Headers],[Feb]],FaktiskaUtbildningOchResor[#Headers],0)) -> -400.00 kr | E31: =INDEX(PlaneradeUtbildningOchResor[],MATCH(INDEX(AvvikelserUtbildningOchResor[],ROW()-ROW(AvvikelserUtbildningOchResor[[#Headers],[Mar]]),1),INDEX(PlaneradeUtbildningOchResor[],,1),0),MATCH(AvvikelserUtbildningOchResor[[#Headers],[Mar]],PlaneradeUtbildningOchResor[#Headers],0))-INDEX(FaktiskaUtbildningOchResor[],MATCH(INDEX(AvvikelserUtbildningOchResor[],ROW()-ROW(AvvikelserUtbildningOchResor[[#Headers],[Mar]]),1),INDEX(PlaneradeUtbildningOchResor[],,1),0),MATCH(AvvikelserUtbildningOchResor[[#Headers],[Mar]],FaktiskaUtbildningOchResor[#Headers],0)) -> 600.00 kr | F31: =INDEX(PlaneradeUtbildningOchResor[],MATCH(INDEX(AvvikelserUtbildningOchResor[],ROW()-ROW(AvvikelserUtbildningOchResor[[#Headers],[Apr]]),1),INDEX(PlaneradeUtbildningOchResor[],,1),0),MATCH(AvvikelserUtbildningOchResor[[#Headers],[Apr]],PlaneradeUtbildningOchResor[#Headers],0))-INDEX(FaktiskaUtbildningOchResor[],MATCH(INDEX(AvvikelserUtbildningOchResor[],ROW()-ROW(AvvikelserUtbildningOchResor[[#Headers],[Apr]]),1),INDEX(PlaneradeUtbildningOchResor[],,1),0),MATCH(AvvikelserUtbildningOchResor[[#Headers],[Apr]],FaktiskaUtbildningOchResor[#Headers],0)) -> 400.00 kr | G31: =INDEX(PlaneradeUtbildningOchResor[],MATCH(INDEX(AvvikelserUtbildningOchResor[],ROW()-ROW(AvvikelserUtbildningOchResor[[#Headers],[Maj]]),1),INDEX(PlaneradeUtbildningOchResor[],,1),0),MATCH(AvvikelserUtbildningOchResor[[#Headers],[Maj]],PlaneradeUtbildningOchResor[#Headers],0))-INDEX(FaktiskaUtbildningOchResor[],MATCH(INDEX(AvvikelserUtbildningOchResor[],ROW()-ROW(AvvikelserUtbildningOchResor[[#Headers],[Maj]]),1),INDEX(PlaneradeUtbildningOchResor[],,1),0),MATCH(AvvikelserUtbildningOchResor[[#Headers],[Maj]],FaktiskaUtbildningOchResor[#Headers],0)) -> 800.00 kr | H31: =INDEX(PlaneradeUtbildningOchResor[],MATCH(INDEX(AvvikelserUtbildningOchResor[],ROW()-ROW(AvvikelserUtbildningOchResor[[#Headers],[Jun]]),1),INDEX(PlaneradeUtbildningOchResor[],,1),0),MATCH(AvvikelserUtbildningOchResor[[#Headers],[Jun]],PlaneradeUtbildningOchResor[#Headers],0))-INDEX(FaktiskaUtbildningOchResor[],MATCH(INDEX(AvvikelserUtbildningOchResor[],ROW()-ROW(AvvikelserUtbildningOchResor[[#Headers],[Jun]]),1),INDEX(PlaneradeUtbildningOchResor[],,1),0),MATCH(AvvikelserUtbildningOchResor[[#Headers],[Jun]],FaktiskaUtbildningOchResor[#Headers],0)) -> -800.00 kr | I31: =INDEX(PlaneradeUtbildningOchResor[],MATCH(INDEX(AvvikelserUtbildningOchResor[],ROW()-ROW(AvvikelserUtbildningOchResor[[#Headers],[Jul]]),1),INDEX(PlaneradeUtbildningOchResor[],,1),0),MATCH(AvvikelserUtbildningOchResor[[#Headers],[Jul]],PlaneradeUtbildningOchResor[#Headers],0))-INDEX(FaktiskaUtbildningOchResor[],MATCH(INDEX(AvvikelserUtbildningOchResor[],ROW()-ROW(AvvikelserUtbildningOchResor[[#Headers],[Jul]]),1),INDEX(PlaneradeUtbildningOchResor[],,1),0),MATCH(AvvikelserUtbildningOchResor[[#Headers],[Jul]],FaktiskaUtbildningOchResor[#Headers],0)) -> 2,000.00 kr | J31: =INDEX(PlaneradeUtbildningOchResor[],MATCH(INDEX(AvvikelserUtbildningOchResor[],ROW()-ROW(AvvikelserUtbildningOchResor[[#Headers],[Aug]]),1),INDEX(PlaneradeUtbildningOchResor[],,1),0),MATCH(AvvikelserUtbildningOchResor[[#Headers],[Aug]],PlaneradeUtbildningOchResor[#Headers],0))-INDEX(FaktiskaUtbildningOchResor[],MATCH(INDEX(AvvikelserUtbildningOchResor[],ROW()-ROW(AvvikelserUtbildningOchResor[[#Headers],[Aug]]),1),INDEX(PlaneradeUtbildningOchResor[],,1),0),MATCH(AvvikelserUtbildningOchResor[[#Headers],[Aug]],FaktiskaUtbildningOchResor[#Headers],0)) -> 2,000.00 kr | K31: =INDEX(PlaneradeUtbildningOchResor[],MATCH(INDEX(AvvikelserUtbildningOchResor[],ROW()-ROW(AvvikelserUtbildningOchResor[[#Headers],[Sep]]),1),INDEX(PlaneradeUtbildningOchResor[],,1),0),MATCH(AvvikelserUtbildningOchResor[[#Headers],[Sep]],PlaneradeUtbildningOchResor[#Headers],0))-INDEX(FaktiskaUtbildningOchResor[],MATCH(INDEX(AvvikelserUtbildningOchResor[],ROW()-ROW(AvvikelserUtbildningOchResor[[#Headers],[Sep]]),1),INDEX(PlaneradeUtbildningOchResor[],,1),0),MATCH(AvvikelserUtbildningOchResor[[#Headers],[Sep]],FaktiskaUtbildningOchResor[#Headers],0)) -> 2,000.00 kr | L31: =INDEX(PlaneradeUtbildningOchResor[],MATCH(INDEX(AvvikelserUtbildningOchResor[],ROW()-ROW(AvvikelserUtbildningOchResor[[#Headers],[Okt]]),1),INDEX(PlaneradeUtbildningOchResor[],,1),0),MATCH(AvvikelserUtbildningOchResor[[#Headers],[Okt]],PlaneradeUtbildningOchResor[#Headers],0))-INDEX(FaktiskaUtbildningOchResor[],MATCH(INDEX(AvvikelserUtbildningOchResor[],ROW()-ROW(AvvikelserUtbildningOchResor[[#Headers],[Okt]]),1),INDEX(PlaneradeUtbildningOchResor[],,1),0),MATCH(AvvikelserUtbildningOchResor[[#Headers],[Okt]],FaktiskaUtbildningOchResor[#Headers],0)) -> 2,000.00 kr | M31: =INDEX(PlaneradeUtbildningOchResor[],MATCH(INDEX(AvvikelserUtbildningOchResor[],ROW()-ROW(AvvikelserUtbildningOchResor[[#Headers],[Nov]]),1),INDEX(PlaneradeUtbildningOchResor[],,1),0),MATCH(AvvikelserUtbildningOchResor[[#Headers],[Nov]],PlaneradeUtbildningOchResor[#Headers],0))-INDEX(FaktiskaUtbildningOchResor[],MATCH(INDEX(AvvikelserUtbildningOchResor[],ROW()-ROW(AvvikelserUtbildningOchResor[[#Headers],[Nov]]),1),INDEX(PlaneradeUtbildningOchResor[],,1),0),MATCH(AvvikelserUtbildningOchResor[[#Headers],[Nov]],FaktiskaUtbildningOchResor[#Headers],0)) -> 2,000.00 kr | N31: =INDEX(PlaneradeUtbildningOchResor[],MATCH(INDEX(AvvikelserUtbildningOchResor[],ROW()-ROW(AvvikelserUtbildningOchResor[[#Headers],[Dec]]),1),INDEX(PlaneradeUtbildningOchResor[],,1),0),MATCH(AvvikelserUtbildningOchResor[[#Headers],[Dec]],PlaneradeUtbildningOchResor[#Headers],0))-INDEX(FaktiskaUtbildningOchResor[],MATCH(INDEX(AvvikelserUtbildningOchResor[],ROW()-ROW(AvvikelserUtbildningOchResor[[#Headers],[Dec]]),1),INDEX(PlaneradeUtbildningOchResor[],,1),0),MATCH(AvvikelserUtbildningOchResor[[#Headers],[Dec]],FaktiskaUtbildningOchResor[#Headers],0)) -> 2,000.00 kr | O31: =SUM(AvvikelserUtbildningOchResor[[#This Row],[Jan]:[Dec]]) -> 13,000.00 kr
B32: Utbildningsrelaterade resekostnader | C32: =INDEX(PlaneradeUtbildningOchResor[],MATCH(INDEX(AvvikelserUtbildningOchResor[],ROW()-ROW(AvvikelserUtbildningOchResor[[#Headers],[Jan]]),1),INDEX(PlaneradeUtbildningOchResor[],,1),0),MATCH(AvvikelserUtbildningOchResor[[#Headers],[Jan]],PlaneradeUtbildningOchResor[#Headers],0))-INDEX(FaktiskaUtbildningOchResor[],MATCH(INDEX(AvvikelserUtbildningOchResor[],ROW()-ROW(AvvikelserUtbildningOchResor[[#Headers],[Jan]]),1),INDEX(PlaneradeUtbildningOchResor[],,1),0),MATCH(AvvikelserUtbildningOchResor[[#Headers],[Jan]],FaktiskaUtbildningOchResor[#Headers],0)) -> 800.00 kr | D32: =INDEX(PlaneradeUtbildningOchResor[],MATCH(INDEX(AvvikelserUtbildningOchResor[],ROW()-ROW(AvvikelserUtbildningOchResor[[#Headers],[Feb]]),1),INDEX(PlaneradeUtbildningOchResor[],,1),0),MATCH(AvvikelserUtbildningOchResor[[#Headers],[Feb]],PlaneradeUtbildningOchResor[#Headers],0))-INDEX(FaktiskaUtbildningOchResor[],MATCH(INDEX(AvvikelserUtbildningOchResor[],ROW()-ROW(AvvikelserUtbildningOchResor[[#Headers],[Feb]]),1),INDEX(PlaneradeUtbildningOchResor[],,1),0),MATCH(AvvikelserUtbildningOchResor[[#Headers],[Feb]],FaktiskaUtbildningOchResor[#Headers],0)) -> -200.00 kr | E32: =INDEX(PlaneradeUtbildningOchResor[],MATCH(INDEX(AvvikelserUtbildningOchResor[],ROW()-ROW(AvvikelserUtbildningOchResor[[#Headers],[Mar]]),1),INDEX(PlaneradeUtbildningOchResor[],,1),0),MATCH(AvvikelserUtbildningOchResor[[#Headers],[Mar]],PlaneradeUtbildningOchResor[#Headers],0))-INDEX(FaktiskaUtbildningOchResor[],MATCH(INDEX(AvvikelserUtbildningOchResor[],ROW()-ROW(AvvikelserUtbildningOchResor[[#Headers],[Mar]]),1),INDEX(PlaneradeUtbildningOchResor[],,1),0),MATCH(AvvikelserUtbildningOchResor[[#Headers],[Mar]],FaktiskaUtbildningOchResor[#Headers],0)) -> 600.00 kr | F32: =INDEX(PlaneradeUtbildningOchResor[],MATCH(INDEX(AvvikelserUtbildningOchResor[],ROW()-ROW(AvvikelserUtbildningOchResor[[#Headers],[Apr]]),1),INDEX(PlaneradeUtbildningOchResor[],,1),0),MATCH(AvvikelserUtbildningOchResor[[#Headers],[Apr]],PlaneradeUtbildningOchResor[#Headers],0))-INDEX(FaktiskaUtbildningOchResor[],MATCH(INDEX(AvvikelserUtbildningOchResor[],ROW()-ROW(AvvikelserUtbildningOchResor[[#Headers],[Apr]]),1),INDEX(PlaneradeUtbildningOchResor[],,1),0),MATCH(AvvikelserUtbildningOchResor[[#Headers],[Apr]],FaktiskaUtbildningOchResor[#Headers],0)) -> 800.00 kr | G32: =INDEX(PlaneradeUtbildningOchResor[],MATCH(INDEX(AvvikelserUtbildningOchResor[],ROW()-ROW(AvvikelserUtbildningOchResor[[#Headers],[Maj]]),1),INDEX(PlaneradeUtbildningOchResor[],,1),0),MATCH(AvvikelserUtbildningOchResor[[#Headers],[Maj]],PlaneradeUtbildningOchResor[#Headers],0))-INDEX(FaktiskaUtbildningOchResor[],MATCH(INDEX(AvvikelserUtbildningOchResor[],ROW()-ROW(AvvikelserUtbildningOchResor[[#Headers],[Maj]]),1),INDEX(PlaneradeUtbildningOchResor[],,1),0),MATCH(AvvikelserUtbildningOchResor[[#Headers],[Maj]],FaktiskaUtbildningOchResor[#Headers],0)) -> 1,200.00 kr | H32: =INDEX(PlaneradeUtbildningOchResor[],MATCH(INDEX(AvvikelserUtbildningOchResor[],ROW()-ROW(AvvikelserUtbildningOchResor[[#Headers],[Jun]]),1),INDEX(PlaneradeUtbildningOchResor[],,1),0),MATCH(AvvikelserUtbildningOchResor[[#Headers],[Jun]],PlaneradeUtbildningOchResor[#Headers],0))-INDEX(FaktiskaUtbildningOchResor[],MATCH(INDEX(AvvikelserUtbildningOchResor[],ROW()-ROW(AvvikelserUtbildningOchResor[[#Headers],[Jun]]),1),INDEX(PlaneradeUtbildningOchResor[],,1),0),MATCH(AvvikelserUtbildningOchResor[[#Headers],[Jun]],FaktiskaUtbildningOchResor[#Headers],0)) -> -1,500.00 kr | I32: =INDEX(PlaneradeUtbildningOchResor[],MATCH(INDEX(AvvikelserUtbildningOchResor[],ROW()-ROW(AvvikelserUtbildningOchResor[[#Headers],[Jul]]),1),INDEX(PlaneradeUtbildningOchResor[],,1),0),MATCH(AvvikelserUtbildningOchResor[[#Headers],[Jul]],PlaneradeUtbildningOchResor[#Headers],0))-INDEX(FaktiskaUtbildningOchResor[],MATCH(INDEX(AvvikelserUtbildningOchResor[],ROW()-ROW(AvvikelserUtbildningOchResor[[#Headers],[Jul]]),1),INDEX(PlaneradeUtbildningOchResor[],,1),0),MATCH(AvvikelserUtbildningOchResor[[#Headers],[Jul]],FaktiskaUtbildningOchResor[#Headers],0)) -> 2,000.00 kr | J32: =INDEX(PlaneradeUtbildningOchResor[],MATCH(INDEX(AvvikelserUtbildningOchResor[],ROW()-ROW(AvvikelserUtbildningOchResor[[#Headers],[Aug]]),1),INDEX(PlaneradeUtbildningOchResor[],,1),0),MATCH(AvvikelserUtbildningOchResor[[#Headers],[Aug]],PlaneradeUtbildningOchResor[#Headers],0))-INDEX(FaktiskaUtbildningOchResor[],MATCH(INDEX(AvvikelserUtbildningOchResor[],ROW()-ROW(AvvikelserUtbildningOchResor[[#Headers],[Aug]]),1),INDEX(PlaneradeUtbildningOchResor[],,1),0),MATCH(AvvikelserUtbildningOchResor[[#Headers],[Aug]],FaktiskaUtbildningOchResor[#Headers],0)) -> 2,000.00 kr | K32: =INDEX(PlaneradeUtbildningOchResor[],MATCH(INDEX(AvvikelserUtbildningOchResor[],ROW()-ROW(AvvikelserUtbildningOchResor[[#Headers],[Sep]]),1),INDEX(PlaneradeUtbildningOchResor[],,1),0),MATCH(AvvikelserUtbildningOchResor[[#Headers],[Sep]],PlaneradeUtbildningOchResor[#Headers],0))-INDEX(FaktiskaUtbildningOchResor[],MATCH(INDEX(AvvikelserUtbildningOchResor[],ROW()-ROW(AvvikelserUtbildningOchResor[[#Headers],[Sep]]),1),INDEX(PlaneradeUtbildningOchResor[],,1),0),MATCH(AvvikelserUtbildningOchResor[[#Headers],[Sep]],FaktiskaUtbildningOchResor[#Headers],0)) -> 2,000.00 kr | L32: =INDEX(PlaneradeUtbildningOchResor[],MATCH(INDEX(AvvikelserUtbildningOchResor[],ROW()-ROW(AvvikelserUtbildningOchResor[[#Headers],[Okt]]),1),INDEX(PlaneradeUtbildningOchResor[],,1),0),MATCH(AvvikelserUtbildningOchResor[[#Headers],[Okt]],PlaneradeUtbildningOchResor[#Headers],0))-INDEX(FaktiskaUtbildningOchResor[],MATCH(INDEX(AvvikelserUtbildningOchResor[],ROW()-ROW(AvvikelserUtbildningOchResor[[#Headers],[Okt]]),1),INDEX(PlaneradeUtbildningOchResor[],,1),0),MATCH(AvvikelserUtbildningOchResor[[#Headers],[Okt]],FaktiskaUtbildningOchResor[#Headers],0)) -> 2,000.00 kr | M32: =INDEX(PlaneradeUtbildningOchResor[],MATCH(INDEX(AvvikelserUtbildningOchResor[],ROW()-ROW(AvvikelserUtbildningOchResor[[#Headers],[Nov]]),1),INDEX(PlaneradeUtbildningOchResor[],,1),0),MATCH(AvvikelserUtbildningOchResor[[#Headers],[Nov]],PlaneradeUtbildningOchResor[#Headers],0))-INDEX(FaktiskaUtbildningOchResor[],MATCH(INDEX(AvvikelserUtbildningOchResor[],ROW()-ROW(AvvikelserUtbildningOchResor[[#Headers],[Nov]]),1),INDEX(PlaneradeUtbildningOchResor[],,1),0),MATCH(AvvikelserUtbildningOchResor[[#Headers],[Nov]],FaktiskaUtbildningOchResor[#Headers],0)) -> 2,000.00 kr | N32: =INDEX(PlaneradeUtbildningOchResor[],MATCH(INDEX(AvvikelserUtbildningOchResor[],ROW()-ROW(AvvikelserUtbildningOchResor[[#Headers],[Dec]]),1),INDEX(PlaneradeUtbildningOchResor[],,1),0),MATCH(AvvikelserUtbildningOchResor[[#Headers],[Dec]],PlaneradeUtbildningOchResor[#Headers],0))-INDEX(FaktiskaUtbildningOchResor[],MATCH(INDEX(AvvikelserUtbildningOchResor[],ROW()-ROW(AvvikelserUtbildningOchResor[[#Headers],[Dec]]),1),INDEX(PlaneradeUtbildningOchResor[],,1),0),MATCH(AvvikelserUtbildningOchResor[[#Headers],[Dec]],FaktiskaUtbildningOchResor[#Headers],0)) -> 2,000.00 kr | O32: =SUM(AvvikelserUtbildningOchResor[[#This Row],[Jan]:[Dec]]) -> 13,700.00 kr
B33: Delsumma | C33: =SUBTOTAL(109,AvvikelserUtbildningOchResor[Jan]) -> 1,200.00 kr | D33: =SUBTOTAL(109,AvvikelserUtbildningOchResor[Feb]) -> -600.00 kr | E33: =SUBTOTAL(109,AvvikelserUtbildningOchResor[Mar]) -> 1,200.00 kr | F33: =SUBTOTAL(109,AvvikelserUtbildningOchResor[Apr]) -> 1,200.00 kr | G33: =SUBTOTAL(109,AvvikelserUtbildningOchResor[Maj]) -> 2,000.00 kr | H33: =SUBTOTAL(109,AvvikelserUtbildningOchResor[Jun]) -> -2,300.00 kr | I33: =SUBTOTAL(109,AvvikelserUtbildningOchResor[Jul]) -> 4,000.00 kr | J33: =SUBTOTAL(109,AvvikelserUtbildningOchResor[Aug]) -> 4,000.00 kr | K33: =SUBTOTAL(109,AvvikelserUtbildningOchResor[Sep]) -> 4,000.00 kr | L33: =SUBTOTAL(109,AvvikelserUtbildningOchResor[Okt]) -> 4,000.00 kr | M33: =SUBTOTAL(109,AvvikelserUtbildningOchResor[Nov]) -> 4,000.00 kr | N33: =SUBTOTAL(109,AvvikelserUtbildningOchResor[Dec]) -> 4,000.00 kr | O33: =SUBTOTAL(109,AvvikelserUtbildningOchResor[ÅR]) -> 26,700.00 kr
B35: TOTALSUMMOR | C35: Jan | D35: Feb | E35: Mar | F35: Apr | G35: Maj | H35: Jun | I35: Jul | J35: Aug | K35: Sep | L35: Okt | M35: Nov | N35: Dec | O35: År
B36: Faktiska månadsutgifter | C36: =AvvikelserUtbildningOchResor[[#Totals],[Jan]]+AvvikelserMarknadsföring[[#Totals],[Jan]]+AvvikelserKontor[[#Totals],[Jan]]+AvvikelserAnställda[[#Totals],[Jan]] -> 1,738.00 kr | D36: =AvvikelserUtbildningOchResor[[#Totals],[Feb]]+AvvikelserMarknadsföring[[#Totals],[Feb]]+AvvikelserKontor[[#Totals],[Feb]]+AvvikelserAnställda[[#Totals],[Feb]] -> -984.00 kr | E36: =AvvikelserUtbildningOchResor[[#Totals],[Mar]]+AvvikelserMarknadsföring[[#Totals],[Mar]]+AvvikelserKontor[[#Totals],[Mar]]+AvvikelserAnställda[[#Totals],[Mar]] -> 1,255.00 kr | F36: =AvvikelserUtbildningOchResor[[#Totals],[Apr]]+AvvikelserMarknadsföring[[#Totals],[Apr]]+AvvikelserKontor[[#Totals],[Apr]]+AvvikelserAnställda[[#Totals],[Apr]] -> 301.00 kr | G36: =AvvikelserUtbildningOchResor[[#Totals],[Maj]]+AvvikelserMarknadsföring[[#Totals],[Maj]]+AvvikelserKontor[[#Totals],[Maj]]+AvvikelserAnställda[[#Totals],[Maj]] -> 1,440.00 kr | H36: =AvvikelserUtbildningOchResor[[#Totals],[Jun]]+AvvikelserMarknadsföring[[#Totals],[Jun]]+AvvikelserKontor[[#Totals],[Jun]]+AvvikelserAnställda[[#Totals],[Jun]] -> -3,744.00 kr | I36: =AvvikelserUtbildningOchResor[[#Totals],[Jul]]+AvvikelserMarknadsföring[[#Totals],[Jul]]+AvvikelserKontor[[#Totals],[Jul]]+AvvikelserAnställda[[#Totals],[Jul]] -> 134,695.00 kr | J36: =AvvikelserUtbildningOchResor[[#Totals],[Aug]]+AvvikelserMarknadsföring[[#Totals],[Aug]]+AvvikelserKontor[[#Totals],[Aug]]+AvvikelserAnställda[[#Totals],[Aug]] -> 138,918.00 kr | K36: =AvvikelserUtbildningOchResor[[#Totals],[Sep]]+AvvikelserMarknadsföring[[#Totals],[Sep]]+AvvikelserKontor[[#Totals],[Sep]]+AvvikelserAnställda[[#Totals],[Sep]] -> 135,918.00 kr | L36: =AvvikelserUtbildningOchResor[[#Totals],[Okt]]+AvvikelserMarknadsföring[[#Totals],[Okt]]+AvvikelserKontor[[#Totals],[Okt]]+AvvikelserAnställda[[#Totals],[Okt]] -> 140,918.00 kr | M36: =AvvikelserUtbildningOchResor[[#Totals],[Nov]]+AvvikelserMarknadsföring[[#Totals],[Nov]]+AvvikelserKontor[[#Totals],[Nov]]+AvvikelserAnställda[[#Totals],[Nov]] -> 136,218.00 kr | N36: =AvvikelserUtbildningOchResor[[#Totals],[Dec]]+AvvikelserMarknadsföring[[#Totals],[Dec]]+AvvikelserKontor[[#Totals],[Dec]]+AvvikelserAnställda[[#Totals],[Dec]] -> 140,018.00 kr | O36: =AvvikelserUtbildningOchResor[[#Totals],[ÅR]]+AvvikelserMarknadsföring[[#Totals],[ÅR]]+AvvikelserKontor[[#Totals],[ÅR]]+AvvikelserAnställda[[#Totals],[ÅR]] -> 826,691.00 kr
B37: Summa faktiska utgifter | C37: =SUM($C$36:C36) -> 1,738.00 kr | D37: =SUM($C$36:D36) -> 754.00 kr | E37: =SUM($C$36:E36) -> 2,009.00 kr | F37: =SUM($C$36:F36) -> 2,310.00 kr | G37: =SUM($C$36:G36) -> 3,750.00 kr | H37: =SUM($C$36:H36) -> 6.00 kr | I37: =SUM($C$36:I36) -> 134,701.00 kr | J37: =SUM($C$36:J36) -> 273,619.00 kr | K37: =SUM($C$36:K36) -> 409,537.00 kr | L37: =SUM($C$36:L36) -> 550,455.00 kr | M37: =SUM($C$36:M36) -> 686,673.00 kr | N37: =SUM($C$36:N36) -> 826,691.00 kr

Sheet UTGIFTSANALYS
B2: ='BERÄKNADE UTGIFTER'!B2:D3 -> Företagsnamn
E3: =worksheet_title -> Detaljerade utgiftsberäkningar
B5: Utgiftskategori | C5: Planerade utgifter | D5: Faktiska utgifter | E5: Utgiftsavvikelser | F5: Avvikelseprocent
B6: Kostnader för anställda | C6: =PlaneradeAnställda[[#Totals],[ÅR]] -> 1,355,090.00 kr | D6: =FaktiskaAnställda[[#Totals],[ÅR]] -> 659,130.00 kr | E6: =C6-D6 -> 695,960.00 kr | F6: =E6/C6 -> 51%
B7: ='BERÄKNADE UTGIFTER'!B10 -> Kontorskostnader | C7: =KontorsPlan[[#Totals],[ÅR]] -> 138,740.00 kr | D7: =FaktiskaKontor[[#Totals],[ÅR]] -> 69,350.00 kr | E7: =C7-D7 -> 69,390.00 kr | F7: =E7/C7 -> 50%
B8: ='BERÄKNADE UTGIFTER'!B21 -> Marknadsföringskostnader | C8: =PlaneradeMarknadsföring[[#Totals],[ÅR]] -> 67,800.00 kr | D8: =FaktiskaMarknadsföring[[#Totals],[ÅR]] -> 33,159.00 kr | E8: =C8-D8 -> 34,641.00 kr | F8: =E8/C8 -> 51%
B9: ='BERÄKNADE UTGIFTER'!B30 -> Utbildning/resor | C9: =PlaneradeUtbildningOchResor[[#Totals],[ÅR]] -> 48,000.00 kr | D9: =FaktiskaUtbildningOchResor[[#Totals],[ÅR]] -> 21,300.00 kr | E9: =C9-D9 -> 26,700.00 kr | F9: =E9/C9 -> 56%
B10: ='BERÄKNADE UTGIFTER'!B35 -> TOTALSUMMOR | C10: ='BERÄKNADE UTGIFTER'!O36 -> 1,609,630.00 kr | D10: ='FAKTISKA UTGIFTER'!O36 -> 782,939.00 kr | E10: =C10-D10 -> 826,691.00 kr | F10: =E10/C10 -> 51%
